Workbook

Sheet Cover
A3: Navigator
C5: =Client_Name -> SumProduct Pty Limited
C6: =Model_Name -> SP Point and Figure Chart with Bollinger Band- Complete.xlsm
C14: Primary Developer: Sam Ngo
C16: General Cover Notes:
C17: Point and Figure Charts with Bollinger Bands.
C21: Any queries, please e-mail: | G21: sam.ngo@sumproduct.com
C22: Website: | G22: www.sumproduct.com

Sheet Navigator
A1: Navigator
A2: =Model_Name -> SP Point and Figure Chart with Bollinger Band- Complete.xlsm
A3: Navigator
E4: Error Checks: | G4: =Overall_Error_Check -> 0
B7: 1 | C7: Table of Contents
F9: Cover
F10: Style Guide
F11: Model Parameters
F12: Data
F13: Point and Figure Chart
F14: Error Checks

Sheet Style Guide
A1: =IF(ISERROR(RIGHT(CELL("filename",A1),LEN(CELL("filename",A1))-FIND("]",CELL("filename",A1)))), "", RIGHT(CELL("filename",A1),LEN(CELL("filename",A1))-FIND("]",CELL("filename",A1)))) -> Style Guide
A2: =Model_Name -> SP Point and Figure Chart with Bollinger Band- Complete.xlsm
A3: Navigator
E4: Error Checks: | I4: =Overall_Error_Check -> 0
B6: =MAX($B$5:$B5)+1 -> 1 | C6: Formatting of Headers / Dividers
C8: Description | I8: Display | K8: Style Name
C10: Sheet Title | I10: =C10 -> Sheet Title | K10: Sheet Title
C11: Model Name | I11: =C11 -> Model Name | K11: Model Name
C13: Header 1 | I13: =C13 -> Header 1 | K13: Header 1
C14: Header 2 | I14: =C14 -> Header 2 | K14: Header 2
C15: Header 3 | I15: =C15 -> Header 3 | K15: Header 3
C16: Header 4 | I16: =C16 -> Header 4 | K16: Header 4
C18: Notes | I18: =C18 -> Notes | K18: Notes
C20: Table Heading | I20: =C20 -> Table Heading | K20: Table Heading
B23: =MAX($B$5:$B22)+1 -> 2 | C23: Individual Cell Styles
C25: Description | I25: Display | K25: Style Name
C27: Assumption | I27: Assumption | K27: =C27 -> Assumption
C29: Constraint | I29: =C29 -> Constraint | K29: =C29 -> Constraint
C31: Empty | K31: =C31 -> Empty
C33: Error Check | I33: 0 | K33: =C33 -> Error Check
C35: Hyperlink | I35: Hyperlink | K35: =C35 -> Hyperlink
C37: Internal Reference | I37: ='Error Checks'!E12 -> Example | K37: =C37 -> Internal Reference
C39: Line Calculation | I39: 77 | K39: Line Calc
C41: Line Total | I41: =I39 -> 77 | K41: =C41 -> Line Total
C43: Parameter | I43: 365 | K43: =C43 -> Parameter
C45: Range Name Description | I45: Not_Named | K45: =C45 -> Range Name Description
C47: Row Reference | I47: =ROW(C47) -> 47 | K47: Row Ref
C49: Row Summary | I49: =I41 -> 77 | K49: =C49 -> Row Summary
C51: Units | I51: A$ | K51: =C51 -> Units
C53: WIP | K53: =C53 -> WIP
B56: =MAX($B$5:$B55)+1 -> 3 | C56: Numerical Styles
C58: Description | I58: Display | K58: Style Name
C60: Comma | I60: 123456.789 | K60: =C60 -> Comma
C62: Comma [0] | I62: -123456.789 | K62: Comma [0]
C64: Currency | I64: 123456.789 | K64: Currency
C66: Currency [0] | I66: 123456.789 | K66: Currency [0]
C68: Date | I68: =TODAY() -> 2025-10-22 | K68: =C68 -> Date
C70: Date Heading | I70: =TODAY() -> 2025-10-22 | K70: =C70 -> Date Heading
C72: Numbers 0 | I72: -123456.789 | K72: =C72 -> Numbers 0
C74: Percent | I74: 0.5 | K74: =C74 -> Percent

Sheet Model Parameters
A1: =IF(ISERROR(RIGHT(CELL("filename",A1),LEN(CELL("filename",A1))-FIND("]",CELL("filename",A1)))), "", RIGHT(CELL("filename",A1),LEN(CELL("filename",A1))-FIND("]",CELL("filename",A1)))) -> Model Parameters
A2: =Model_Name -> SP Point and Figure Chart with Bollinger Band- Complete.xlsm
A3: Navigator
E4: Error Checks: | I4: =Overall_Error_Check -> 0
B6: =MAX($B$5:$B5)+1 -> 1 | C6: General
C8: Key Inputs
E10: General
E11: Model Name | G11: =IF(ISERROR(OR(FIND("[",CELL("filename",A1)),FIND("]",CELL("filename",A1)))),"",MID(CELL("filename",A1),FIND("[",CELL("filename",A1))+1,FIND("]",CELL("filename",A1))-FIND("[",CELL("filename",A1))-1)) -> SP Point and Figure Chart with Bollinger Band- Complete.xlsm
E12: Client Name | G12: SumProduct Pty Limited
B15: =MAX($B$5:$B14)+1 -> 2 | C15: General Range Names
C17: Technical Assumptions
E19: Days in Year | G19: 365
E20: Months in Month | G20: 1
E21: Months in Quarter | G21: 3
E22: Months in Half Yr | G22: 6
E23: Months in Year | G23: 12
E24: Quarters in Year | G24: 4
E26: Rounding Accuracy | G26: 5
E28: Very Large Number | G28: 1e+99
E29: Very Small Number | G29: 1e-08
E31: Thousand | G31: 1000

Sheet Data
A1: =IF(ISERROR(RIGHT(CELL("filename",A1),LEN(CELL("filename",A1))-FIND("]",CELL("filename",A1)))), "", RIGHT(CELL("filename",A1),LEN(CELL("filename",A1))-FIND("]",CELL("filename",A1)))) -> Data
A2: =Model_Name -> SP Point and Figure Chart with Bollinger Band- Complete.xlsm
A3: Navigator
B4: Error Checks: | F4: =Overall_Error_Check -> 0
B6: =MAX($B$5:$B5)+1 -> 1 | C6: =A1 -> Data
C8: Summary Data
D10: Min | F10: =SMALL(Data[Lower Bollinger Band],2) -> 202.9529344
D11: Max | F11: =MAX(Data[Upper Bollinger Band]) -> 350.5843793
D12: Range | F12: =Max-Min -> 147.6314449
D14: Bin Width | F14: 30
D15: Width | F15: =Range/Number_of_Bins -> 4.921048163
D17: Up Symbol | F17: X
D18: Down Symbol | F18: O
D19: Starting Symbol | F19: =IF(F33<>"",Up_Symbol,Down_Symbol) -> O
C22: Bollinger Band Data
D24: Standard Deviation | F24: 3
D25: Range | F25: 20
D27: Bollinger Band Symbol | F27: +++
C30: Data Table | M30: Date
D31: The Adjusted Close Price is took from MSFT stock on Yahoo Finance
D32: Date | E32: Adj Close | F32: Up | G32: Switch Location | H32: Index | I32: Lag Index U | J32: Upper Bollinger Band | K32: Lower Bollinger Band | N32: Unique Index | O32: Date | P32: Max Stock | Q32: Min Stock | R32: Max Upper Band | S32: Min Upper Band | T32: Max Lower Band | U32: Min Lower Band
D33: 2022-01-03 | E33: 331 | F33: =IF(Data[[#This Row],[Adj Close]]<E34,TRUE,"") ->  | G33: =IF(F32=Data[[#This Row],[Up]],0,1) -> 1 | H33: =SUM($G$33:G33) -> 1 | I33: =N(H32) -> 0 | J33: =AVERAGE(OFFSET(E32,1,,-MIN(Bollinger_Band_Range,COUNTA(E$32:E32)))+Standard_Deviation*IFERROR(STDEV(OFFSET(E32,1,,-MIN(Bollinger_Band_Range,COUNTA(E$32:E32)))),0)) -> 331 | K33: =IFERROR(AVERAGE(OFFSET(E32,1,,-MIN(Bollinger_Band_Range,COUNTA(E$32:E32)))-Standard_Deviation*IFERROR(STDEV(OFFSET(E32,1,,-MIN(Bollinger_Band_Range,COUNTA(E$32:E32)))),0)),0) -> 331 | N33: =N(N32)+1 -> 1 | O33: =INDEX(Data[Date],MATCH(N33,Data[Index],0)) -> 2022-01-03 | P33: =MAX(IF(N33=Data[Index],Data[Adj Close],0),IF(N33=Data[Lag Index U],Data[Adj Close],0)) -> 331 | Q33: =MIN(IF(N33=Data[Index],Data[Adj Close]),IF(N33=Data[Lag Index U],Data[Adj Close])) -> 310.966217 | R33: =MAX(IF(N33=Data[Index],Data[Upper Bollinger Band],0),IF(N33=Data[Lag Index U],Data[Upper Bollinger Band],0)) -> 350.5843793 | S33: =MIN(IF(N33=Data[Index],Data[Upper Bollinger Band]),IF(N33=Data[Lag Index U],Data[Upper Bollinger Band])) -> 331 | T33: =MAX(IF(N33=Data[Index],Data[Lower Bollinger Band],0),IF(N33=Data[Lag Index U],Data[Lower Bollinger Band],0)) -> 331 | U33: =MIN(IF(N33=Data[Index],Data[Lower Bollinger Band]),IF(N33=Data[Lag Index U],Data[Lower Bollinger Band])) -> 291.3269975
D34: 2022-01-04 | E34: 325.95575 | F34: =IF(Data[[#This Row],[Adj Close]]<E35,TRUE,"") ->  | G34: =IF(F33=Data[[#This Row],[Up]],0,1) -> 0 | H34: =SUM($G$33:G34) -> 1 | I34: 1 | J34: =AVERAGE(OFFSET(E33,1,,-MIN(Bollinger_Band_Range,COUNTA(E$32:E33)))+Standard_Deviation*IFERROR(STDEV(OFFSET(E33,1,,-MIN(Bollinger_Band_Range,COUNTA(E$32:E33)))),0)) -> 339.1783451 | K34: =IFERROR(AVERAGE(OFFSET(E33,1,,-MIN(Bollinger_Band_Range,COUNTA(E$32:E33)))-Standard_Deviation*IFERROR(STDEV(OFFSET(E33,1,,-MIN(Bollinger_Band_Range,COUNTA(E$32:E33)))),0)),0) -> 317.7774049 | N34: =N(N33)+1 -> 2 | O34: =INDEX(Data[Date],MATCH(N34,Data[Index],0)) -> 2022-01-06 | P34: =MAX(IF(N34=Data[Index],Data[Adj Close],0),IF(N34=Data[Lag Index U],Data[Adj Close],0)) -> 315.31543 | Q34: =MIN(IF(N34=Data[Index],Data[Adj Close]),IF(N34=Data[Lag Index U],Data[Adj Close])) -> 310.966217 | R34: =MAX(IF(N34=Data[Index],Data[Upper Bollinger Band],0),IF(N34=Data[Lag Index U],Data[Upper Bollinger Band],0)) -> 349.3554825 | S34: =MIN(IF(N34=Data[Index],Data[Upper Bollinger Band]),IF(N34=Data[Lag Index U],Data[Upper Bollinger Band])) -> 339.5313 | T34: =MAX(IF(N34=Data[Index],Data[Lower Bollinger Band],0),IF(N34=Data[Lag Index U],Data[Lower Bollinger Band],0)) -> 293.2721212 | U34: =MIN(IF(N34=Data[Index],Data[Lower Bollinger Band]),IF(N34=Data[Lag Index U],Data[Lower Bollinger Band])) -> 290.4931309
D35: 2022-01-05 | E35: 313.442993 | F35: =IF(Data[[#This Row],[Adj Close]]<E36,TRUE,"") ->  | G35: =IF(F34=Data[[#This Row],[Up]],0,1) -> 0 | H35: =SUM($G$33:G35) -> 1 | I35: 1 | J35: =AVERAGE(OFFSET(E34,1,,-MIN(Bollinger_Band_Range,COUNTA(E$32:E34)))+Standard_Deviation*IFERROR(STDEV(OFFSET(E34,1,,-MIN(Bollinger_Band_Range,COUNTA(E$32:E34)))),0)) -> 350.5843793 | K35: =IFERROR(AVERAGE(OFFSET(E34,1,,-MIN(Bollinger_Band_Range,COUNTA(E$32:E34)))-Standard_Deviation*IFERROR(STDEV(OFFSET(E34,1,,-MIN(Bollinger_Band_Range,COUNTA(E$32:E34)))),0)),0) -> 296.3481161 | N35: 3 | O35: =INDEX(Data[Date],MATCH(N35,Data[Index],0)) -> 2022-01-12 | P35: =MAX(IF(N35=Data[Index],Data[Adj Close],0),IF(N35=Data[Lag Index U],Data[Adj Close],0)) -> 315.31543 | Q35: =MIN(IF(N35=Data[Index],Data[Adj Close]),IF(N35=Data[Lag Index U],Data[Adj Close])) -> 301.97049 | R35: =MAX(IF(N35=Data[Index],Data[Upper Bollinger Band],0),IF(N35=Data[Lag Index U],Data[Upper Bollinger Band],0)) -> 340.8052753 | S35: =MIN(IF(N35=Data[Index],Data[Upper Bollinger Band]),IF(N35=Data[Lag Index U],Data[Upper Bollinger Band])) -> 339.5313 | T35: =MAX(IF(N35=Data[Index],Data[Lower Bollinger Band],0),IF(N35=Data[Lag Index U],Data[Lower Bollinger Band],0)) -> 293.2721212 | U35: =MIN(IF(N35=Data[Index],Data[Lower Bollinger Band]),IF(N35=Data[Lag Index U],Data[Lower Bollinger Band])) -> 288.7912081
D36: 2022-01-06 | E36: 310.966217 | F36: =IF(Data[[#This Row],[Adj Close]]<E37,TRUE,"") -> TRUE | G36: =IF(F35=Data[[#This Row],[Up]],0,1) -> 1 | H36: =SUM($G$33:G36) -> 2 | I36: 1 | J36: =AVERAGE(OFFSET(E35,1,,-MIN(Bollinger_Band_Range,COUNTA(E$32:E35)))+Standard_Deviation*IFERROR(STDEV(OFFSET(E35,1,,-MIN(Bollinger_Band_Range,COUNTA(E$32:E35)))),0)) -> 349.3554825 | K36: =IFERROR(AVERAGE(OFFSET(E35,1,,-MIN(Bollinger_Band_Range,COUNTA(E$32:E35)))-Standard_Deviation*IFERROR(STDEV(OFFSET(E35,1,,-MIN(Bollinger_Band_Range,COUNTA(E$32:E35)))),0)),0) -> 291.3269975 | N36: 4 | O36: =INDEX(Data[Date],MATCH(N36,Data[Index],0)) -> 2022-01-13 | P36: =MAX(IF(N36=Data[Index],Data[Adj Close],0),IF(N36=Data[Lag Index U],Data[Adj Close],0)) -> 307.320404 | Q36: =MIN(IF(N36=Data[Index],Data[Adj Close]),IF(N36=Data[Lag Index U],Data[Adj Close])) -> 301.97049 | R36: =MAX(IF(N36=Data[Index],Data[Upper Bollinger Band],0),IF(N36=Data[Lag Index U],Data[Upper Bollinger Band],0)) -> 340.8052753 | S36: =MIN(IF(N36=Data[Index],Data[Upper Bollinger Band]),IF(N36=Data[Lag Index U],Data[Upper Bollinger Band])) -> 339.5757452 | T36: =MAX(IF(N36=Data[Index],Data[Lower Bollinger Band],0),IF(N36=Data[Lag Index U],Data[Lower Bollinger Band],0)) -> 288.7912081 | U36: =MIN(IF(N36=Data[Index],Data[Lower Bollinger Band]),IF(N36=Data[Lag Index U],Data[Lower Bollinger Band])) -> 288.5251706
D37: 2022-01-07 | E37: 311.124725 | F37: =IF(Data[[#This Row],[Adj Close]]<E38,TRUE,"") -> TRUE | G37: =IF(F36=Data[[#This Row],[Up]],0,1) -> 0 | H37: =SUM($G$33:G37) -> 2 | I37: 2 | J37: =AVERAGE(OFFSET(E36,1,,-MIN(Bollinger_Band_Range,COUNTA(E$32:E36)))+Standard_Deviation*IFERROR(STDEV(OFFSET(E36,1,,-MIN(Bollinger_Band_Range,COUNTA(E$32:E36)))),0)) -> 346.5027431 | K37: =IFERROR(AVERAGE(OFFSET(E36,1,,-MIN(Bollinger_Band_Range,COUNTA(E$32:E36)))-Standard_Deviation*IFERROR(STDEV(OFFSET(E36,1,,-MIN(Bollinger_Band_Range,COUNTA(E$32:E36)))),0)),0) -> 290.4931309 | N37: 5 | O37: =INDEX(Data[Date],MATCH(N37,Data[Index],0)) -> 2022-01-14 | P37: =MAX(IF(N37=Data[Index],Data[Adj Close],0),IF(N37=Data[Lag Index U],Data[Adj Close],0)) -> 307.320404 | Q37: =MIN(IF(N37=Data[Index],Data[Adj Close]),IF(N37=Data[Lag Index U],Data[Adj Close])) -> 299.840454 | R37: =MAX(IF(N37=Data[Index],Data[Upper Bollinger Band],0),IF(N37=Data[Lag Index U],Data[Upper Bollinger Band],0)) -> 340.1739085 | S37: =MIN(IF(N37=Data[Index],Data[Upper Bollinger Band]),IF(N37=Data[Lag Index U],Data[Upper Bollinger Band])) -> 339.5757452 | T37: =MAX(IF(N37=Data[Index],Data[Lower Bollinger Band],0),IF(N37=Data[Lag Index U],Data[Lower Bollinger Band],0)) -> 288.5251706 | U37: =MIN(IF(N37=Data[Index],Data[Lower Bollinger Band]),IF(N37=Data[Lag Index U],Data[Lower Bollinger Band])) -> 285.3433703
D38: 2022-01-10 | E38: 311.35257 | F38: =IF(Data[[#This Row],[Adj Close]]<E39,TRUE,"") -> TRUE | G38: =IF(F37=Data[[#This Row],[Up]],0,1) -> 0 | H38: =SUM($G$33:G38) -> 2 | I38: 2 | J38: =AVERAGE(OFFSET(E37,1,,-MIN(Bollinger_Band_Range,COUNTA(E$32:E37)))+Standard_Deviation*IFERROR(STDEV(OFFSET(E37,1,,-MIN(Bollinger_Band_Range,COUNTA(E$32:E37)))),0)) -> 343.8400359 | K38: =IFERROR(AVERAGE(OFFSET(E37,1,,-MIN(Bollinger_Band_Range,COUNTA(E$32:E37)))-Standard_Deviation*IFERROR(STDEV(OFFSET(E37,1,,-MIN(Bollinger_Band_Range,COUNTA(E$32:E37)))),0)),0) -> 290.7740491 | N38: 6 | O38: =INDEX(Data[Date],MATCH(N38,Data[Index],0)) -> 2022-01-18 | P38: =MAX(IF(N38=Data[Index],Data[Adj Close],0),IF(N38=Data[Lag Index U],Data[Adj Close],0)) -> 300.514099 | Q38: =MIN(IF(N38=Data[Index],Data[Adj Close]),IF(N38=Data[Lag Index U],Data[Adj Close])) -> 299.840454 | R38: =MAX(IF(N38=Data[Index],Data[Upper Bollinger Band],0),IF(N38=Data[Lag Index U],Data[Upper Bollinger Band],0)) -> 340.1739085 | S38: =MIN(IF(N38=Data[Index],Data[Upper Bollinger Band]),IF(N38=Data[Lag Index U],Data[Upper Bollinger Band])) -> 339.9467094 | T38: =MAX(IF(N38=Data[Index],Data[Lower Bollinger Band],0),IF(N38=Data[Lag Index U],Data[Lower Bollinger Band],0)) -> 285.3433703 | U38: =MIN(IF(N38=Data[Index],Data[Lower Bollinger Band]),IF(N38=Data[Lag Index U],Data[Lower Bollinger Band])) -> 283.5298126
D39: 2022-01-11 | E39: 312.056 | F39: =IF(Data[[#This Row],[Adj Close]]<E40,TRUE,"") -> TRUE | G39: =IF(F38=Data[[#This Row],[Up]],0,1) -> 0 | H39: =SUM($G$33:G39) -> 2 | I39: 2 | J39: =AVERAGE(OFFSET(E38,1,,-MIN(Bollinger_Band_Range,COUNTA(E$32:E38)))+Standard_Deviation*IFERROR(STDEV(OFFSET(E38,1,,-MIN(Bollinger_Band_Range,COUNTA(E$32:E38)))),0)) -> 341.4991874 | K39: =IFERROR(AVERAGE(OFFSET(E38,1,,-MIN(Bollinger_Band_Range,COUNTA(E$32:E38)))-Standard_Deviation*IFERROR(STDEV(OFFSET(E38,1,,-MIN(Bollinger_Band_Range,COUNTA(E$32:E38)))),0)),0) -> 291.6145997 | N39: 7 | O39: =INDEX(Data[Date],MATCH(N39,Data[Index],0)) -> 2022-01-19 | P39: =MAX(IF(N39=Data[Index],Data[Adj Close],0),IF(N39=Data[Lag Index U],Data[Adj Close],0)) -> 300.514099 | Q39: =MIN(IF(N39=Data[Index],Data[Adj Close]),IF(N39=Data[Lag Index U],Data[Adj Close])) -> 293.281891 | R39: =MAX(IF(N39=Data[Index],Data[Upper Bollinger Band],0),IF(N39=Data[Lag Index U],Data[Upper Bollinger Band],0)) -> 340.7411811 | S39: =MIN(IF(N39=Data[Index],Data[Upper Bollinger Band]),IF(N39=Data[Lag Index U],Data[Upper Bollinger Band])) -> 339.8169828 | T39: =MAX(IF(N39=Data[Index],Data[Lower Bollinger Band],0),IF(N39=Data[Lag Index U],Data[Lower Bollinger Band],0)) -> 283.5298126 | U39: =MIN(IF(N39=Data[Index],Data[Lower Bollinger Band]),IF(N39=Data[Lag Index U],Data[Lower Bollinger Band])) -> 278.2504181
D40: 2022-01-12 | E40: 315.31543 | F40: =IF(Data[[#This Row],[Adj Close]]<E41,TRUE,"") ->  | G40: =IF(F39=Data[[#This Row],[Up]],0,1) -> 1 | H40: =SUM($G$33:G40) -> 3 | I40: 2 | J40: =AVERAGE(OFFSET(E39,1,,-MIN(Bollinger_Band_Range,COUNTA(E$32:E39)))+Standard_Deviation*IFERROR(STDEV(OFFSET(E39,1,,-MIN(Bollinger_Band_Range,COUNTA(E$32:E39)))),0)) -> 339.5313 | K40: =IFERROR(AVERAGE(OFFSET(E39,1,,-MIN(Bollinger_Band_Range,COUNTA(E$32:E39)))-Standard_Deviation*IFERROR(STDEV(OFFSET(E39,1,,-MIN(Bollinger_Band_Range,COUNTA(E$32:E39)))),0)),0) -> 293.2721212 | N40: 8 | O40: =INDEX(Data[Date],MATCH(N40,Data[Index],0)) -> 2022-01-21 | P40: =MAX(IF(N40=Data[Index],Data[Adj Close],0),IF(N40=Data[Lag Index U],Data[Adj Close],0)) -> 293.618744 | Q40: =MIN(IF(N40=Data[Index],Data[Adj Close]),IF(N40=Data[Lag Index U],Data[Adj Close])) -> 293.281891 | R40: =MAX(IF(N40=Data[Index],Data[Upper Bollinger Band],0),IF(N40=Data[Lag Index U],Data[Upper Bollinger Band],0)) -> 340.9609907 | S40: =MIN(IF(N40=Data[Index],Data[Upper Bollinger Band]),IF(N40=Data[Lag Index U],Data[Upper Bollinger Band])) -> 340.7411811 | T40: =MAX(IF(N40=Data[Index],Data[Lower Bollinger Band],0),IF(N40=Data[Lag Index U],Data[Lower Bollinger Band],0)) -> 278.2504181 | U40: =MIN(IF(N40=Data[Index],Data[Lower Bollinger Band]),IF(N40=Data[Lag Index U],Data[Lower Bollinger Band])) -> 275.9136677
D41: 2022-01-13 | E41: 301.97049 | F41: =IF(Data[[#This Row],[Adj Close]]<E42,TRUE,"") -> TRUE | G41: =IF(F40=Data[[#This Row],[Up]],0,1) -> 1 | H41: =SUM($G$33:G41) -> 4 | I41: 3 | J41: =AVERAGE(OFFSET(E40,1,,-MIN(Bollinger_Band_Range,COUNTA(E$32:E40)))+Standard_Deviation*IFERROR(STDEV(OFFSET(E40,1,,-MIN(Bollinger_Band_Range,COUNTA(E$32:E40)))),0)) -> 340.8052753 | K41: =IFERROR(AVERAGE(OFFSET(E40,1,,-MIN(Bollinger_Band_Range,COUNTA(E$32:E40)))-Standard_Deviation*IFERROR(STDEV(OFFSET(E40,1,,-MIN(Bollinger_Band_Range,COUNTA(E$32:E40)))),0)),0) -> 288.7912081 | N41: 9 | O41: =INDEX(Data[Date],MATCH(N41,Data[Index],0)) -> 2022-01-24 | P41: =MAX(IF(N41=Data[Index],Data[Adj Close],0),IF(N41=Data[Lag Index U],Data[Adj Close],0)) -> 293.618744 | Q41: =MIN(IF(N41=Data[Index],Data[Adj Close]),IF(N41=Data[Lag Index U],Data[Adj Close])) -> 285.81192 | R41: =MAX(IF(N41=Data[Index],Data[Upper Bollinger Band],0),IF(N41=Data[Lag Index U],Data[Upper Bollinger Band],0)) -> 342.7334387 | S41: =MIN(IF(N41=Data[Index],Data[Upper Bollinger Band]),IF(N41=Data[Lag Index U],Data[Upper Bollinger Band])) -> 340.9609907 | T41: =MAX(IF(N41=Data[Index],Data[Lower Bollinger Band],0),IF(N41=Data[Lag Index U],Data[Lower Bollinger Band],0)) -> 275.9136677 | U41: =MIN(IF(N41=Data[Index],Data[Lower Bollinger Band]),IF(N41=Data[Lag Index U],Data[Lower Bollinger Band])) -> 271.3130436
D42: 2022-01-14 | E42: 307.320404 | F42: =IF(Data[[#This Row],[Adj Close]]<E43,TRUE,"") ->  | G42: =IF(F41=Data[[#This Row],[Up]],0,1) -> 1 | H42: =SUM($G$33:G42) -> 5 | I42: 4 | J42: =AVERAGE(OFFSET(E41,1,,-MIN(Bollinger_Band_Range,COUNTA(E$32:E41)))+Standard_Deviation*IFERROR(STDEV(OFFSET(E41,1,,-MIN(Bollinger_Band_Range,COUNTA(E$32:E41)))),0)) -> 339.5757452 | K42: =IFERROR(AVERAGE(OFFSET(E41,1,,-MIN(Bollinger_Band_Range,COUNTA(E$32:E41)))-Standard_Deviation*IFERROR(STDEV(OFFSET(E41,1,,-MIN(Bollinger_Band_Range,COUNTA(E$32:E41)))),0)),0) -> 288.5251706 | N42: 10 | O42: =INDEX(Data[Date],MATCH(N42,Data[Index],0)) -> 2022-01-25 | P42: =MAX(IF(N42=Data[Index],Data[Adj Close],0),IF(N42=Data[Lag Index U],Data[Adj Close],0)) -> 308.093109 | Q42: =MIN(IF(N42=Data[Index],Data[Adj Close]),IF(N42=Data[Lag Index U],Data[Adj Close])) -> 285.81192 | R42: =MAX(IF(N42=Data[Index],Data[Upper Bollinger Band],0),IF(N42=Data[Lag Index U],Data[Upper Bollinger Band],0)) -> 342.7334387 | S42: =MIN(IF(N42=Data[Index],Data[Upper Bollinger Band]),IF(N42=Data[Lag Index U],Data[Upper Bollinger Band])) -> 339.359533 | T42: =MAX(IF(N42=Data[Index],Data[Lower Bollinger Band],0),IF(N42=Data[Lag Index U],Data[Lower Bollinger Band],0)) -> 272.3280159 | U42: =MIN(IF(N42=Data[Index],Data[Lower Bollinger Band]),IF(N42=Data[Lag Index U],Data[Lower Bollinger Band])) -> 270.3517428
D43: 2022-01-18 | E43: 299.840454 | F43: =IF(Data[[#This Row],[Adj Close]]<E44,TRUE,"") -> TRUE | G43: =IF(F42=Data[[#This Row],[Up]],0,1) -> 1 | H43: =SUM($G$33:G43) -> 6 | I43: 5 | J43: =AVERAGE(OFFSET(E42,1,,-MIN(Bollinger_Band_Range,COUNTA(E$32:E42)))+Standard_Deviation*IFERROR(STDEV(OFFSET(E42,1,,-MIN(Bollinger_Band_Range,COUNTA(E$32:E42)))),0)) -> 340.1739085 | K43: =IFERROR(AVERAGE(OFFSET(E42,1,,-MIN(Bollinger_Band_Range,COUNTA(E$32:E42)))-Standard_Deviation*IFERROR(STDEV(OFFSET(E42,1,,-MIN(Bollinger_Band_Range,COUNTA(E$32:E42)))),0)),0) -> 285.3433703 | N43: 11 | O43: =INDEX(Data[Date],MATCH(N43,Data[Index],0)) -> 2022-01-31 | P43: =MAX(IF(N43=Data[Index],Data[Adj Close],0),IF(N43=Data[Lag Index U],Data[Adj Close],0)) -> 308.093109 | Q43: =MIN(IF(N43=Data[Index],Data[Adj Close]),IF(N43=Data[Lag Index U],Data[Adj Close])) -> 305.893738 | R43: =MAX(IF(N43=Data[Index],Data[Upper Bollinger Band],0),IF(N43=Data[Lag Index U],Data[Upper Bollinger Band],0)) -> 339.359533 | S43: =MIN(IF(N43=Data[Index],Data[Upper Bollinger Band]),IF(N43=Data[Lag Index U],Data[Upper Bollinger Band])) -> 333.0246047 | T43: =MAX(IF(N43=Data[Index],Data[Lower Bollinger Band],0),IF(N43=Data[Lag Index U],Data[Lower Bollinger Band],0)) -> 276.152318 | U43: =MIN(IF(N43=Data[Index],Data[Lower Bollinger Band]),IF(N43=Data[Lag Index U],Data[Lower Bollinger Band])) -> 272.3280159
D44: 2022-01-19 | E44: 300.514099 | F44: =IF(Data[[#This Row],[Adj Close]]<E45,TRUE,"") ->  | G44: =IF(F43=Data[[#This Row],[Up]],0,1) -> 1 | H44: =SUM($G$33:G44) -> 7 | I44: 6 | J44: =AVERAGE(OFFSET(E43,1,,-MIN(Bollinger_Band_Range,COUNTA(E$32:E43)))+Standard_Deviation*IFERROR(STDEV(OFFSET(E43,1,,-MIN(Bollinger_Band_Range,COUNTA(E$32:E43)))),0)) -> 339.9467094 | K44: =IFERROR(AVERAGE(OFFSET(E43,1,,-MIN(Bollinger_Band_Range,COUNTA(E$32:E43)))-Standard_Deviation*IFERROR(STDEV(OFFSET(E43,1,,-MIN(Bollinger_Band_Range,COUNTA(E$32:E43)))),0)),0) -> 283.5298126 | N44: 12 | O44: =INDEX(Data[Date],MATCH(N44,Data[Index],0)) -> 2022-02-01 | P44: =MAX(IF(N44=Data[Index],Data[Adj Close],0),IF(N44=Data[Lag Index U],Data[Adj Close],0)) -> 310.550079 | Q44: =MIN(IF(N44=Data[Index],Data[Adj Close]),IF(N44=Data[Lag Index U],Data[Adj Close])) -> 305.893738 | R44: =MAX(IF(N44=Data[Index],Data[Upper Bollinger Band],0),IF(N44=Data[Lag Index U],Data[Upper Bollinger Band],0)) -> 333.0246047 | S44: =MIN(IF(N44=Data[Index],Data[Upper Bollinger Band]),IF(N44=Data[Lag Index U],Data[Upper Bollinger Band])) -> 328.3856883 | T44: =MAX(IF(N44=Data[Index],Data[Lower Bollinger Band],0),IF(N44=Data[Lag Index U],Data[Lower Bollinger Band],0)) -> 279.2506673 | U44: =MIN(IF(N44=Data[Index],Data[Lower Bollinger Band]),IF(N44=Data[Lag Index U],Data[Lower Bollinger Band])) -> 276.152318
D45: 2022-01-20 | E45: 298.800171 | F45: =IF(Data[[#This Row],[Adj Close]]<E46,TRUE,"") ->  | G45: =IF(F44=Data[[#This Row],[Up]],0,1) -> 0 | H45: =SUM($G$33:G45) -> 7 | I45: 7 | J45: =AVERAGE(OFFSET(E44,1,,-MIN(Bollinger_Band_Range,COUNTA(E$32:E44)))+Standard_Deviation*IFERROR(STDEV(OFFSET(E44,1,,-MIN(Bollinger_Band_Range,COUNTA(E$32:E44)))),0)) -> 339.8169828 | K45: =IFERROR(AVERAGE(OFFSET(E44,1,,-MIN(Bollinger_Band_Range,COUNTA(E$32:E44)))-Standard_Deviation*IFERROR(STDEV(OFFSET(E44,1,,-MIN(Bollinger_Band_Range,COUNTA(E$32:E44)))),0)),0) -> 281.6690638 | N45: 13 | O45: =INDEX(Data[Date],MATCH(N45,Data[Index],0)) -> 2022-02-02 | P45: =MAX(IF(N45=Data[Index],Data[Adj Close],0),IF(N45=Data[Lag Index U],Data[Adj Close],0)) -> 310.550079 | Q45: =MIN(IF(N45=Data[Index],Data[Adj Close]),IF(N45=Data[Lag Index U],Data[Adj Close])) -> 298.45343 | R45: =MAX(IF(N45=Data[Index],Data[Upper Bollinger Band],0),IF(N45=Data[Lag Index U],Data[Upper Bollinger Band],0)) -> 328.3856883 | S45: =MIN(IF(N45=Data[Index],Data[Upper Bollinger Band]),IF(N45=Data[Lag Index U],Data[Upper Bollinger Band])) -> 326.9013075 | T45: =MAX(IF(N45=Data[Index],Data[Lower Bollinger Band],0),IF(N45=Data[Lag Index U],Data[Lower Bollinger Band],0)) -> 279.2506673 | U45: =MIN(IF(N45=Data[Index],Data[Lower Bollinger Band]),IF(N45=Data[Lag Index U],Data[Lower Bollinger Band])) -> 279.2360918
D46: 2022-01-21 | E46: 293.281891 | F46: =IF(Data[[#This Row],[Adj Close]]<E47,TRUE,"") -> TRUE | G46: =IF(F45=Data[[#This Row],[Up]],0,1) -> 1 | H46: =SUM($G$33:G46) -> 8 | I46: 7 | J46: =AVERAGE(OFFSET(E45,1,,-MIN(Bollinger_Band_Range,COUNTA(E$32:E45)))+Standard_Deviation*IFERROR(STDEV(OFFSET(E45,1,,-MIN(Bollinger_Band_Range,COUNTA(E$32:E45)))),0)) -> 340.7411811 | K46: =IFERROR(AVERAGE(OFFSET(E45,1,,-MIN(Bollinger_Band_Range,COUNTA(E$32:E45)))-Standard_Deviation*IFERROR(STDEV(OFFSET(E45,1,,-MIN(Bollinger_Band_Range,COUNTA(E$32:E45)))),0)),0) -> 278.2504181 | N46: 14 | O46: =INDEX(Data[Date],MATCH(N46,Data[Index],0)) -> 2022-02-03 | P46: =MAX(IF(N46=Data[Index],Data[Adj Close],0),IF(N46=Data[Lag Index U],Data[Adj Close],0)) -> 303.099884 | Q46: =MIN(IF(N46=Data[Index],Data[Adj Close]),IF(N46=Data[Lag Index U],Data[Adj Close])) -> 298.45343 | R46: =MAX(IF(N46=Data[Index],Data[Upper Bollinger Band],0),IF(N46=Data[Lag Index U],Data[Upper Bollinger Band],0)) -> 326.9013075 | S46: =MIN(IF(N46=Data[Index],Data[Upper Bollinger Band]),IF(N46=Data[Lag Index U],Data[Upper Bollinger Band])) -> 325.8482992 | T46: =MAX(IF(N46=Data[Index],Data[Lower Bollinger Band],0),IF(N46=Data[Lag Index U],Data[Lower Bollinger Band],0)) -> 279.5024668 | U46: =MIN(IF(N46=Data[Index],Data[Lower Bollinger Band]),IF(N46=Data[Lag Index U],Data[Lower Bollinger Band])) -> 279.2360918
D47: 2022-01-24 | E47: 293.618744 | F47: =IF(Data[[#This Row],[Adj Close]]<E48,TRUE,"") ->  | G47: =IF(F46=Data[[#This Row],[Up]],0,1) -> 1 | H47: =SUM($G$33:G47) -> 9 | I47: 8 | J47: =AVERAGE(OFFSET(E46,1,,-MIN(Bollinger_Band_Range,COUNTA(E$32:E46)))+Standard_Deviation*IFERROR(STDEV(OFFSET(E46,1,,-MIN(Bollinger_Band_Range,COUNTA(E$32:E46)))),0)) -> 340.9609907 | K47: =IFERROR(AVERAGE(OFFSET(E46,1,,-MIN(Bollinger_Band_Range,COUNTA(E$32:E46)))-Standard_Deviation*IFERROR(STDEV(OFFSET(E46,1,,-MIN(Bollinger_Band_Range,COUNTA(E$32:E46)))),0)),0) -> 275.9136677 | N47: 15 | O47: =INDEX(Data[Date],MATCH(N47,Data[Index],0)) -> 2022-02-04 | P47: =MAX(IF(N47=Data[Index],Data[Adj Close],0),IF(N47=Data[Lag Index U],Data[Adj Close],0)) -> 303.099884 | Q47: =MIN(IF(N47=Data[Index],Data[Adj Close]),IF(N47=Data[Lag Index U],Data[Adj Close])) -> 298.156219 | R47: =MAX(IF(N47=Data[Index],Data[Upper Bollinger Band],0),IF(N47=Data[Lag Index U],Data[Upper Bollinger Band],0)) -> 325.8482992 | S47: =MIN(IF(N47=Data[Index],Data[Upper Bollinger Band]),IF(N47=Data[Lag Index U],Data[Upper Bollinger Band])) -> 324.5848342 | T47: =MAX(IF(N47=Data[Index],Data[Lower Bollinger Band],0),IF(N47=Data[Lag Index U],Data[Lower Bollinger Band],0)) -> 279.5024668 | U47: =MIN(IF(N47=Data[Index],Data[Lower Bollinger Band]),IF(N47=Data[Lag Index U],Data[Lower Bollinger Band])) -> 279.4690812
D48: 2022-01-25 | E48: 285.81192 | F48: =IF(Data[[#This Row],[Adj Close]]<E49,TRUE,"") -> TRUE | G48: =IF(F47=Data[[#This Row],[Up]],0,1) -> 1 | H48: =SUM($G$33:G48) -> 10 | I48: 9 | J48: =AVERAGE(OFFSET(E47,1,,-MIN(Bollinger_Band_Range,COUNTA(E$32:E47)))+Standard_Deviation*IFERROR(STDEV(OFFSET(E47,1,,-MIN(Bollinger_Band_Range,COUNTA(E$32:E47)))),0)) -> 342.7334387 | K48: =IFERROR(AVERAGE(OFFSET(E47,1,,-MIN(Bollinger_Band_Range,COUNTA(E$32:E47)))-Standard_Deviation*IFERROR(STDEV(OFFSET(E47,1,,-MIN(Bollinger_Band_Range,COUNTA(E$32:E47)))),0)),0) -> 271.3130436 | N48: 16 | O48: =INDEX(Data[Date],MATCH(N48,Data[Index],0)) -> 2022-02-07 | P48: =MAX(IF(N48=Data[Index],Data[Adj Close],0),IF(N48=Data[Lag Index U],Data[Adj Close],0)) -> 308.320953 | Q48: =MIN(IF(N48=Data[Index],Data[Adj Close]),IF(N48=Data[Lag Index U],Data[Adj Close])) -> 298.156219 | R48: =MAX(IF(N48=Data[Index],Data[Upper Bollinger Band],0),IF(N48=Data[Lag Index U],Data[Upper Bollinger Band],0)) -> 324.5848342 | S48: =MIN(IF(N48=Data[Index],Data[Upper Bollinger Band]),IF(N48=Data[Lag Index U],Data[Upper Bollinger Band])) -> 322.206285 | T48: =MAX(IF(N48=Data[Index],Data[Lower Bollinger Band],0),IF(N48=Data[Lag Index U],Data[Lower Bollinger Band],0)) -> 280.5121384 | U48: =MIN(IF(N48=Data[Index],Data[Lower Bollinger Band]),IF(N48=Data[Lag Index U],Data[Lower Bollinger Band])) -> 279.4690812
D49: 2022-01-26 | E49: 293.955597 | F49: =IF(Data[[#This Row],[Adj Close]]<E50,TRUE,"") -> TRUE | G49: =IF(F48=Data[[#This Row],[Up]],0,1) -> 0 | H49: =SUM($G$33:G49) -> 10 | I49: 10 | J49: =AVERAGE(OFFSET(E48,1,,-MIN(Bollinger_Band_Range,COUNTA(E$32:E48)))+Standard_Deviation*IFERROR(STDEV(OFFSET(E48,1,,-MIN(Bollinger_Band_Range,COUNTA(E$32:E48)))),0)) -> 342.1142994 | K49: =IFERROR(AVERAGE(OFFSET(E48,1,,-MIN(Bollinger_Band_Range,COUNTA(E$32:E48)))-Standard_Deviation*IFERROR(STDEV(OFFSET(E48,1,,-MIN(Bollinger_Band_Range,COUNTA(E$32:E48)))),0)),0) -> 270.394813 | N49: 17 | O49: =INDEX(Data[Date],MATCH(N49,Data[Index],0)) -> 2022-02-09 | P49: =MAX(IF(N49=Data[Index],Data[Adj Close],0),IF(N49=Data[Lag Index U],Data[Adj Close],0)) -> 308.320953 | Q49: =MIN(IF(N49=Data[Index],Data[Adj Close]),IF(N49=Data[Lag Index U],Data[Adj Close])) -> 292.261475 | R49: =MAX(IF(N49=Data[Index],Data[Upper Bollinger Band],0),IF(N49=Data[Lag Index U],Data[Upper Bollinger Band],0)) -> 322.206285 | S49: =MIN(IF(N49=Data[Index],Data[Upper Bollinger Band]),IF(N49=Data[Lag Index U],Data[Upper Bollinger Band])) -> 318.4699265 | T49: =MAX(IF(N49=Data[Index],Data[Lower Bollinger Band],0),IF(N49=Data[Lag Index U],Data[Lower Bollinger Band],0)) -> 282.1878595 | U49: =MIN(IF(N49=Data[Index],Data[Lower Bollinger Band]),IF(N49=Data[Lag Index U],Data[Lower Bollinger Band])) -> 280.2014204
D50: 2022-01-27 | E50: 297.056549 | F50: =IF(Data[[#This Row],[Adj Close]]<E51,TRUE,"") -> TRUE | G50: =IF(F49=Data[[#This Row],[Up]],0,1) -> 0 | H50: =SUM($G$33:G50) -> 10 | I50: 10 | J50: =AVERAGE(OFFSET(E49,1,,-MIN(Bollinger_Band_Range,COUNTA(E$32:E49)))+Standard_Deviation*IFERROR(STDEV(OFFSET(E49,1,,-MIN(Bollinger_Band_Range,COUNTA(E$32:E49)))),0)) -> 341.1353688 | K50: =IFERROR(AVERAGE(OFFSET(E49,1,,-MIN(Bollinger_Band_Range,COUNTA(E$32:E49)))-Standard_Deviation*IFERROR(STDEV(OFFSET(E49,1,,-MIN(Bollinger_Band_Range,COUNTA(E$32:E49)))),0)),0) -> 270.3517428 | N50: 18 | O50: =INDEX(Data[Date],MATCH(N50,Data[Index],0)) -> 2022-02-14 | P50: =MAX(IF(N50=Data[Index],Data[Adj Close],0),IF(N50=Data[Lag Index U],Data[Adj Close],0)) -> 297.680695 | Q50: =MIN(IF(N50=Data[Index],Data[Adj Close]),IF(N50=Data[Lag Index U],Data[Adj Close])) -> 292.261475 | R50: =MAX(IF(N50=Data[Index],Data[Upper Bollinger Band],0),IF(N50=Data[Lag Index U],Data[Upper Bollinger Band],0)) -> 318.4699265 | S50: =MIN(IF(N50=Data[Index],Data[Upper Bollinger Band]),IF(N50=Data[Lag Index U],Data[Upper Bollinger Band])) -> 318.3897801 | T50: =MAX(IF(N50=Data[Index],Data[Lower Bollinger Band],0),IF(N50=Data[Lag Index U],Data[Lower Bollinger Band],0)) -> 280.2014204 | U50: =MIN(IF(N50=Data[Index],Data[Lower Bollinger Band]),IF(N50=Data[Lag Index U],Data[Lower Bollinger Band])) -> 280.0655909
D51: 2022-01-28 | E51: 305.398376 | F51: =IF(Data[[#This Row],[Adj Close]]<E52,TRUE,"") -> TRUE | G51: =IF(F50=Data[[#This Row],[Up]],0,1) -> 0 | H51: =SUM($G$33:G51) -> 10 | I51: 10 | J51: =AVERAGE(OFFSET(E50,1,,-MIN(Bollinger_Band_Range,COUNTA(E$32:E50)))+Standard_Deviation*IFERROR(STDEV(OFFSET(E50,1,,-MIN(Bollinger_Band_Range,COUNTA(E$32:E50)))),0)) -> 340.1208687 | K51: =IFERROR(AVERAGE(OFFSET(E50,1,,-MIN(Bollinger_Band_Range,COUNTA(E$32:E50)))-Standard_Deviation*IFERROR(STDEV(OFFSET(E50,1,,-MIN(Bollinger_Band_Range,COUNTA(E$32:E50)))),0)),0) -> 271.3299081 | N51: 19 | O51: =INDEX(Data[Date],MATCH(N51,Data[Index],0)) -> 2022-02-15 | P51: =MAX(IF(N51=Data[Index],Data[Adj Close],0),IF(N51=Data[Lag Index U],Data[Adj Close],0)) -> 297.680695 | Q51: =MIN(IF(N51=Data[Index],Data[Adj Close]),IF(N51=Data[Lag Index U],Data[Adj Close])) -> 278.24231 | R51: =MAX(IF(N51=Data[Index],Data[Upper Bollinger Band],0),IF(N51=Data[Lag Index U],Data[Upper Bollinger Band],0)) -> 322.9833277 | S51: =MIN(IF(N51=Data[Index],Data[Upper Bollinger Band]),IF(N51=Data[Lag Index U],Data[Upper Bollinger Band])) -> 318.2483807 | T51: =MAX(IF(N51=Data[Index],Data[Lower Bollinger Band],0),IF(N51=Data[Lag Index U],Data[Lower Bollinger Band],0)) -> 280.0655909 | U51: =MIN(IF(N51=Data[Index],Data[Lower Bollinger Band]),IF(N51=Data[Lag Index U],Data[Lower Bollinger Band])) -> 271.8381169
D52: 2022-01-31 | E52: 308.093109 | F52: =IF(Data[[#This Row],[Adj Close]]<E53,TRUE,"") ->  | G52: =IF(F51=Data[[#This Row],[Up]],0,1) -> 1 | H52: =SUM($G$33:G52) -> 11 | I52: 10 | J52: =AVERAGE(OFFSET(E51,1,,-MIN(Bollinger_Band_Range,COUNTA(E$32:E51)))+Standard_Deviation*IFERROR(STDEV(OFFSET(E51,1,,-MIN(Bollinger_Band_Range,COUNTA(E$32:E51)))),0)) -> 339.359533 | K52: =IFERROR(AVERAGE(OFFSET(E51,1,,-MIN(Bollinger_Band_Range,COUNTA(E$32:E51)))-Standard_Deviation*IFERROR(STDEV(OFFSET(E51,1,,-MIN(Bollinger_Band_Range,COUNTA(E$32:E51)))),0)),0) -> 272.3280159 | N52: 20 | O52: =INDEX(Data[Date],MATCH(N52,Data[Index],0)) -> 2022-02-23 | P52: =MAX(IF(N52=Data[Index],Data[Adj Close],0),IF(N52=Data[Lag Index U],Data[Adj Close],0)) -> 296.628357 | Q52: =MIN(IF(N52=Data[Index],Data[Adj Close]),IF(N52=Data[Lag Index U],Data[Adj Close])) -> 278.24231 | R52: =MAX(IF(N52=Data[Index],Data[Upper Bollinger Band],0),IF(N52=Data[Lag Index U],Data[Upper Bollinger Band],0)) -> 323.0237384 | S52: =MIN(IF(N52=Data[Index],Data[Upper Bollinger Band]),IF(N52=Data[Lag Index U],Data[Upper Bollinger Band])) -> 321.8788751 | T52: =MAX(IF(N52=Data[Index],Data[Lower Bollinger Band],0),IF(N52=Data[Lag Index U],Data[Lower Bollinger Band],0)) -> 271.8381169 | U52: =MIN(IF(N52=Data[Index],Data[Lower Bollinger Band]),IF(N52=Data[Lag Index U],Data[Lower Bollinger Band])) -> 271.5118686
D53: 2022-02-01 | E53: 305.893738 | F53: =IF(Data[[#This Row],[Adj Close]]<E54,TRUE,"") -> TRUE | G53: =IF(F52=Data[[#This Row],[Up]],0,1) -> 1 | H53: =SUM($G$33:G53) -> 12 | I53: 11 | J53: =AVERAGE(OFFSET(E52,1,,-MIN(Bollinger_Band_Range,COUNTA(E$32:E52)))+Standard_Deviation*IFERROR(STDEV(OFFSET(E52,1,,-MIN(Bollinger_Band_Range,COUNTA(E$32:E52)))),0)) -> 333.0246047 | K53: =IFERROR(AVERAGE(OFFSET(E52,1,,-MIN(Bollinger_Band_Range,COUNTA(E$32:E52)))-Standard_Deviation*IFERROR(STDEV(OFFSET(E52,1,,-MIN(Bollinger_Band_Range,COUNTA(E$32:E52)))),0)),0) -> 276.152318 | N53: 21 | O53: =INDEX(Data[Date],MATCH(N53,Data[Index],0)) -> 2022-02-28 | P53: =MAX(IF(N53=Data[Index],Data[Adj Close],0),IF(N53=Data[Lag Index U],Data[Adj Close],0)) -> 296.628357 | Q53: =MIN(IF(N53=Data[Index],Data[Adj Close]),IF(N53=Data[Lag Index U],Data[Adj Close])) -> 292.816162 | R53: =MAX(IF(N53=Data[Index],Data[Upper Bollinger Band],0),IF(N53=Data[Lag Index U],Data[Upper Bollinger Band],0)) -> 321.8788751 | S53: =MIN(IF(N53=Data[Index],Data[Upper Bollinger Band]),IF(N53=Data[Lag Index U],Data[Upper Bollinger Band])) -> 319.9225407 | T53: =MAX(IF(N53=Data[Index],Data[Lower Bollinger Band],0),IF(N53=Data[Lag Index U],Data[Lower Bollinger Band],0)) -> 272.1547725 | U53: =MIN(IF(N53=Data[Index],Data[Lower Bollinger Band]),IF(N53=Data[Lag Index U],Data[Lower Bollinger Band])) -> 271.7261328
D54: 2022-02-02 | E54: 310.550079 | F54: =IF(Data[[#This Row],[Adj Close]]<E55,TRUE,"") ->  | G54: =IF(F53=Data[[#This Row],[Up]],0,1) -> 1 | H54: =SUM($G$33:G54) -> 13 | I54: 12 | J54: =AVERAGE(OFFSET(E53,1,,-MIN(Bollinger_Band_Range,COUNTA(E$32:E53)))+Standard_Deviation*IFERROR(STDEV(OFFSET(E53,1,,-MIN(Bollinger_Band_Range,COUNTA(E$32:E53)))),0)) -> 328.3856883 | K54: =IFERROR(AVERAGE(OFFSET(E53,1,,-MIN(Bollinger_Band_Range,COUNTA(E$32:E53)))-Standard_Deviation*IFERROR(STDEV(OFFSET(E53,1,,-MIN(Bollinger_Band_Range,COUNTA(E$32:E53)))),0)),0) -> 279.2506673 | N54: 22 | O54: =INDEX(Data[Date],MATCH(N54,Data[Index],0)) -> 2022-03-01 | P54: =MAX(IF(N54=Data[Index],Data[Adj Close],0),IF(N54=Data[Lag Index U],Data[Adj Close],0)) -> 298.01825 | Q54: =MIN(IF(N54=Data[Index],Data[Adj Close]),IF(N54=Data[Lag Index U],Data[Adj Close])) -> 292.816162 | R54: =MAX(IF(N54=Data[Index],Data[Upper Bollinger Band],0),IF(N54=Data[Lag Index U],Data[Upper Bollinger Band],0)) -> 319.9225407 | S54: =MIN(IF(N54=Data[Index],Data[Upper Bollinger Band]),IF(N54=Data[Lag Index U],Data[Upper Bollinger Band])) -> 318.5538709 | T54: =MAX(IF(N54=Data[Index],Data[Lower Bollinger Band],0),IF(N54=Data[Lag Index U],Data[Lower Bollinger Band],0)) -> 272.7358935 | U54: =MIN(IF(N54=Data[Index],Data[Lower Bollinger Band]),IF(N54=Data[Lag Index U],Data[Lower Bollinger Band])) -> 272.1547725
D55: 2022-02-03 | E55: 298.45343 | F55: =IF(Data[[#This Row],[Adj Close]]<E56,TRUE,"") -> TRUE | G55: =IF(F54=Data[[#This Row],[Up]],0,1) -> 1 | H55: =SUM($G$33:G55) -> 14 | I55: 13 | J55: =AVERAGE(OFFSET(E54,1,,-MIN(Bollinger_Band_Range,COUNTA(E$32:E54)))+Standard_Deviation*IFERROR(STDEV(OFFSET(E54,1,,-MIN(Bollinger_Band_Range,COUNTA(E$32:E54)))),0)) -> 326.9013075 | K55: =IFERROR(AVERAGE(OFFSET(E54,1,,-MIN(Bollinger_Band_Range,COUNTA(E$32:E54)))-Standard_Deviation*IFERROR(STDEV(OFFSET(E54,1,,-MIN(Bollinger_Band_Range,COUNTA(E$32:E54)))),0)),0) -> 279.2360918 | N55: 23 | O55: =INDEX(Data[Date],MATCH(N55,Data[Index],0)) -> 2022-03-02 | P55: =MAX(IF(N55=Data[Index],Data[Adj Close],0),IF(N55=Data[Lag Index U],Data[Adj Close],0)) -> 298.01825 | Q55: =MIN(IF(N55=Data[Index],Data[Adj Close]),IF(N55=Data[Lag Index U],Data[Adj Close])) -> 273.854309 | R55: =MAX(IF(N55=Data[Index],Data[Upper Bollinger Band],0),IF(N55=Data[Lag Index U],Data[Upper Bollinger Band],0)) -> 318.5538709 | S55: =MIN(IF(N55=Data[Index],Data[Upper Bollinger Band]),IF(N55=Data[Lag Index U],Data[Upper Bollinger Band])) -> 314.9856933 | T55: =MAX(IF(N55=Data[Index],Data[Lower Bollinger Band],0),IF(N55=Data[Lag Index U],Data[Lower Bollinger Band],0)) -> 274.4452666 | U55: =MIN(IF(N55=Data[Index],Data[Lower Bollinger Band]),IF(N55=Data[Lag Index U],Data[Lower Bollinger Band])) -> 265.9563833
D56: 2022-02-04 | E56: 303.099884 | F56: =IF(Data[[#This Row],[Adj Close]]<E57,TRUE,"") ->  | G56: =IF(F55=Data[[#This Row],[Up]],0,1) -> 1 | H56: =SUM($G$33:G56) -> 15 | I56: 14 | J56: =AVERAGE(OFFSET(E55,1,,-MIN(Bollinger_Band_Range,COUNTA(E$32:E55)))+Standard_Deviation*IFERROR(STDEV(OFFSET(E55,1,,-MIN(Bollinger_Band_Range,COUNTA(E$32:E55)))),0)) -> 325.8482992 | K56: =IFERROR(AVERAGE(OFFSET(E55,1,,-MIN(Bollinger_Band_Range,COUNTA(E$32:E55)))-Standard_Deviation*IFERROR(STDEV(OFFSET(E55,1,,-MIN(Bollinger_Band_Range,COUNTA(E$32:E55)))),0)),0) -> 279.5024668 | N56: 24 | O56: =INDEX(Data[Date],MATCH(N56,Data[Index],0)) -> 2022-03-08 | P56: =MAX(IF(N56=Data[Index],Data[Adj Close],0),IF(N56=Data[Lag Index U],Data[Adj Close],0)) -> 286.412811 | Q56: =MIN(IF(N56=Data[Index],Data[Adj Close]),IF(N56=Data[Lag Index U],Data[Adj Close])) -> 273.854309 | R56: =MAX(IF(N56=Data[Index],Data[Upper Bollinger Band],0),IF(N56=Data[Lag Index U],Data[Upper Bollinger Band],0)) -> 317.5362772 | S56: =MIN(IF(N56=Data[Index],Data[Upper Bollinger Band]),IF(N56=Data[Lag Index U],Data[Upper Bollinger Band])) -> 315.9962904 | T56: =MAX(IF(N56=Data[Index],Data[Lower Bollinger Band],0),IF(N56=Data[Lag Index U],Data[Lower Bollinger Band],0)) -> 265.9643815 | U56: =MIN(IF(N56=Data[Index],Data[Lower Bollinger Band]),IF(N56=Data[Lag Index U],Data[Lower Bollinger Band])) -> 265.9563833
D57: 2022-02-07 | E57: 298.156219 | F57: =IF(Data[[#This Row],[Adj Close]]<E58,TRUE,"") -> TRUE | G57: =IF(F56=Data[[#This Row],[Up]],0,1) -> 1 | H57: =SUM($G$33:G57) -> 16 | I57: 15 | J57: =AVERAGE(OFFSET(E56,1,,-MIN(Bollinger_Band_Range,COUNTA(E$32:E56)))+Standard_Deviation*IFERROR(STDEV(OFFSET(E56,1,,-MIN(Bollinger_Band_Range,COUNTA(E$32:E56)))),0)) -> 324.5848342 | K57: =IFERROR(AVERAGE(OFFSET(E56,1,,-MIN(Bollinger_Band_Range,COUNTA(E$32:E56)))-Standard_Deviation*IFERROR(STDEV(OFFSET(E56,1,,-MIN(Bollinger_Band_Range,COUNTA(E$32:E56)))),0)),0) -> 279.4690812 | N57: 25 | O57: =INDEX(Data[Date],MATCH(N57,Data[Index],0)) -> 2022-03-09 | P57: =MAX(IF(N57=Data[Index],Data[Adj Close],0),IF(N57=Data[Lag Index U],Data[Adj Close],0)) -> 286.412811 | Q57: =MIN(IF(N57=Data[Index],Data[Adj Close]),IF(N57=Data[Lag Index U],Data[Adj Close])) -> 274.440063 | R57: =MAX(IF(N57=Data[Index],Data[Upper Bollinger Band],0),IF(N57=Data[Lag Index U],Data[Upper Bollinger Band],0)) -> 315.9962904 | S57: =MIN(IF(N57=Data[Index],Data[Upper Bollinger Band]),IF(N57=Data[Lag Index U],Data[Upper Bollinger Band])) -> 311.0954437 | T57: =MAX(IF(N57=Data[Index],Data[Lower Bollinger Band],0),IF(N57=Data[Lag Index U],Data[Lower Bollinger Band],0)) -> 267.4888392 | U57: =MIN(IF(N57=Data[Index],Data[Lower Bollinger Band]),IF(N57=Data[Lag Index U],Data[Lower Bollinger Band])) -> 263.5804077
D58: 2022-02-08 | E58: 301.732697 | F58: =IF(Data[[#This Row],[Adj Close]]<E59,TRUE,"") -> TRUE | G58: =IF(F57=Data[[#This Row],[Up]],0,1) -> 0 | H58: =SUM($G$33:G58) -> 16 | I58: 16 | J58: =AVERAGE(OFFSET(E57,1,,-MIN(Bollinger_Band_Range,COUNTA(E$32:E57)))+Standard_Deviation*IFERROR(STDEV(OFFSET(E57,1,,-MIN(Bollinger_Band_Range,COUNTA(E$32:E57)))),0)) -> 323.1216937 | K58: =IFERROR(AVERAGE(OFFSET(E57,1,,-MIN(Bollinger_Band_Range,COUNTA(E$32:E57)))-Standard_Deviation*IFERROR(STDEV(OFFSET(E57,1,,-MIN(Bollinger_Band_Range,COUNTA(E$32:E57)))),0)),0) -> 279.9702344 | N58: 26 | O58: =INDEX(Data[Date],MATCH(N58,Data[Index],0)) -> 2022-03-14 | P58: =MAX(IF(N58=Data[Index],Data[Adj Close],0),IF(N58=Data[Lag Index U],Data[Adj Close],0)) -> 298.2565 | Q58: =MIN(IF(N58=Data[Index],Data[Adj Close]),IF(N58=Data[Lag Index U],Data[Adj Close])) -> 274.440063 | R58: =MAX(IF(N58=Data[Index],Data[Upper Bollinger Band],0),IF(N58=Data[Lag Index U],Data[Upper Bollinger Band],0)) -> 311.9615326 | S58: =MIN(IF(N58=Data[Index],Data[Upper Bollinger Band]),IF(N58=Data[Lag Index U],Data[Upper Bollinger Band])) -> 309.4100188 | T58: =MAX(IF(N58=Data[Index],Data[Lower Bollinger Band],0),IF(N58=Data[Lag Index U],Data[Lower Bollinger Band],0)) -> 264.4460785 | U58: =MIN(IF(N58=Data[Index],Data[Lower Bollinger Band]),IF(N58=Data[Lag Index U],Data[Lower Bollinger Band])) -> 263.3728748
D59: 2022-02-09 | E59: 308.320953 | F59: =IF(Data[[#This Row],[Adj Close]]<E60,TRUE,"") ->  | G59: =IF(F58=Data[[#This Row],[Up]],0,1) -> 1 | H59: =SUM($G$33:G59) -> 17 | I59: 16 | J59: =AVERAGE(OFFSET(E58,1,,-MIN(Bollinger_Band_Range,COUNTA(E$32:E58)))+Standard_Deviation*IFERROR(STDEV(OFFSET(E58,1,,-MIN(Bollinger_Band_Range,COUNTA(E$32:E58)))),0)) -> 322.206285 | K59: =IFERROR(AVERAGE(OFFSET(E58,1,,-MIN(Bollinger_Band_Range,COUNTA(E$32:E58)))-Standard_Deviation*IFERROR(STDEV(OFFSET(E58,1,,-MIN(Bollinger_Band_Range,COUNTA(E$32:E58)))),0)),0) -> 280.5121384 | N59: 27 | O59: =INDEX(Data[Date],MATCH(N59,Data[Index],0)) -> 2022-03-18 | P59: =MAX(IF(N59=Data[Index],Data[Adj Close],0),IF(N59=Data[Lag Index U],Data[Adj Close],0)) -> 298.2565 | Q59: =MIN(IF(N59=Data[Index],Data[Adj Close]),IF(N59=Data[Lag Index U],Data[Adj Close])) -> 296.995697 | R59: =MAX(IF(N59=Data[Index],Data[Upper Bollinger Band],0),IF(N59=Data[Lag Index U],Data[Upper Bollinger Band],0)) -> 312.5045841 | S59: =MIN(IF(N59=Data[Index],Data[Upper Bollinger Band]),IF(N59=Data[Lag Index U],Data[Upper Bollinger Band])) -> 311.1301136 | T59: =MAX(IF(N59=Data[Index],Data[Lower Bollinger Band],0),IF(N59=Data[Lag Index U],Data[Lower Bollinger Band],0)) -> 263.6889659 | U59: =MIN(IF(N59=Data[Index],Data[Lower Bollinger Band]),IF(N59=Data[Lag Index U],Data[Lower Bollinger Band])) -> 263.4293727
D60: 2022-02-10 | E60: 299.572998 | F60: =IF(Data[[#This Row],[Adj Close]]<E61,TRUE,"") ->  | G60: =IF(F59=Data[[#This Row],[Up]],0,1) -> 0 | H60: =SUM($G$33:G60) -> 17 | I60: 17 | J60: =AVERAGE(OFFSET(E59,1,,-MIN(Bollinger_Band_Range,COUNTA(E$32:E59)))+Standard_Deviation*IFERROR(STDEV(OFFSET(E59,1,,-MIN(Bollinger_Band_Range,COUNTA(E$32:E59)))),0)) -> 318.9563207 | K60: =IFERROR(AVERAGE(OFFSET(E59,1,,-MIN(Bollinger_Band_Range,COUNTA(E$32:E59)))-Standard_Deviation*IFERROR(STDEV(OFFSET(E59,1,,-MIN(Bollinger_Band_Range,COUNTA(E$32:E59)))),0)),0) -> 282.1878595 | N60: 28 | O60: =INDEX(Data[Date],MATCH(N60,Data[Index],0)) -> 2022-03-21 | P60: =MAX(IF(N60=Data[Index],Data[Adj Close],0),IF(N60=Data[Lag Index U],Data[Adj Close],0)) -> 301.860229 | Q60: =MIN(IF(N60=Data[Index],Data[Adj Close]),IF(N60=Data[Lag Index U],Data[Adj Close])) -> 296.995697 | R60: =MAX(IF(N60=Data[Index],Data[Upper Bollinger Band],0),IF(N60=Data[Lag Index U],Data[Upper Bollinger Band],0)) -> 314.9453183 | S60: =MIN(IF(N60=Data[Index],Data[Upper Bollinger Band]),IF(N60=Data[Lag Index U],Data[Upper Bollinger Band])) -> 312.5045841 | T60: =MAX(IF(N60=Data[Index],Data[Lower Bollinger Band],0),IF(N60=Data[Lag Index U],Data[Lower Bollinger Band],0)) -> 263.4293727 | U60: =MIN(IF(N60=Data[Index],Data[Lower Bollinger Band]),IF(N60=Data[Lag Index U],Data[Lower Bollinger Band])) -> 262.6108156
D61: 2022-02-11 | E61: 292.301086 | F61: =IF(Data[[#This Row],[Adj Close]]<E62,TRUE,"") ->  | G61: =IF(F60=Data[[#This Row],[Up]],0,1) -> 0 | H61: =SUM($G$33:G61) -> 17 | I61: 17 | J61: =AVERAGE(OFFSET(E60,1,,-MIN(Bollinger_Band_Range,COUNTA(E$32:E60)))+Standard_Deviation*IFERROR(STDEV(OFFSET(E60,1,,-MIN(Bollinger_Band_Range,COUNTA(E$32:E60)))),0)) -> 319.2522241 | K61: =IFERROR(AVERAGE(OFFSET(E60,1,,-MIN(Bollinger_Band_Range,COUNTA(E$32:E60)))-Standard_Deviation*IFERROR(STDEV(OFFSET(E60,1,,-MIN(Bollinger_Band_Range,COUNTA(E$32:E60)))),0)),0) -> 280.9250157 | N61: 29 | O61: =INDEX(Data[Date],MATCH(N61,Data[Index],0)) -> 2022-03-22 | P61: =MAX(IF(N61=Data[Index],Data[Adj Close],0),IF(N61=Data[Lag Index U],Data[Adj Close],0)) -> 301.860229 | Q61: =MIN(IF(N61=Data[Index],Data[Adj Close]),IF(N61=Data[Lag Index U],Data[Adj Close])) -> 297.323273 | R61: =MAX(IF(N61=Data[Index],Data[Upper Bollinger Band],0),IF(N61=Data[Lag Index U],Data[Upper Bollinger Band],0)) -> 315.3857839 | S61: =MIN(IF(N61=Data[Index],Data[Upper Bollinger Band]),IF(N61=Data[Lag Index U],Data[Upper Bollinger Band])) -> 314.9453183 | T61: =MAX(IF(N61=Data[Index],Data[Lower Bollinger Band],0),IF(N61=Data[Lag Index U],Data[Lower Bollinger Band],0)) -> 264.0784463 | U61: =MIN(IF(N61=Data[Index],Data[Lower Bollinger Band]),IF(N61=Data[Lag Index U],Data[Lower Bollinger Band])) -> 262.6108156
D62: 2022-02-14 | E62: 292.261475 | F62: =IF(Data[[#This Row],[Adj Close]]<E63,TRUE,"") -> TRUE | G62: =IF(F61=Data[[#This Row],[Up]],0,1) -> 1 | H62: =SUM($G$33:G62) -> 18 | I62: 17 | J62: =AVERAGE(OFFSET(E61,1,,-MIN(Bollinger_Band_Range,COUNTA(E$32:E61)))+Standard_Deviation*IFERROR(STDEV(OFFSET(E61,1,,-MIN(Bollinger_Band_Range,COUNTA(E$32:E61)))),0)) -> 318.4699265 | K62: =IFERROR(AVERAGE(OFFSET(E61,1,,-MIN(Bollinger_Band_Range,COUNTA(E$32:E61)))-Standard_Deviation*IFERROR(STDEV(OFFSET(E61,1,,-MIN(Bollinger_Band_Range,COUNTA(E$32:E61)))),0)),0) -> 280.2014204 | N62: 30 | O62: =INDEX(Data[Date],MATCH(N62,Data[Index],0)) -> 2022-03-23 | P62: =MAX(IF(N62=Data[Index],Data[Adj Close],0),IF(N62=Data[Lag Index U],Data[Adj Close],0)) -> 301.899963 | Q62: =MIN(IF(N62=Data[Index],Data[Adj Close]),IF(N62=Data[Lag Index U],Data[Adj Close])) -> 297.323273 | R62: =MAX(IF(N62=Data[Index],Data[Upper Bollinger Band],0),IF(N62=Data[Lag Index U],Data[Upper Bollinger Band],0)) -> 317.0855857 | S62: =MIN(IF(N62=Data[Index],Data[Upper Bollinger Band]),IF(N62=Data[Lag Index U],Data[Upper Bollinger Band])) -> 315.3857839 | T62: =MAX(IF(N62=Data[Index],Data[Lower Bollinger Band],0),IF(N62=Data[Lag Index U],Data[Lower Bollinger Band],0)) -> 264.0784463 | U62: =MIN(IF(N62=Data[Index],Data[Lower Bollinger Band]),IF(N62=Data[Lag Index U],Data[Lower Bollinger Band])) -> 263.3227698
D63: 2022-02-15 | E63: 297.680695 | F63: =IF(Data[[#This Row],[Adj Close]]<E64,TRUE,"") ->  | G63: =IF(F62=Data[[#This Row],[Up]],0,1) -> 1 | H63: =SUM($G$33:G63) -> 19 | I63: 18 | J63: =AVERAGE(OFFSET(E62,1,,-MIN(Bollinger_Band_Range,COUNTA(E$32:E62)))+Standard_Deviation*IFERROR(STDEV(OFFSET(E62,1,,-MIN(Bollinger_Band_Range,COUNTA(E$32:E62)))),0)) -> 318.3897801 | K63: =IFERROR(AVERAGE(OFFSET(E62,1,,-MIN(Bollinger_Band_Range,COUNTA(E$32:E62)))-Standard_Deviation*IFERROR(STDEV(OFFSET(E62,1,,-MIN(Bollinger_Band_Range,COUNTA(E$32:E62)))),0)),0) -> 280.0655909 | N63: 31 | O63: =INDEX(Data[Date],MATCH(N63,Data[Index],0)) -> 2022-03-24 | P63: =MAX(IF(N63=Data[Index],Data[Adj Close],0),IF(N63=Data[Lag Index U],Data[Adj Close],0)) -> 301.899963 | Q63: =MIN(IF(N63=Data[Index],Data[Adj Close]),IF(N63=Data[Lag Index U],Data[Adj Close])) -> 301.482971 | R63: =MAX(IF(N63=Data[Index],Data[Upper Bollinger Band],0),IF(N63=Data[Lag Index U],Data[Upper Bollinger Band],0)) -> 318.2744954 | S63: =MIN(IF(N63=Data[Index],Data[Upper Bollinger Band]),IF(N63=Data[Lag Index U],Data[Upper Bollinger Band])) -> 317.0855857 | T63: =MAX(IF(N63=Data[Index],Data[Lower Bollinger Band],0),IF(N63=Data[Lag Index U],Data[Lower Bollinger Band],0)) -> 263.3227698 | U63: =MIN(IF(N63=Data[Index],Data[Lower Bollinger Band]),IF(N63=Data[Lag Index U],Data[Lower Bollinger Band])) -> 262.7662484
D64: 2022-02-16 | E64: 297.333191 | F64: =IF(Data[[#This Row],[Adj Close]]<E65,TRUE,"") ->  | G64: =IF(F63=Data[[#This Row],[Up]],0,1) -> 0 | H64: =SUM($G$33:G64) -> 19 | I64: 19 | J64: =AVERAGE(OFFSET(E63,1,,-MIN(Bollinger_Band_Range,COUNTA(E$32:E63)))+Standard_Deviation*IFERROR(STDEV(OFFSET(E63,1,,-MIN(Bollinger_Band_Range,COUNTA(E$32:E63)))),0)) -> 318.2483807 | K64: =IFERROR(AVERAGE(OFFSET(E63,1,,-MIN(Bollinger_Band_Range,COUNTA(E$32:E63)))-Standard_Deviation*IFERROR(STDEV(OFFSET(E63,1,,-MIN(Bollinger_Band_Range,COUNTA(E$32:E63)))),0)),0) -> 279.8888995 | N64: 32 | O64: =INDEX(Data[Date],MATCH(N64,Data[Index],0)) -> 2022-03-25 | P64: =MAX(IF(N64=Data[Index],Data[Adj Close],0),IF(N64=Data[Lag Index U],Data[Adj Close],0)) -> 313.128113 | Q64: =MIN(IF(N64=Data[Index],Data[Adj Close]),IF(N64=Data[Lag Index U],Data[Adj Close])) -> 301.482971 | R64: =MAX(IF(N64=Data[Index],Data[Upper Bollinger Band],0),IF(N64=Data[Lag Index U],Data[Upper Bollinger Band],0)) -> 325.5947898 | S64: =MIN(IF(N64=Data[Index],Data[Upper Bollinger Band]),IF(N64=Data[Lag Index U],Data[Upper Bollinger Band])) -> 318.2744954 | T64: =MAX(IF(N64=Data[Index],Data[Lower Bollinger Band],0),IF(N64=Data[Lag Index U],Data[Lower Bollinger Band],0)) -> 262.7662484 | U64: =MIN(IF(N64=Data[Index],Data[Lower Bollinger Band]),IF(N64=Data[Lag Index U],Data[Lower Bollinger Band])) -> 258.6595343
D65: 2022-02-17 | E65: 288.626678 | F65: =IF(Data[[#This Row],[Adj Close]]<E66,TRUE,"") ->  | G65: =IF(F64=Data[[#This Row],[Up]],0,1) -> 0 | H65: =SUM($G$33:G65) -> 19 | I65: 19 | J65: =AVERAGE(OFFSET(E64,1,,-MIN(Bollinger_Band_Range,COUNTA(E$32:E64)))+Standard_Deviation*IFERROR(STDEV(OFFSET(E64,1,,-MIN(Bollinger_Band_Range,COUNTA(E$32:E64)))),0)) -> 318.9811542 | K65: =IFERROR(AVERAGE(OFFSET(E64,1,,-MIN(Bollinger_Band_Range,COUNTA(E$32:E64)))-Standard_Deviation*IFERROR(STDEV(OFFSET(E64,1,,-MIN(Bollinger_Band_Range,COUNTA(E$32:E64)))),0)),0) -> 278.1387767 | N65: 33 | O65: =INDEX(Data[Date],MATCH(N65,Data[Index],0)) -> 2022-03-29 | P65: =MAX(IF(N65=Data[Index],Data[Adj Close],0),IF(N65=Data[Lag Index U],Data[Adj Close],0)) -> 313.128113 | Q65: =MIN(IF(N65=Data[Index],Data[Adj Close]),IF(N65=Data[Lag Index U],Data[Adj Close])) -> 306.079468 | R65: =MAX(IF(N65=Data[Index],Data[Upper Bollinger Band],0),IF(N65=Data[Lag Index U],Data[Upper Bollinger Band],0)) -> 330.2735258 | S65: =MIN(IF(N65=Data[Index],Data[Upper Bollinger Band]),IF(N65=Data[Lag Index U],Data[Upper Bollinger Band])) -> 325.5947898 | T65: =MAX(IF(N65=Data[Index],Data[Lower Bollinger Band],0),IF(N65=Data[Lag Index U],Data[Lower Bollinger Band],0)) -> 258.6595343 | U65: =MIN(IF(N65=Data[Index],Data[Lower Bollinger Band]),IF(N65=Data[Lag Index U],Data[Lower Bollinger Band])) -> 256.5679382
D66: 2022-02-18 | E66: 285.846924 | F66: =IF(Data[[#This Row],[Adj Close]]<E67,TRUE,"") ->  | G66: =IF(F65=Data[[#This Row],[Up]],0,1) -> 0 | H66: =SUM($G$33:G66) -> 19 | I66: 19 | J66: =AVERAGE(OFFSET(E65,1,,-MIN(Bollinger_Band_Range,COUNTA(E$32:E65)))+Standard_Deviation*IFERROR(STDEV(OFFSET(E65,1,,-MIN(Bollinger_Band_Range,COUNTA(E$32:E65)))),0)) -> 320.0760517 | K66: =IFERROR(AVERAGE(OFFSET(E65,1,,-MIN(Bollinger_Band_Range,COUNTA(E$32:E65)))-Standard_Deviation*IFERROR(STDEV(OFFSET(E65,1,,-MIN(Bollinger_Band_Range,COUNTA(E$32:E65)))),0)),0) -> 276.3003825 | N66: 34 | O66: =INDEX(Data[Date],MATCH(N66,Data[Index],0)) -> 2022-03-31 | P66: =MAX(IF(N66=Data[Index],Data[Adj Close],0),IF(N66=Data[Lag Index U],Data[Adj Close],0)) -> 312.691315 | Q66: =MIN(IF(N66=Data[Index],Data[Adj Close]),IF(N66=Data[Lag Index U],Data[Adj Close])) -> 306.079468 | R66: =MAX(IF(N66=Data[Index],Data[Upper Bollinger Band],0),IF(N66=Data[Lag Index U],Data[Upper Bollinger Band],0)) -> 333.6908968 | S66: =MIN(IF(N66=Data[Index],Data[Upper Bollinger Band]),IF(N66=Data[Lag Index U],Data[Upper Bollinger Band])) -> 330.2735258 | T66: =MAX(IF(N66=Data[Index],Data[Lower Bollinger Band],0),IF(N66=Data[Lag Index U],Data[Lower Bollinger Band],0)) -> 258.6723325 | U66: =MIN(IF(N66=Data[Index],Data[Lower Bollinger Band]),IF(N66=Data[Lag Index U],Data[Lower Bollinger Band])) -> 256.5679382
D67: 2022-02-22 | E67: 285.638458 | F67: =IF(Data[[#This Row],[Adj Close]]<E68,TRUE,"") ->  | G67: =IF(F66=Data[[#This Row],[Up]],0,1) -> 0 | H67: =SUM($G$33:G67) -> 19 | I67: 19 | J67: =AVERAGE(OFFSET(E66,1,,-MIN(Bollinger_Band_Range,COUNTA(E$32:E66)))+Standard_Deviation*IFERROR(STDEV(OFFSET(E66,1,,-MIN(Bollinger_Band_Range,COUNTA(E$32:E66)))),0)) -> 321.0761518 | K67: =IFERROR(AVERAGE(OFFSET(E66,1,,-MIN(Bollinger_Band_Range,COUNTA(E$32:E66)))-Standard_Deviation*IFERROR(STDEV(OFFSET(E66,1,,-MIN(Bollinger_Band_Range,COUNTA(E$32:E66)))),0)),0) -> 274.5022538 | N67: 35 | O67: =INDEX(Data[Date],MATCH(N67,Data[Index],0)) -> 2022-04-04 | P67: =MAX(IF(N67=Data[Index],Data[Adj Close],0),IF(N67=Data[Lag Index U],Data[Adj Close],0)) -> 312.691315 | Q67: =MIN(IF(N67=Data[Index],Data[Adj Close]),IF(N67=Data[Lag Index U],Data[Adj Close])) -> 297.333191 | R67: =MAX(IF(N67=Data[Index],Data[Upper Bollinger Band],0),IF(N67=Data[Lag Index U],Data[Upper Bollinger Band],0)) -> 333.6908968 | S67: =MIN(IF(N67=Data[Index],Data[Upper Bollinger Band]),IF(N67=Data[Lag Index U],Data[Upper Bollinger Band])) -> 332.3809337 | T67: =MAX(IF(N67=Data[Index],Data[Lower Bollinger Band],0),IF(N67=Data[Lag Index U],Data[Lower Bollinger Band],0)) -> 264.5519917 | U67: =MIN(IF(N67=Data[Index],Data[Lower Bollinger Band]),IF(N67=Data[Lag Index U],Data[Lower Bollinger Band])) -> 258.6723325
D68: 2022-02-23 | E68: 278.24231 | F68: =IF(Data[[#This Row],[Adj Close]]<E69,TRUE,"") -> TRUE | G68: =IF(F67=Data[[#This Row],[Up]],0,1) -> 1 | H68: =SUM($G$33:G68) -> 20 | I68: 19 | J68: =AVERAGE(OFFSET(E67,1,,-MIN(Bollinger_Band_Range,COUNTA(E$32:E67)))+Standard_Deviation*IFERROR(STDEV(OFFSET(E67,1,,-MIN(Bollinger_Band_Range,COUNTA(E$32:E67)))),0)) -> 322.9833277 | K68: =IFERROR(AVERAGE(OFFSET(E67,1,,-MIN(Bollinger_Band_Range,COUNTA(E$32:E67)))-Standard_Deviation*IFERROR(STDEV(OFFSET(E67,1,,-MIN(Bollinger_Band_Range,COUNTA(E$32:E67)))),0)),0) -> 271.8381169 | N68: 36 | O68: =INDEX(Data[Date],MATCH(N68,Data[Index],0)) -> 2022-04-06 | P68: =MAX(IF(N68=Data[Index],Data[Adj Close],0),IF(N68=Data[Lag Index U],Data[Adj Close],0)) -> 299.189667 | Q68: =MIN(IF(N68=Data[Index],Data[Adj Close]),IF(N68=Data[Lag Index U],Data[Adj Close])) -> 297.333191 | R68: =MAX(IF(N68=Data[Index],Data[Upper Bollinger Band],0),IF(N68=Data[Lag Index U],Data[Upper Bollinger Band],0)) -> 332.3809337 | S68: =MIN(IF(N68=Data[Index],Data[Upper Bollinger Band]),IF(N68=Data[Lag Index U],Data[Upper Bollinger Band])) -> 331.4811317 | T68: =MAX(IF(N68=Data[Index],Data[Lower Bollinger Band],0),IF(N68=Data[Lag Index U],Data[Lower Bollinger Band],0)) -> 267.0183739 | U68: =MIN(IF(N68=Data[Index],Data[Lower Bollinger Band]),IF(N68=Data[Lag Index U],Data[Lower Bollinger Band])) -> 264.5519917
D69: 2022-02-24 | E69: 292.45871 | F69: =IF(Data[[#This Row],[Adj Close]]<E70,TRUE,"") -> TRUE | G69: =IF(F68=Data[[#This Row],[Up]],0,1) -> 0 | H69: =SUM($G$33:G69) -> 20 | I69: 20 | J69: =AVERAGE(OFFSET(E68,1,,-MIN(Bollinger_Band_Range,COUNTA(E$32:E68)))+Standard_Deviation*IFERROR(STDEV(OFFSET(E68,1,,-MIN(Bollinger_Band_Range,COUNTA(E$32:E68)))),0)) -> 323.0237384 | K69: =IFERROR(AVERAGE(OFFSET(E68,1,,-MIN(Bollinger_Band_Range,COUNTA(E$32:E68)))-Standard_Deviation*IFERROR(STDEV(OFFSET(E68,1,,-MIN(Bollinger_Band_Range,COUNTA(E$32:E68)))),0)),0) -> 271.6480175 | N69: 37 | O69: =INDEX(Data[Date],MATCH(N69,Data[Index],0)) -> 2022-04-07 | P69: =MAX(IF(N69=Data[Index],Data[Adj Close],0),IF(N69=Data[Lag Index U],Data[Adj Close],0)) -> 299.189667 | Q69: =MIN(IF(N69=Data[Index],Data[Adj Close]),IF(N69=Data[Lag Index U],Data[Adj Close])) -> 280.019409 | R69: =MAX(IF(N69=Data[Index],Data[Upper Bollinger Band],0),IF(N69=Data[Lag Index U],Data[Upper Bollinger Band],0)) -> 331.4811317 | S69: =MIN(IF(N69=Data[Index],Data[Upper Bollinger Band]),IF(N69=Data[Lag Index U],Data[Upper Bollinger Band])) -> 326.0256436 | T69: =MAX(IF(N69=Data[Index],Data[Lower Bollinger Band],0),IF(N69=Data[Lag Index U],Data[Lower Bollinger Band],0)) -> 275.0272556 | U69: =MIN(IF(N69=Data[Index],Data[Lower Bollinger Band]),IF(N69=Data[Lag Index U],Data[Lower Bollinger Band])) -> 267.0183739
D70: 2022-02-25 | E70: 295.159088 | F70: =IF(Data[[#This Row],[Adj Close]]<E71,TRUE,"") -> TRUE | G70: =IF(F69=Data[[#This Row],[Up]],0,1) -> 0 | H70: =SUM($G$33:G70) -> 20 | I70: 20 | J70: =AVERAGE(OFFSET(E69,1,,-MIN(Bollinger_Band_Range,COUNTA(E$32:E69)))+Standard_Deviation*IFERROR(STDEV(OFFSET(E69,1,,-MIN(Bollinger_Band_Range,COUNTA(E$32:E69)))),0)) -> 322.9701412 | K70: =IFERROR(AVERAGE(OFFSET(E69,1,,-MIN(Bollinger_Band_Range,COUNTA(E$32:E69)))-Standard_Deviation*IFERROR(STDEV(OFFSET(E69,1,,-MIN(Bollinger_Band_Range,COUNTA(E$32:E69)))),0)),0) -> 271.5118686 | N70: 38 | O70: =INDEX(Data[Date],MATCH(N70,Data[Index],0)) -> 2022-04-12 | P70: =MAX(IF(N70=Data[Index],Data[Adj Close],0),IF(N70=Data[Lag Index U],Data[Adj Close],0)) -> 285.539154 | Q70: =MIN(IF(N70=Data[Index],Data[Adj Close]),IF(N70=Data[Lag Index U],Data[Adj Close])) -> 280.019409 | R70: =MAX(IF(N70=Data[Index],Data[Upper Bollinger Band],0),IF(N70=Data[Lag Index U],Data[Upper Bollinger Band],0)) -> 328.3460631 | S70: =MIN(IF(N70=Data[Index],Data[Upper Bollinger Band]),IF(N70=Data[Lag Index U],Data[Upper Bollinger Band])) -> 327.3972186 | T70: =MAX(IF(N70=Data[Index],Data[Lower Bollinger Band],0),IF(N70=Data[Lag Index U],Data[Lower Bollinger Band],0)) -> 273.1503644 | U70: =MIN(IF(N70=Data[Index],Data[Lower Bollinger Band]),IF(N70=Data[Lag Index U],Data[Lower Bollinger Band])) -> 271.529416
D71: 2022-02-28 | E71: 296.628357 | F71: =IF(Data[[#This Row],[Adj Close]]<E72,TRUE,"") ->  | G71: =IF(F70=Data[[#This Row],[Up]],0,1) -> 1 | H71: =SUM($G$33:G71) -> 21 | I71: 20 | J71: =AVERAGE(OFFSET(E70,1,,-MIN(Bollinger_Band_Range,COUNTA(E$32:E70)))+Standard_Deviation*IFERROR(STDEV(OFFSET(E70,1,,-MIN(Bollinger_Band_Range,COUNTA(E$32:E70)))),0)) -> 321.8788751 | K71: =IFERROR(AVERAGE(OFFSET(E70,1,,-MIN(Bollinger_Band_Range,COUNTA(E$32:E70)))-Standard_Deviation*IFERROR(STDEV(OFFSET(E70,1,,-MIN(Bollinger_Band_Range,COUNTA(E$32:E70)))),0)),0) -> 271.7261328 | N71: 39 | O71: =INDEX(Data[Date],MATCH(N71,Data[Index],0)) -> 2022-04-13 | P71: =MAX(IF(N71=Data[Index],Data[Adj Close],0),IF(N71=Data[Lag Index U],Data[Adj Close],0)) -> 285.539154 | Q71: =MIN(IF(N71=Data[Index],Data[Adj Close]),IF(N71=Data[Lag Index U],Data[Adj Close])) -> 277.805542 | R71: =MAX(IF(N71=Data[Index],Data[Upper Bollinger Band],0),IF(N71=Data[Lag Index U],Data[Upper Bollinger Band],0)) -> 330.9744555 | S71: =MIN(IF(N71=Data[Index],Data[Upper Bollinger Band]),IF(N71=Data[Lag Index U],Data[Upper Bollinger Band])) -> 328.3460631 | T71: =MAX(IF(N71=Data[Index],Data[Lower Bollinger Band],0),IF(N71=Data[Lag Index U],Data[Lower Bollinger Band],0)) -> 271.529416 | U71: =MIN(IF(N71=Data[Index],Data[Lower Bollinger Band]),IF(N71=Data[Lag Index U],Data[Lower Bollinger Band])) -> 267.3731611
D72: 2022-03-01 | E72: 292.816162 | F72: =IF(Data[[#This Row],[Adj Close]]<E73,TRUE,"") -> TRUE | G72: =IF(F71=Data[[#This Row],[Up]],0,1) -> 1 | H72: =SUM($G$33:G72) -> 22 | I72: 21 | J72: =AVERAGE(OFFSET(E71,1,,-MIN(Bollinger_Band_Range,COUNTA(E$32:E71)))+Standard_Deviation*IFERROR(STDEV(OFFSET(E71,1,,-MIN(Bollinger_Band_Range,COUNTA(E$32:E71)))),0)) -> 319.9225407 | K72: =IFERROR(AVERAGE(OFFSET(E71,1,,-MIN(Bollinger_Band_Range,COUNTA(E$32:E71)))-Standard_Deviation*IFERROR(STDEV(OFFSET(E71,1,,-MIN(Bollinger_Band_Range,COUNTA(E$32:E71)))),0)),0) -> 272.1547725 | N72: 40 | O72: =INDEX(Data[Date],MATCH(N72,Data[Index],0)) -> 2022-04-14 | P72: =MAX(IF(N72=Data[Index],Data[Adj Close],0),IF(N72=Data[Lag Index U],Data[Adj Close],0)) -> 284.288269 | Q72: =MIN(IF(N72=Data[Index],Data[Adj Close]),IF(N72=Data[Lag Index U],Data[Adj Close])) -> 277.805542 | R72: =MAX(IF(N72=Data[Index],Data[Upper Bollinger Band],0),IF(N72=Data[Lag Index U],Data[Upper Bollinger Band],0)) -> 333.6500003 | S72: =MIN(IF(N72=Data[Index],Data[Upper Bollinger Band]),IF(N72=Data[Lag Index U],Data[Upper Bollinger Band])) -> 330.9744555 | T72: =MAX(IF(N72=Data[Index],Data[Lower Bollinger Band],0),IF(N72=Data[Lag Index U],Data[Lower Bollinger Band],0)) -> 267.3731611 | U72: =MIN(IF(N72=Data[Index],Data[Lower Bollinger Band]),IF(N72=Data[Lag Index U],Data[Lower Bollinger Band])) -> 259.5878508
D73: 2022-03-02 | E73: 298.01825 | F73: =IF(Data[[#This Row],[Adj Close]]<E74,TRUE,"") ->  | G73: =IF(F72=Data[[#This Row],[Up]],0,1) -> 1 | H73: =SUM($G$33:G73) -> 23 | I73: 22 | J73: =AVERAGE(OFFSET(E72,1,,-MIN(Bollinger_Band_Range,COUNTA(E$32:E72)))+Standard_Deviation*IFERROR(STDEV(OFFSET(E72,1,,-MIN(Bollinger_Band_Range,COUNTA(E$32:E72)))),0)) -> 318.5538709 | K73: =IFERROR(AVERAGE(OFFSET(E72,1,,-MIN(Bollinger_Band_Range,COUNTA(E$32:E72)))-Standard_Deviation*IFERROR(STDEV(OFFSET(E72,1,,-MIN(Bollinger_Band_Range,COUNTA(E$32:E72)))),0)),0) -> 272.7358935 | N73: 41 | O73: =INDEX(Data[Date],MATCH(N73,Data[Index],0)) -> 2022-04-20 | P73: =MAX(IF(N73=Data[Index],Data[Adj Close],0),IF(N73=Data[Lag Index U],Data[Adj Close],0)) -> 284.288269 | Q73: =MIN(IF(N73=Data[Index],Data[Adj Close]),IF(N73=Data[Lag Index U],Data[Adj Close])) -> 272.047485 | R73: =MAX(IF(N73=Data[Index],Data[Upper Bollinger Band],0),IF(N73=Data[Lag Index U],Data[Upper Bollinger Band],0)) -> 335.9019935 | S73: =MIN(IF(N73=Data[Index],Data[Upper Bollinger Band]),IF(N73=Data[Lag Index U],Data[Upper Bollinger Band])) -> 333.6500003 | T73: =MAX(IF(N73=Data[Index],Data[Lower Bollinger Band],0),IF(N73=Data[Lag Index U],Data[Lower Bollinger Band],0)) -> 259.5878508 | U73: =MIN(IF(N73=Data[Index],Data[Lower Bollinger Band]),IF(N73=Data[Lag Index U],Data[Lower Bollinger Band])) -> 252.4961237
D74: 2022-03-03 | E74: 293.779144 | F74: =IF(Data[[#This Row],[Adj Close]]<E75,TRUE,"") ->  | G74: =IF(F73=Data[[#This Row],[Up]],0,1) -> 0 | H74: =SUM($G$33:G74) -> 23 | I74: 23 | J74: =AVERAGE(OFFSET(E73,1,,-MIN(Bollinger_Band_Range,COUNTA(E$32:E73)))+Standard_Deviation*IFERROR(STDEV(OFFSET(E73,1,,-MIN(Bollinger_Band_Range,COUNTA(E$32:E73)))),0)) -> 315.1674043 | K74: =IFERROR(AVERAGE(OFFSET(E73,1,,-MIN(Bollinger_Band_Range,COUNTA(E$32:E73)))-Standard_Deviation*IFERROR(STDEV(OFFSET(E73,1,,-MIN(Bollinger_Band_Range,COUNTA(E$32:E73)))),0)),0) -> 274.4452666 | N74: 42 | O74: =INDEX(Data[Date],MATCH(N74,Data[Index],0)) -> 2022-04-22 | P74: =MAX(IF(N74=Data[Index],Data[Adj Close],0),IF(N74=Data[Lag Index U],Data[Adj Close],0)) -> 278.689087 | Q74: =MIN(IF(N74=Data[Index],Data[Adj Close]),IF(N74=Data[Lag Index U],Data[Adj Close])) -> 272.047485 | R74: =MAX(IF(N74=Data[Index],Data[Upper Bollinger Band],0),IF(N74=Data[Lag Index U],Data[Upper Bollinger Band],0)) -> 335.9019935 | S74: =MIN(IF(N74=Data[Index],Data[Upper Bollinger Band]),IF(N74=Data[Lag Index U],Data[Upper Bollinger Band])) -> 335.6697738 | T74: =MAX(IF(N74=Data[Index],Data[Lower Bollinger Band],0),IF(N74=Data[Lag Index U],Data[Lower Bollinger Band],0)) -> 252.4961237 | U74: =MIN(IF(N74=Data[Index],Data[Lower Bollinger Band]),IF(N74=Data[Lag Index U],Data[Lower Bollinger Band])) -> 250.448955
D75: 2022-03-04 | E75: 287.762939 | F75: =IF(Data[[#This Row],[Adj Close]]<E76,TRUE,"") ->  | G75: =IF(F74=Data[[#This Row],[Up]],0,1) -> 0 | H75: =SUM($G$33:G75) -> 23 | I75: 23 | J75: =AVERAGE(OFFSET(E74,1,,-MIN(Bollinger_Band_Range,COUNTA(E$32:E74)))+Standard_Deviation*IFERROR(STDEV(OFFSET(E74,1,,-MIN(Bollinger_Band_Range,COUNTA(E$32:E74)))),0)) -> 314.9856933 | K75: =IFERROR(AVERAGE(OFFSET(E74,1,,-MIN(Bollinger_Band_Range,COUNTA(E$32:E74)))-Standard_Deviation*IFERROR(STDEV(OFFSET(E74,1,,-MIN(Bollinger_Band_Range,COUNTA(E$32:E74)))),0)),0) -> 273.5579285 | N75: 43 | O75: =INDEX(Data[Date],MATCH(N75,Data[Index],0)) -> 2022-04-25 | P75: =MAX(IF(N75=Data[Index],Data[Adj Close],0),IF(N75=Data[Lag Index U],Data[Adj Close],0)) -> 278.689087 | Q75: =MIN(IF(N75=Data[Index],Data[Adj Close]),IF(N75=Data[Lag Index U],Data[Adj Close])) -> 268.265076 | R75: =MAX(IF(N75=Data[Index],Data[Upper Bollinger Band],0),IF(N75=Data[Lag Index U],Data[Upper Bollinger Band],0)) -> 335.6697738 | S75: =MIN(IF(N75=Data[Index],Data[Upper Bollinger Band]),IF(N75=Data[Lag Index U],Data[Upper Bollinger Band])) -> 335.2807983 | T75: =MAX(IF(N75=Data[Index],Data[Lower Bollinger Band],0),IF(N75=Data[Lag Index U],Data[Lower Bollinger Band],0)) -> 250.448955 | U75: =MIN(IF(N75=Data[Index],Data[Lower Bollinger Band]),IF(N75=Data[Lag Index U],Data[Lower Bollinger Band])) -> 246.8192172
D76: 2022-03-07 | E76: 276.892181 | F76: =IF(Data[[#This Row],[Adj Close]]<E77,TRUE,"") ->  | G76: =IF(F75=Data[[#This Row],[Up]],0,1) -> 0 | H76: =SUM($G$33:G76) -> 23 | I76: 23 | J76: =AVERAGE(OFFSET(E75,1,,-MIN(Bollinger_Band_Range,COUNTA(E$32:E75)))+Standard_Deviation*IFERROR(STDEV(OFFSET(E75,1,,-MIN(Bollinger_Band_Range,COUNTA(E$32:E75)))),0)) -> 315.7420776 | K76: =IFERROR(AVERAGE(OFFSET(E75,1,,-MIN(Bollinger_Band_Range,COUNTA(E$32:E75)))-Standard_Deviation*IFERROR(STDEV(OFFSET(E75,1,,-MIN(Bollinger_Band_Range,COUNTA(E$32:E75)))),0)),0) -> 270.1807739 | N76: 44 | O76: =INDEX(Data[Date],MATCH(N76,Data[Index],0)) -> 2022-04-26 | P76: =MAX(IF(N76=Data[Index],Data[Adj Close],0),IF(N76=Data[Lag Index U],Data[Adj Close],0)) -> 287.534637 | Q76: =MIN(IF(N76=Data[Index],Data[Adj Close]),IF(N76=Data[Lag Index U],Data[Adj Close])) -> 268.265076 | R76: =MAX(IF(N76=Data[Index],Data[Upper Bollinger Band],0),IF(N76=Data[Lag Index U],Data[Upper Bollinger Band],0)) -> 335.2807983 | S76: =MIN(IF(N76=Data[Index],Data[Upper Bollinger Band]),IF(N76=Data[Lag Index U],Data[Upper Bollinger Band])) -> 327.0233339 | T76: =MAX(IF(N76=Data[Index],Data[Lower Bollinger Band],0),IF(N76=Data[Lag Index U],Data[Lower Bollinger Band],0)) -> 249.4755036 | U76: =MIN(IF(N76=Data[Index],Data[Lower Bollinger Band]),IF(N76=Data[Lag Index U],Data[Lower Bollinger Band])) -> 246.8192172
D77: 2022-03-08 | E77: 273.854309 | F77: =IF(Data[[#This Row],[Adj Close]]<E78,TRUE,"") -> TRUE | G77: =IF(F76=Data[[#This Row],[Up]],0,1) -> 1 | H77: =SUM($G$33:G77) -> 24 | I77: 23 | J77: =AVERAGE(OFFSET(E76,1,,-MIN(Bollinger_Band_Range,COUNTA(E$32:E76)))+Standard_Deviation*IFERROR(STDEV(OFFSET(E76,1,,-MIN(Bollinger_Band_Range,COUNTA(E$32:E76)))),0)) -> 317.5362772 | K77: =IFERROR(AVERAGE(OFFSET(E76,1,,-MIN(Bollinger_Band_Range,COUNTA(E$32:E76)))-Standard_Deviation*IFERROR(STDEV(OFFSET(E76,1,,-MIN(Bollinger_Band_Range,COUNTA(E$32:E76)))),0)),0) -> 265.9563833 | N77: 45 | O77: =INDEX(Data[Date],MATCH(N77,Data[Index],0)) -> 2022-04-28 | P77: =MAX(IF(N77=Data[Index],Data[Adj Close],0),IF(N77=Data[Lag Index U],Data[Adj Close],0)) -> 287.534637 | Q77: =MIN(IF(N77=Data[Index],Data[Adj Close]),IF(N77=Data[Lag Index U],Data[Adj Close])) -> 275.512207 | R77: =MAX(IF(N77=Data[Index],Data[Upper Bollinger Band],0),IF(N77=Data[Lag Index U],Data[Upper Bollinger Band],0)) -> 327.0233339 | S77: =MIN(IF(N77=Data[Index],Data[Upper Bollinger Band]),IF(N77=Data[Lag Index U],Data[Upper Bollinger Band])) -> 324.23834 | T77: =MAX(IF(N77=Data[Index],Data[Lower Bollinger Band],0),IF(N77=Data[Lag Index U],Data[Lower Bollinger Band],0)) -> 249.4755036 | U77: =MIN(IF(N77=Data[Index],Data[Lower Bollinger Band]),IF(N77=Data[Lag Index U],Data[Lower Bollinger Band])) -> 249.2037714
D78: 2022-03-09 | E78: 286.412811 | F78: =IF(Data[[#This Row],[Adj Close]]<E79,TRUE,"") ->  | G78: =IF(F77=Data[[#This Row],[Up]],0,1) -> 1 | H78: =SUM($G$33:G78) -> 25 | I78: 24 | J78: =AVERAGE(OFFSET(E77,1,,-MIN(Bollinger_Band_Range,COUNTA(E$32:E77)))+Standard_Deviation*IFERROR(STDEV(OFFSET(E77,1,,-MIN(Bollinger_Band_Range,COUNTA(E$32:E77)))),0)) -> 315.9962904 | K78: =IFERROR(AVERAGE(OFFSET(E77,1,,-MIN(Bollinger_Band_Range,COUNTA(E$32:E77)))-Standard_Deviation*IFERROR(STDEV(OFFSET(E77,1,,-MIN(Bollinger_Band_Range,COUNTA(E$32:E77)))),0)),0) -> 265.9643815 | N78: 46 | O78: =INDEX(Data[Date],MATCH(N78,Data[Index],0)) -> 2022-04-29 | P78: =MAX(IF(N78=Data[Index],Data[Adj Close],0),IF(N78=Data[Lag Index U],Data[Adj Close],0)) -> 282.411957 | Q78: =MIN(IF(N78=Data[Index],Data[Adj Close]),IF(N78=Data[Lag Index U],Data[Adj Close])) -> 275.512207 | R78: =MAX(IF(N78=Data[Index],Data[Upper Bollinger Band],0),IF(N78=Data[Lag Index U],Data[Upper Bollinger Band],0)) -> 324.23834 | S78: =MIN(IF(N78=Data[Index],Data[Upper Bollinger Band]),IF(N78=Data[Lag Index U],Data[Upper Bollinger Band])) -> 320.1742758 | T78: =MAX(IF(N78=Data[Index],Data[Lower Bollinger Band],0),IF(N78=Data[Lag Index U],Data[Lower Bollinger Band],0)) -> 250.7908855 | U78: =MIN(IF(N78=Data[Index],Data[Lower Bollinger Band]),IF(N78=Data[Lag Index U],Data[Lower Bollinger Band])) -> 249.2037714
D79: 2022-03-10 | E79: 283.523865 | F79: =IF(Data[[#This Row],[Adj Close]]<E80,TRUE,"") ->  | G79: =IF(F78=Data[[#This Row],[Up]],0,1) -> 0 | H79: =SUM($G$33:G79) -> 25 | I79: 25 | J79: =AVERAGE(OFFSET(E78,1,,-MIN(Bollinger_Band_Range,COUNTA(E$32:E78)))+Standard_Deviation*IFERROR(STDEV(OFFSET(E78,1,,-MIN(Bollinger_Band_Range,COUNTA(E$32:E78)))),0)) -> 311.9921239 | K79: =IFERROR(AVERAGE(OFFSET(E78,1,,-MIN(Bollinger_Band_Range,COUNTA(E$32:E78)))-Standard_Deviation*IFERROR(STDEV(OFFSET(E78,1,,-MIN(Bollinger_Band_Range,COUNTA(E$32:E78)))),0)),0) -> 267.4888392 | N79: 47 | O79: =INDEX(Data[Date],MATCH(N79,Data[Index],0)) -> 2022-05-02 | P79: =MAX(IF(N79=Data[Index],Data[Adj Close],0),IF(N79=Data[Lag Index U],Data[Adj Close],0)) -> 282.411957 | Q79: =MIN(IF(N79=Data[Index],Data[Adj Close]),IF(N79=Data[Lag Index U],Data[Adj Close])) -> 279.741425 | R79: =MAX(IF(N79=Data[Index],Data[Upper Bollinger Band],0),IF(N79=Data[Lag Index U],Data[Upper Bollinger Band],0)) -> 320.1742758 | S79: =MIN(IF(N79=Data[Index],Data[Upper Bollinger Band]),IF(N79=Data[Lag Index U],Data[Upper Bollinger Band])) -> 312.8650239 | T79: =MAX(IF(N79=Data[Index],Data[Lower Bollinger Band],0),IF(N79=Data[Lag Index U],Data[Lower Bollinger Band],0)) -> 254.8051484 | U79: =MIN(IF(N79=Data[Index],Data[Lower Bollinger Band]),IF(N79=Data[Lag Index U],Data[Lower Bollinger Band])) -> 250.7908855
D80: 2022-03-11 | E80: 278.043793 | F80: =IF(Data[[#This Row],[Adj Close]]<E81,TRUE,"") ->  | G80: =IF(F79=Data[[#This Row],[Up]],0,1) -> 0 | H80: =SUM($G$33:G80) -> 25 | I80: 25 | J80: =AVERAGE(OFFSET(E79,1,,-MIN(Bollinger_Band_Range,COUNTA(E$32:E79)))+Standard_Deviation*IFERROR(STDEV(OFFSET(E79,1,,-MIN(Bollinger_Band_Range,COUNTA(E$32:E79)))),0)) -> 311.0954437 | K80: =IFERROR(AVERAGE(OFFSET(E79,1,,-MIN(Bollinger_Band_Range,COUNTA(E$32:E79)))-Standard_Deviation*IFERROR(STDEV(OFFSET(E79,1,,-MIN(Bollinger_Band_Range,COUNTA(E$32:E79)))),0)),0) -> 266.2325989 | N80: 48 | O80: =INDEX(Data[Date],MATCH(N80,Data[Index],0)) -> 2022-05-03 | P80: =MAX(IF(N80=Data[Index],Data[Adj Close],0),IF(N80=Data[Lag Index U],Data[Adj Close],0)) -> 287.882111 | Q80: =MIN(IF(N80=Data[Index],Data[Adj Close]),IF(N80=Data[Lag Index U],Data[Adj Close])) -> 279.741425 | R80: =MAX(IF(N80=Data[Index],Data[Upper Bollinger Band],0),IF(N80=Data[Lag Index U],Data[Upper Bollinger Band],0)) -> 312.8650239 | S80: =MIN(IF(N80=Data[Index],Data[Upper Bollinger Band]),IF(N80=Data[Lag Index U],Data[Upper Bollinger Band])) -> 306.2297403 | T80: =MAX(IF(N80=Data[Index],Data[Lower Bollinger Band],0),IF(N80=Data[Lag Index U],Data[Lower Bollinger Band],0)) -> 259.3655541 | U80: =MIN(IF(N80=Data[Index],Data[Lower Bollinger Band]),IF(N80=Data[Lag Index U],Data[Lower Bollinger Band])) -> 254.8051484
D81: 2022-03-14 | E81: 274.440063 | F81: =IF(Data[[#This Row],[Adj Close]]<E82,TRUE,"") -> TRUE | G81: =IF(F80=Data[[#This Row],[Up]],0,1) -> 1 | H81: =SUM($G$33:G81) -> 26 | I81: 25 | J81: =AVERAGE(OFFSET(E80,1,,-MIN(Bollinger_Band_Range,COUNTA(E$32:E80)))+Standard_Deviation*IFERROR(STDEV(OFFSET(E80,1,,-MIN(Bollinger_Band_Range,COUNTA(E$32:E80)))),0)) -> 311.9615326 | K81: =IFERROR(AVERAGE(OFFSET(E80,1,,-MIN(Bollinger_Band_Range,COUNTA(E$32:E80)))-Standard_Deviation*IFERROR(STDEV(OFFSET(E80,1,,-MIN(Bollinger_Band_Range,COUNTA(E$32:E80)))),0)),0) -> 263.5804077 | N81: 49 | O81: =INDEX(Data[Date],MATCH(N81,Data[Index],0)) -> 2022-05-04 | P81: =MAX(IF(N81=Data[Index],Data[Adj Close],0),IF(N81=Data[Lag Index U],Data[Adj Close],0)) -> 287.882111 | Q81: =MIN(IF(N81=Data[Index],Data[Adj Close]),IF(N81=Data[Lag Index U],Data[Adj Close])) -> 262.665863 | R81: =MAX(IF(N81=Data[Index],Data[Upper Bollinger Band],0),IF(N81=Data[Lag Index U],Data[Upper Bollinger Band],0)) -> 306.2297403 | S81: =MIN(IF(N81=Data[Index],Data[Upper Bollinger Band]),IF(N81=Data[Lag Index U],Data[Upper Bollinger Band])) -> 297.8881889 | T81: =MAX(IF(N81=Data[Index],Data[Lower Bollinger Band],0),IF(N81=Data[Lag Index U],Data[Lower Bollinger Band],0)) -> 261.9272085 | U81: =MIN(IF(N81=Data[Index],Data[Lower Bollinger Band]),IF(N81=Data[Lag Index U],Data[Lower Bollinger Band])) -> 259.3655541
D82: 2022-03-15 | E82: 285.072571 | F82: =IF(Data[[#This Row],[Adj Close]]<E83,TRUE,"") -> TRUE | G82: =IF(F81=Data[[#This Row],[Up]],0,1) -> 0 | H82: =SUM($G$33:G82) -> 26 | I82: 26 | J82: =AVERAGE(OFFSET(E81,1,,-MIN(Bollinger_Band_Range,COUNTA(E$32:E81)))+Standard_Deviation*IFERROR(STDEV(OFFSET(E81,1,,-MIN(Bollinger_Band_Range,COUNTA(E$32:E81)))),0)) -> 311.4501751 | K82: =IFERROR(AVERAGE(OFFSET(E81,1,,-MIN(Bollinger_Band_Range,COUNTA(E$32:E81)))-Standard_Deviation*IFERROR(STDEV(OFFSET(E81,1,,-MIN(Bollinger_Band_Range,COUNTA(E$32:E81)))),0)),0) -> 263.3728748 | N82: 50 | O82: =INDEX(Data[Date],MATCH(N82,Data[Index],0)) -> 2022-05-09 | P82: =MAX(IF(N82=Data[Index],Data[Adj Close],0),IF(N82=Data[Lag Index U],Data[Adj Close],0)) -> 267.550262 | Q82: =MIN(IF(N82=Data[Index],Data[Adj Close]),IF(N82=Data[Lag Index U],Data[Adj Close])) -> 262.665863 | R82: =MAX(IF(N82=Data[Index],Data[Upper Bollinger Band],0),IF(N82=Data[Lag Index U],Data[Upper Bollinger Band],0)) -> 298.2366877 | S82: =MIN(IF(N82=Data[Index],Data[Upper Bollinger Band]),IF(N82=Data[Lag Index U],Data[Upper Bollinger Band])) -> 297.8881889 | T82: =MAX(IF(N82=Data[Index],Data[Lower Bollinger Band],0),IF(N82=Data[Lag Index U],Data[Lower Bollinger Band],0)) -> 259.6478464 | U82: =MIN(IF(N82=Data[Index],Data[Lower Bollinger Band]),IF(N82=Data[Lag Index U],Data[Lower Bollinger Band])) -> 257.7347449
D83: 2022-03-16 | E83: 292.260193 | F83: =IF(Data[[#This Row],[Adj Close]]<E84,TRUE,"") -> TRUE | G83: =IF(F82=Data[[#This Row],[Up]],0,1) -> 0 | H83: =SUM($G$33:G83) -> 26 | I83: 26 | J83: =AVERAGE(OFFSET(E82,1,,-MIN(Bollinger_Band_Range,COUNTA(E$32:E82)))+Standard_Deviation*IFERROR(STDEV(OFFSET(E82,1,,-MIN(Bollinger_Band_Range,COUNTA(E$32:E82)))),0)) -> 310.3427446 | K83: =IFERROR(AVERAGE(OFFSET(E82,1,,-MIN(Bollinger_Band_Range,COUNTA(E$32:E82)))-Standard_Deviation*IFERROR(STDEV(OFFSET(E82,1,,-MIN(Bollinger_Band_Range,COUNTA(E$32:E82)))),0)),0) -> 263.9382551 | N83: 51 | O83: =INDEX(Data[Date],MATCH(N83,Data[Index],0)) -> 2022-05-10 | P83: =MAX(IF(N83=Data[Index],Data[Adj Close],0),IF(N83=Data[Lag Index U],Data[Adj Close],0)) -> 267.550262 | Q83: =MIN(IF(N83=Data[Index],Data[Adj Close]),IF(N83=Data[Lag Index U],Data[Adj Close])) -> 253.50264 | R83: =MAX(IF(N83=Data[Index],Data[Upper Bollinger Band],0),IF(N83=Data[Lag Index U],Data[Upper Bollinger Band],0)) -> 303.143508 | S83: =MIN(IF(N83=Data[Index],Data[Upper Bollinger Band]),IF(N83=Data[Lag Index U],Data[Upper Bollinger Band])) -> 298.2366877 | T83: =MAX(IF(N83=Data[Index],Data[Lower Bollinger Band],0),IF(N83=Data[Lag Index U],Data[Lower Bollinger Band],0)) -> 257.7347449 | U83: =MIN(IF(N83=Data[Index],Data[Lower Bollinger Band]),IF(N83=Data[Lag Index U],Data[Lower Bollinger Band])) -> 247.4888332
D84: 2022-03-17 | E84: 293.084167 | F84: =IF(Data[[#This Row],[Adj Close]]<E85,TRUE,"") -> TRUE | G84: =IF(F83=Data[[#This Row],[Up]],0,1) -> 0 | H84: =SUM($G$33:G84) -> 26 | I84: 26 | J84: =AVERAGE(OFFSET(E83,1,,-MIN(Bollinger_Band_Range,COUNTA(E$32:E83)))+Standard_Deviation*IFERROR(STDEV(OFFSET(E83,1,,-MIN(Bollinger_Band_Range,COUNTA(E$32:E83)))),0)) -> 309.4100188 | K84: =IFERROR(AVERAGE(OFFSET(E83,1,,-MIN(Bollinger_Band_Range,COUNTA(E$32:E83)))-Standard_Deviation*IFERROR(STDEV(OFFSET(E83,1,,-MIN(Bollinger_Band_Range,COUNTA(E$32:E83)))),0)),0) -> 264.4460785 | N84: 52 | O84: =INDEX(Data[Date],MATCH(N84,Data[Index],0)) -> 2022-05-12 | P84: =MAX(IF(N84=Data[Index],Data[Adj Close],0),IF(N84=Data[Lag Index U],Data[Adj Close],0)) -> 264.889679 | Q84: =MIN(IF(N84=Data[Index],Data[Adj Close]),IF(N84=Data[Lag Index U],Data[Adj Close])) -> 253.50264 | R84: =MAX(IF(N84=Data[Index],Data[Upper Bollinger Band],0),IF(N84=Data[Lag Index U],Data[Upper Bollinger Band],0)) -> 304.634008 | S84: =MIN(IF(N84=Data[Index],Data[Upper Bollinger Band]),IF(N84=Data[Lag Index U],Data[Upper Bollinger Band])) -> 303.143508 | T84: =MAX(IF(N84=Data[Index],Data[Lower Bollinger Band],0),IF(N84=Data[Lag Index U],Data[Lower Bollinger Band],0)) -> 247.4888332 | U84: =MIN(IF(N84=Data[Index],Data[Lower Bollinger Band]),IF(N84=Data[Lag Index U],Data[Lower Bollinger Band])) -> 241.6371756
D85: 2022-03-18 | E85: 298.2565 | F85: =IF(Data[[#This Row],[Adj Close]]<E86,TRUE,"") ->  | G85: =IF(F84=Data[[#This Row],[Up]],0,1) -> 1 | H85: =SUM($G$33:G85) -> 27 | I85: 26 | J85: =AVERAGE(OFFSET(E84,1,,-MIN(Bollinger_Band_Range,COUNTA(E$32:E84)))+Standard_Deviation*IFERROR(STDEV(OFFSET(E84,1,,-MIN(Bollinger_Band_Range,COUNTA(E$32:E84)))),0)) -> 311.1301136 | K85: =IFERROR(AVERAGE(OFFSET(E84,1,,-MIN(Bollinger_Band_Range,COUNTA(E$32:E84)))-Standard_Deviation*IFERROR(STDEV(OFFSET(E84,1,,-MIN(Bollinger_Band_Range,COUNTA(E$32:E84)))),0)),0) -> 263.6889659 | N85: 53 | O85: =INDEX(Data[Date],MATCH(N85,Data[Index],0)) -> 2022-05-17 | P85: =MAX(IF(N85=Data[Index],Data[Adj Close],0),IF(N85=Data[Lag Index U],Data[Adj Close],0)) -> 264.889679 | Q85: =MIN(IF(N85=Data[Index],Data[Adj Close]),IF(N85=Data[Lag Index U],Data[Adj Close])) -> 251.316803 | R85: =MAX(IF(N85=Data[Index],Data[Upper Bollinger Band],0),IF(N85=Data[Lag Index U],Data[Upper Bollinger Band],0)) -> 304.9089926 | S85: =MIN(IF(N85=Data[Index],Data[Upper Bollinger Band]),IF(N85=Data[Lag Index U],Data[Upper Bollinger Band])) -> 303.3400309 | T85: =MAX(IF(N85=Data[Index],Data[Lower Bollinger Band],0),IF(N85=Data[Lag Index U],Data[Lower Bollinger Band],0)) -> 241.6371756 | U85: =MIN(IF(N85=Data[Index],Data[Lower Bollinger Band]),IF(N85=Data[Lag Index U],Data[Lower Bollinger Band])) -> 232.235612
D86: 2022-03-21 | E86: 296.995697 | F86: =IF(Data[[#This Row],[Adj Close]]<E87,TRUE,"") -> TRUE | G86: =IF(F85=Data[[#This Row],[Up]],0,1) -> 1 | H86: =SUM($G$33:G86) -> 28 | I86: 27 | J86: =AVERAGE(OFFSET(E85,1,,-MIN(Bollinger_Band_Range,COUNTA(E$32:E85)))+Standard_Deviation*IFERROR(STDEV(OFFSET(E85,1,,-MIN(Bollinger_Band_Range,COUNTA(E$32:E85)))),0)) -> 312.5045841 | K86: =IFERROR(AVERAGE(OFFSET(E85,1,,-MIN(Bollinger_Band_Range,COUNTA(E$32:E85)))-Standard_Deviation*IFERROR(STDEV(OFFSET(E85,1,,-MIN(Bollinger_Band_Range,COUNTA(E$32:E85)))),0)),0) -> 263.4293727 | N86: 54 | O86: =INDEX(Data[Date],MATCH(N86,Data[Index],0)) -> 2022-05-20 | P86: =MAX(IF(N86=Data[Index],Data[Adj Close],0),IF(N86=Data[Lag Index U],Data[Adj Close],0)) -> 259.366974 | Q86: =MIN(IF(N86=Data[Index],Data[Adj Close]),IF(N86=Data[Lag Index U],Data[Adj Close])) -> 251.316803 | R86: =MAX(IF(N86=Data[Index],Data[Upper Bollinger Band],0),IF(N86=Data[Lag Index U],Data[Upper Bollinger Band],0)) -> 304.9089926 | S86: =MIN(IF(N86=Data[Index],Data[Upper Bollinger Band]),IF(N86=Data[Lag Index U],Data[Upper Bollinger Band])) -> 303.7056499 | T86: =MAX(IF(N86=Data[Index],Data[Lower Bollinger Band],0),IF(N86=Data[Lag Index U],Data[Lower Bollinger Band],0)) -> 232.235612 | U86: =MIN(IF(N86=Data[Index],Data[Lower Bollinger Band]),IF(N86=Data[Lag Index U],Data[Lower Bollinger Band])) -> 231.5067434
D87: 2022-03-22 | E87: 301.860229 | F87: =IF(Data[[#This Row],[Adj Close]]<E88,TRUE,"") ->  | G87: =IF(F86=Data[[#This Row],[Up]],0,1) -> 1 | H87: =SUM($G$33:G87) -> 29 | I87: 28 | J87: =AVERAGE(OFFSET(E86,1,,-MIN(Bollinger_Band_Range,COUNTA(E$32:E86)))+Standard_Deviation*IFERROR(STDEV(OFFSET(E86,1,,-MIN(Bollinger_Band_Range,COUNTA(E$32:E86)))),0)) -> 314.9453183 | K87: =IFERROR(AVERAGE(OFFSET(E86,1,,-MIN(Bollinger_Band_Range,COUNTA(E$32:E86)))-Standard_Deviation*IFERROR(STDEV(OFFSET(E86,1,,-MIN(Bollinger_Band_Range,COUNTA(E$32:E86)))),0)),0) -> 262.6108156 | N87: 55 | O87: =INDEX(Data[Date],MATCH(N87,Data[Index],0)) -> 2022-05-23 | P87: =MAX(IF(N87=Data[Index],Data[Adj Close],0),IF(N87=Data[Lag Index U],Data[Adj Close],0)) -> 259.366974 | Q87: =MIN(IF(N87=Data[Index],Data[Adj Close]),IF(N87=Data[Lag Index U],Data[Adj Close])) -> 258.342041 | R87: =MAX(IF(N87=Data[Index],Data[Upper Bollinger Band],0),IF(N87=Data[Lag Index U],Data[Upper Bollinger Band],0)) -> 303.7336238 | S87: =MIN(IF(N87=Data[Index],Data[Upper Bollinger Band]),IF(N87=Data[Lag Index U],Data[Upper Bollinger Band])) -> 303.7056499 | T87: =MAX(IF(N87=Data[Index],Data[Lower Bollinger Band],0),IF(N87=Data[Lag Index U],Data[Lower Bollinger Band],0)) -> 231.5067434 | U87: =MIN(IF(N87=Data[Index],Data[Lower Bollinger Band]),IF(N87=Data[Lag Index U],Data[Lower Bollinger Band])) -> 230.486466
D88: 2022-03-23 | E88: 297.323273 | F88: =IF(Data[[#This Row],[Adj Close]]<E89,TRUE,"") -> TRUE | G88: =IF(F87=Data[[#This Row],[Up]],0,1) -> 1 | H88: =SUM($G$33:G88) -> 30 | I88: 29 | J88: =AVERAGE(OFFSET(E87,1,,-MIN(Bollinger_Band_Range,COUNTA(E$32:E87)))+Standard_Deviation*IFERROR(STDEV(OFFSET(E87,1,,-MIN(Bollinger_Band_Range,COUNTA(E$32:E87)))),0)) -> 315.3857839 | K88: =IFERROR(AVERAGE(OFFSET(E87,1,,-MIN(Bollinger_Band_Range,COUNTA(E$32:E87)))-Standard_Deviation*IFERROR(STDEV(OFFSET(E87,1,,-MIN(Bollinger_Band_Range,COUNTA(E$32:E87)))),0)),0) -> 264.0784463 | N88: 56 | O88: =INDEX(Data[Date],MATCH(N88,Data[Index],0)) -> 2022-05-24 | P88: =MAX(IF(N88=Data[Index],Data[Adj Close],0),IF(N88=Data[Lag Index U],Data[Adj Close],0)) -> 271.894989 | Q88: =MIN(IF(N88=Data[Index],Data[Adj Close]),IF(N88=Data[Lag Index U],Data[Adj Close])) -> 258.342041 | R88: =MAX(IF(N88=Data[Index],Data[Upper Bollinger Band],0),IF(N88=Data[Lag Index U],Data[Upper Bollinger Band],0)) -> 303.7336238 | S88: =MIN(IF(N88=Data[Index],Data[Upper Bollinger Band]),IF(N88=Data[Lag Index U],Data[Upper Bollinger Band])) -> 296.3381417 | T88: =MAX(IF(N88=Data[Index],Data[Lower Bollinger Band],0),IF(N88=Data[Lag Index U],Data[Lower Bollinger Band],0)) -> 233.2315513 | U88: =MIN(IF(N88=Data[Index],Data[Lower Bollinger Band]),IF(N88=Data[Lag Index U],Data[Lower Bollinger Band])) -> 230.486466
D89: 2022-03-24 | E89: 301.899963 | F89: =IF(Data[[#This Row],[Adj Close]]<E90,TRUE,"") ->  | G89: =IF(F88=Data[[#This Row],[Up]],0,1) -> 1 | H89: =SUM($G$33:G89) -> 31 | I89: 30 | J89: =AVERAGE(OFFSET(E88,1,,-MIN(Bollinger_Band_Range,COUNTA(E$32:E88)))+Standard_Deviation*IFERROR(STDEV(OFFSET(E88,1,,-MIN(Bollinger_Band_Range,COUNTA(E$32:E88)))),0)) -> 317.0855857 | K89: =IFERROR(AVERAGE(OFFSET(E88,1,,-MIN(Bollinger_Band_Range,COUNTA(E$32:E88)))-Standard_Deviation*IFERROR(STDEV(OFFSET(E88,1,,-MIN(Bollinger_Band_Range,COUNTA(E$32:E88)))),0)),0) -> 263.3227698 | N89: 57 | O89: =INDEX(Data[Date],MATCH(N89,Data[Index],0)) -> 2022-05-27 | P89: =MAX(IF(N89=Data[Index],Data[Adj Close],0),IF(N89=Data[Lag Index U],Data[Adj Close],0)) -> 271.894989 | Q89: =MIN(IF(N89=Data[Index],Data[Adj Close]),IF(N89=Data[Lag Index U],Data[Adj Close])) -> 270.531769 | R89: =MAX(IF(N89=Data[Index],Data[Upper Bollinger Band],0),IF(N89=Data[Lag Index U],Data[Upper Bollinger Band],0)) -> 296.3381417 | S89: =MIN(IF(N89=Data[Index],Data[Upper Bollinger Band]),IF(N89=Data[Lag Index U],Data[Upper Bollinger Band])) -> 293.5290596 | T89: =MAX(IF(N89=Data[Index],Data[Lower Bollinger Band],0),IF(N89=Data[Lag Index U],Data[Lower Bollinger Band],0)) -> 234.8526146 | U89: =MIN(IF(N89=Data[Index],Data[Lower Bollinger Band]),IF(N89=Data[Lag Index U],Data[Lower Bollinger Band])) -> 233.2315513
D90: 2022-03-25 | E90: 301.482971 | F90: =IF(Data[[#This Row],[Adj Close]]<E91,TRUE,"") -> TRUE | G90: =IF(F89=Data[[#This Row],[Up]],0,1) -> 1 | H90: =SUM($G$33:G90) -> 32 | I90: 31 | J90: =AVERAGE(OFFSET(E89,1,,-MIN(Bollinger_Band_Range,COUNTA(E$32:E89)))+Standard_Deviation*IFERROR(STDEV(OFFSET(E89,1,,-MIN(Bollinger_Band_Range,COUNTA(E$32:E89)))),0)) -> 318.2744954 | K90: =IFERROR(AVERAGE(OFFSET(E89,1,,-MIN(Bollinger_Band_Range,COUNTA(E$32:E89)))-Standard_Deviation*IFERROR(STDEV(OFFSET(E89,1,,-MIN(Bollinger_Band_Range,COUNTA(E$32:E89)))),0)),0) -> 262.7662484 | N90: 58 | O90: =INDEX(Data[Date],MATCH(N90,Data[Index],0)) -> 2022-05-31 | P90: =MAX(IF(N90=Data[Index],Data[Adj Close],0),IF(N90=Data[Lag Index U],Data[Adj Close],0)) -> 273.228394 | Q90: =MIN(IF(N90=Data[Index],Data[Adj Close]),IF(N90=Data[Lag Index U],Data[Adj Close])) -> 270.531769 | R90: =MAX(IF(N90=Data[Index],Data[Upper Bollinger Band],0),IF(N90=Data[Lag Index U],Data[Upper Bollinger Band],0)) -> 293.5290596 | S90: =MIN(IF(N90=Data[Index],Data[Upper Bollinger Band]),IF(N90=Data[Lag Index U],Data[Upper Bollinger Band])) -> 286.0164542 | T90: =MAX(IF(N90=Data[Index],Data[Lower Bollinger Band],0),IF(N90=Data[Lag Index U],Data[Lower Bollinger Band],0)) -> 240.0336099 | U90: =MIN(IF(N90=Data[Index],Data[Lower Bollinger Band]),IF(N90=Data[Lag Index U],Data[Lower Bollinger Band])) -> 234.8526146
D91: 2022-03-28 | E91: 308.452209 | F91: =IF(Data[[#This Row],[Adj Close]]<E92,TRUE,"") -> TRUE | G91: =IF(F90=Data[[#This Row],[Up]],0,1) -> 0 | H91: =SUM($G$33:G91) -> 32 | I91: 32 | J91: =AVERAGE(OFFSET(E90,1,,-MIN(Bollinger_Band_Range,COUNTA(E$32:E90)))+Standard_Deviation*IFERROR(STDEV(OFFSET(E90,1,,-MIN(Bollinger_Band_Range,COUNTA(E$32:E90)))),0)) -> 321.1385823 | K91: =IFERROR(AVERAGE(OFFSET(E90,1,,-MIN(Bollinger_Band_Range,COUNTA(E$32:E90)))-Standard_Deviation*IFERROR(STDEV(OFFSET(E90,1,,-MIN(Bollinger_Band_Range,COUNTA(E$32:E90)))),0)),0) -> 261.0845467 | N91: 59 | O91: =INDEX(Data[Date],MATCH(N91,Data[Index],0)) -> 2022-06-02 | P91: =MAX(IF(N91=Data[Index],Data[Adj Close],0),IF(N91=Data[Lag Index U],Data[Adj Close],0)) -> 273.228394 | Q91: =MIN(IF(N91=Data[Index],Data[Adj Close]),IF(N91=Data[Lag Index U],Data[Adj Close])) -> 267.427094 | R91: =MAX(IF(N91=Data[Index],Data[Upper Bollinger Band],0),IF(N91=Data[Lag Index U],Data[Upper Bollinger Band],0)) -> 286.0164542 | S91: =MIN(IF(N91=Data[Index],Data[Upper Bollinger Band]),IF(N91=Data[Lag Index U],Data[Upper Bollinger Band])) -> 283.2350591 | T91: =MAX(IF(N91=Data[Index],Data[Lower Bollinger Band],0),IF(N91=Data[Lag Index U],Data[Lower Bollinger Band],0)) -> 241.6182094 | U91: =MIN(IF(N91=Data[Index],Data[Lower Bollinger Band]),IF(N91=Data[Lag Index U],Data[Lower Bollinger Band])) -> 240.0336099
D92: 2022-03-29 | E92: 313.128113 | F92: =IF(Data[[#This Row],[Adj Close]]<E93,TRUE,"") ->  | G92: =IF(F91=Data[[#This Row],[Up]],0,1) -> 1 | H92: =SUM($G$33:G92) -> 33 | I92: 32 | J92: =AVERAGE(OFFSET(E91,1,,-MIN(Bollinger_Band_Range,COUNTA(E$32:E91)))+Standard_Deviation*IFERROR(STDEV(OFFSET(E91,1,,-MIN(Bollinger_Band_Range,COUNTA(E$32:E91)))),0)) -> 325.5947898 | K92: =IFERROR(AVERAGE(OFFSET(E91,1,,-MIN(Bollinger_Band_Range,COUNTA(E$32:E91)))-Standard_Deviation*IFERROR(STDEV(OFFSET(E91,1,,-MIN(Bollinger_Band_Range,COUNTA(E$32:E91)))),0)),0) -> 258.6595343 | N92: 60 | O92: =INDEX(Data[Date],MATCH(N92,Data[Index],0)) -> 2022-06-06 | P92: =MAX(IF(N92=Data[Index],Data[Adj Close],0),IF(N92=Data[Lag Index U],Data[Adj Close],0)) -> 271.158661 | Q92: =MIN(IF(N92=Data[Index],Data[Adj Close]),IF(N92=Data[Lag Index U],Data[Adj Close])) -> 267.427094 | R92: =MAX(IF(N92=Data[Index],Data[Upper Bollinger Band],0),IF(N92=Data[Lag Index U],Data[Upper Bollinger Band],0)) -> 284.4700799 | S92: =MIN(IF(N92=Data[Index],Data[Upper Bollinger Band]),IF(N92=Data[Lag Index U],Data[Upper Bollinger Band])) -> 283.2350591 | T92: =MAX(IF(N92=Data[Index],Data[Lower Bollinger Band],0),IF(N92=Data[Lag Index U],Data[Lower Bollinger Band],0)) -> 241.6182094 | U92: =MIN(IF(N92=Data[Index],Data[Lower Bollinger Band]),IF(N92=Data[Lag Index U],Data[Lower Bollinger Band])) -> 241.2324684
D93: 2022-03-30 | E93: 311.589325 | F93: =IF(Data[[#This Row],[Adj Close]]<E94,TRUE,"") ->  | G93: =IF(F92=Data[[#This Row],[Up]],0,1) -> 0 | H93: =SUM($G$33:G93) -> 33 | I93: 33 | J93: =AVERAGE(OFFSET(E92,1,,-MIN(Bollinger_Band_Range,COUNTA(E$32:E92)))+Standard_Deviation*IFERROR(STDEV(OFFSET(E92,1,,-MIN(Bollinger_Band_Range,COUNTA(E$32:E92)))),0)) -> 328.5646451 | K93: =IFERROR(AVERAGE(OFFSET(E92,1,,-MIN(Bollinger_Band_Range,COUNTA(E$32:E92)))-Standard_Deviation*IFERROR(STDEV(OFFSET(E92,1,,-MIN(Bollinger_Band_Range,COUNTA(E$32:E92)))),0)),0) -> 257.0467865 | N93: 61 | O93: =INDEX(Data[Date],MATCH(N93,Data[Index],0)) -> 2022-06-07 | P93: =MAX(IF(N93=Data[Index],Data[Adj Close],0),IF(N93=Data[Lag Index U],Data[Adj Close],0)) -> 271.158661 | Q93: =MIN(IF(N93=Data[Index],Data[Adj Close]),IF(N93=Data[Lag Index U],Data[Adj Close])) -> 241.067505 | R93: =MAX(IF(N93=Data[Index],Data[Upper Bollinger Band],0),IF(N93=Data[Lag Index U],Data[Upper Bollinger Band],0)) -> 288.600288 | S93: =MIN(IF(N93=Data[Index],Data[Upper Bollinger Band]),IF(N93=Data[Lag Index U],Data[Upper Bollinger Band])) -> 284.4700799 | T93: =MAX(IF(N93=Data[Index],Data[Lower Bollinger Band],0),IF(N93=Data[Lag Index U],Data[Lower Bollinger Band],0)) -> 241.5766659 | U93: =MIN(IF(N93=Data[Index],Data[Lower Bollinger Band]),IF(N93=Data[Lag Index U],Data[Lower Bollinger Band])) -> 235.7451542
D94: 2022-03-31 | E94: 306.079468 | F94: =IF(Data[[#This Row],[Adj Close]]<E95,TRUE,"") -> TRUE | G94: =IF(F93=Data[[#This Row],[Up]],0,1) -> 1 | H94: =SUM($G$33:G94) -> 34 | I94: 33 | J94: =AVERAGE(OFFSET(E93,1,,-MIN(Bollinger_Band_Range,COUNTA(E$32:E93)))+Standard_Deviation*IFERROR(STDEV(OFFSET(E93,1,,-MIN(Bollinger_Band_Range,COUNTA(E$32:E93)))),0)) -> 330.2735258 | K94: =IFERROR(AVERAGE(OFFSET(E93,1,,-MIN(Bollinger_Band_Range,COUNTA(E$32:E93)))-Standard_Deviation*IFERROR(STDEV(OFFSET(E93,1,,-MIN(Bollinger_Band_Range,COUNTA(E$32:E93)))),0)),0) -> 256.5679382 | N94: 62 | O94: =INDEX(Data[Date],MATCH(N94,Data[Index],0)) -> 2022-06-13 | P94: =MAX(IF(N94=Data[Index],Data[Adj Close],0),IF(N94=Data[Lag Index U],Data[Adj Close],0)) -> 250.520737 | Q94: =MIN(IF(N94=Data[Index],Data[Adj Close]),IF(N94=Data[Lag Index U],Data[Adj Close])) -> 241.067505 | R94: =MAX(IF(N94=Data[Index],Data[Upper Bollinger Band],0),IF(N94=Data[Lag Index U],Data[Upper Bollinger Band],0)) -> 290.6842385 | S94: =MIN(IF(N94=Data[Index],Data[Upper Bollinger Band]),IF(N94=Data[Lag Index U],Data[Upper Bollinger Band])) -> 288.600288 | T94: =MAX(IF(N94=Data[Index],Data[Lower Bollinger Band],0),IF(N94=Data[Lag Index U],Data[Lower Bollinger Band],0)) -> 235.7451542 | U94: =MIN(IF(N94=Data[Index],Data[Lower Bollinger Band]),IF(N94=Data[Lag Index U],Data[Lower Bollinger Band])) -> 230.5921471
D95: 2022-04-01 | E95: 307.181458 | F95: =IF(Data[[#This Row],[Adj Close]]<E96,TRUE,"") -> TRUE | G95: =IF(F94=Data[[#This Row],[Up]],0,1) -> 0 | H95: =SUM($G$33:G95) -> 34 | I95: 34 | J95: =AVERAGE(OFFSET(E94,1,,-MIN(Bollinger_Band_Range,COUNTA(E$32:E94)))+Standard_Deviation*IFERROR(STDEV(OFFSET(E94,1,,-MIN(Bollinger_Band_Range,COUNTA(E$32:E94)))),0)) -> 332.1240097 | K95: =IFERROR(AVERAGE(OFFSET(E94,1,,-MIN(Bollinger_Band_Range,COUNTA(E$32:E94)))-Standard_Deviation*IFERROR(STDEV(OFFSET(E94,1,,-MIN(Bollinger_Band_Range,COUNTA(E$32:E94)))),0)),0) -> 256.6593062 | N95: 63 | O95: =INDEX(Data[Date],MATCH(N95,Data[Index],0)) -> 2022-06-15 | P95: =MAX(IF(N95=Data[Index],Data[Adj Close],0),IF(N95=Data[Lag Index U],Data[Adj Close],0)) -> 250.520737 | Q95: =MIN(IF(N95=Data[Index],Data[Adj Close]),IF(N95=Data[Lag Index U],Data[Adj Close])) -> 243.76416 | R95: =MAX(IF(N95=Data[Index],Data[Upper Bollinger Band],0),IF(N95=Data[Lag Index U],Data[Upper Bollinger Band],0)) -> 291.915166 | S95: =MIN(IF(N95=Data[Index],Data[Upper Bollinger Band]),IF(N95=Data[Lag Index U],Data[Upper Bollinger Band])) -> 290.6842385 | T95: =MAX(IF(N95=Data[Index],Data[Lower Bollinger Band],0),IF(N95=Data[Lag Index U],Data[Lower Bollinger Band],0)) -> 230.5921471 | U95: =MIN(IF(N95=Data[Index],Data[Lower Bollinger Band]),IF(N95=Data[Lag Index U],Data[Lower Bollinger Band])) -> 228.4547026
D96: 2022-04-04 | E96: 312.691315 | F96: =IF(Data[[#This Row],[Adj Close]]<E97,TRUE,"") ->  | G96: =IF(F95=Data[[#This Row],[Up]],0,1) -> 1 | H96: =SUM($G$33:G96) -> 35 | I96: 34 | J96: =AVERAGE(OFFSET(E95,1,,-MIN(Bollinger_Band_Range,COUNTA(E$32:E95)))+Standard_Deviation*IFERROR(STDEV(OFFSET(E95,1,,-MIN(Bollinger_Band_Range,COUNTA(E$32:E95)))),0)) -> 333.6908968 | K96: =IFERROR(AVERAGE(OFFSET(E95,1,,-MIN(Bollinger_Band_Range,COUNTA(E$32:E95)))-Standard_Deviation*IFERROR(STDEV(OFFSET(E95,1,,-MIN(Bollinger_Band_Range,COUNTA(E$32:E95)))),0)),0) -> 258.6723325 | N96: 64 | O96: =INDEX(Data[Date],MATCH(N96,Data[Index],0)) -> 2022-06-16 | P96: =MAX(IF(N96=Data[Index],Data[Adj Close],0),IF(N96=Data[Lag Index U],Data[Adj Close],0)) -> 252.490997 | Q96: =MIN(IF(N96=Data[Index],Data[Adj Close]),IF(N96=Data[Lag Index U],Data[Adj Close])) -> 243.76416 | R96: =MAX(IF(N96=Data[Index],Data[Upper Bollinger Band],0),IF(N96=Data[Lag Index U],Data[Upper Bollinger Band],0)) -> 292.5177218 | S96: =MIN(IF(N96=Data[Index],Data[Upper Bollinger Band]),IF(N96=Data[Lag Index U],Data[Upper Bollinger Band])) -> 291.915166 | T96: =MAX(IF(N96=Data[Index],Data[Lower Bollinger Band],0),IF(N96=Data[Lag Index U],Data[Lower Bollinger Band],0)) -> 228.4547026 | U96: =MIN(IF(N96=Data[Index],Data[Lower Bollinger Band]),IF(N96=Data[Lag Index U],Data[Lower Bollinger Band])) -> 227.3058486
D97: 2022-04-05 | E97: 308.63089 | F97: =IF(Data[[#This Row],[Adj Close]]<E98,TRUE,"") ->  | G97: =IF(F96=Data[[#This Row],[Up]],0,1) -> 0 | H97: =SUM($G$33:G97) -> 35 | I97: =N(H96) -> 35 | J97: =AVERAGE(OFFSET(E96,1,,-MIN(Bollinger_Band_Range,COUNTA(E$32:E96)))+Standard_Deviation*IFERROR(STDEV(OFFSET(E96,1,,-MIN(Bollinger_Band_Range,COUNTA(E$32:E96)))),0)) -> 332.7856177 | K97: =IFERROR(AVERAGE(OFFSET(E96,1,,-MIN(Bollinger_Band_Range,COUNTA(E$32:E96)))-Standard_Deviation*IFERROR(STDEV(OFFSET(E96,1,,-MIN(Bollinger_Band_Range,COUNTA(E$32:E96)))),0)),0) -> 263.0552697 | N97: 65 | O97: =INDEX(Data[Date],MATCH(N97,Data[Index],0)) -> 2022-06-21 | P97: =MAX(IF(N97=Data[Index],Data[Adj Close],0),IF(N97=Data[Lag Index U],Data[Adj Close],0)) -> 252.490997 | Q97: =MIN(IF(N97=Data[Index],Data[Adj Close]),IF(N97=Data[Lag Index U],Data[Adj Close])) -> 251.884003 | R97: =MAX(IF(N97=Data[Index],Data[Upper Bollinger Band],0),IF(N97=Data[Lag Index U],Data[Upper Bollinger Band],0)) -> 292.5156818 | S97: =MIN(IF(N97=Data[Index],Data[Upper Bollinger Band]),IF(N97=Data[Lag Index U],Data[Upper Bollinger Band])) -> 292.4390416 | T97: =MAX(IF(N97=Data[Index],Data[Lower Bollinger Band],0),IF(N97=Data[Lag Index U],Data[Lower Bollinger Band],0)) -> 227.5019482 | U97: =MIN(IF(N97=Data[Index],Data[Lower Bollinger Band]),IF(N97=Data[Lag Index U],Data[Lower Bollinger Band])) -> 226.6770109
D98: 2022-04-06 | E98: 297.333191 | F98: =IF(Data[[#This Row],[Adj Close]]<E99,TRUE,"") -> TRUE | G98: =IF(F97=Data[[#This Row],[Up]],0,1) -> 1 | H98: =SUM($G$33:G98) -> 36 | I98: 35 | J98: =AVERAGE(OFFSET(E97,1,,-MIN(Bollinger_Band_Range,COUNTA(E$32:E97)))+Standard_Deviation*IFERROR(STDEV(OFFSET(E97,1,,-MIN(Bollinger_Band_Range,COUNTA(E$32:E97)))),0)) -> 332.3809337 | K98: =IFERROR(AVERAGE(OFFSET(E97,1,,-MIN(Bollinger_Band_Range,COUNTA(E$32:E97)))-Standard_Deviation*IFERROR(STDEV(OFFSET(E97,1,,-MIN(Bollinger_Band_Range,COUNTA(E$32:E97)))),0)),0) -> 264.5519917 | N98: =N(N97)+1 -> 66 | O98: =INDEX(Data[Date],MATCH(N98,Data[Index],0)) -> 2022-06-22 | P98: =MAX(IF(N98=Data[Index],Data[Adj Close],0),IF(N98=Data[Lag Index U],Data[Adj Close],0)) -> 266.382294 | Q98: =MIN(IF(N98=Data[Index],Data[Adj Close]),IF(N98=Data[Lag Index U],Data[Adj Close])) -> 251.884003 | R98: =MAX(IF(N98=Data[Index],Data[Upper Bollinger Band],0),IF(N98=Data[Lag Index U],Data[Upper Bollinger Band],0)) -> 293.0569874 | S98: =MIN(IF(N98=Data[Index],Data[Upper Bollinger Band]),IF(N98=Data[Lag Index U],Data[Upper Bollinger Band])) -> 292.4954226 | T98: =MAX(IF(N98=Data[Index],Data[Lower Bollinger Band],0),IF(N98=Data[Lag Index U],Data[Lower Bollinger Band],0)) -> 226.6770109 | U98: =MIN(IF(N98=Data[Index],Data[Lower Bollinger Band]),IF(N98=Data[Lag Index U],Data[Lower Bollinger Band])) -> 226.5755308
D99: 2022-04-07 | E99: 299.189667 | F99: =IF(Data[[#This Row],[Adj Close]]<E100,TRUE,"") ->  | G99: =IF(F98=Data[[#This Row],[Up]],0,1) -> 1 | H99: =SUM($G$33:G99) -> 37 | I99: 36 | J99: =AVERAGE(OFFSET(E98,1,,-MIN(Bollinger_Band_Range,COUNTA(E$32:E98)))+Standard_Deviation*IFERROR(STDEV(OFFSET(E98,1,,-MIN(Bollinger_Band_Range,COUNTA(E$32:E98)))),0)) -> 331.4811317 | K99: =IFERROR(AVERAGE(OFFSET(E98,1,,-MIN(Bollinger_Band_Range,COUNTA(E$32:E98)))-Standard_Deviation*IFERROR(STDEV(OFFSET(E98,1,,-MIN(Bollinger_Band_Range,COUNTA(E$32:E98)))),0)),0) -> 267.0183739 | N99: 67 | O99: =INDEX(Data[Date],MATCH(N99,Data[Index],0)) -> 2022-06-24 | P99: =MAX(IF(N99=Data[Index],Data[Adj Close],0),IF(N99=Data[Lag Index U],Data[Adj Close],0)) -> 266.382294 | Q99: =MIN(IF(N99=Data[Index],Data[Adj Close]),IF(N99=Data[Lag Index U],Data[Adj Close])) -> 255.217514 | R99: =MAX(IF(N99=Data[Index],Data[Upper Bollinger Band],0),IF(N99=Data[Lag Index U],Data[Upper Bollinger Band],0)) -> 293.0569874 | S99: =MIN(IF(N99=Data[Index],Data[Upper Bollinger Band]),IF(N99=Data[Lag Index U],Data[Upper Bollinger Band])) -> 291.0939465 | T99: =MAX(IF(N99=Data[Index],Data[Lower Bollinger Band],0),IF(N99=Data[Lag Index U],Data[Lower Bollinger Band],0)) -> 226.7703238 | U99: =MIN(IF(N99=Data[Index],Data[Lower Bollinger Band]),IF(N99=Data[Lag Index U],Data[Lower Bollinger Band])) -> 226.5755308
D100: 2022-04-08 | E100: 294.821503 | F100: =IF(Data[[#This Row],[Adj Close]]<E101,TRUE,"") ->  | G100: =IF(F99=Data[[#This Row],[Up]],0,1) -> 0 | H100: =SUM($G$33:G100) -> 37 | I100: 37 | J100: =AVERAGE(OFFSET(E99,1,,-MIN(Bollinger_Band_Range,COUNTA(E$32:E99)))+Standard_Deviation*IFERROR(STDEV(OFFSET(E99,1,,-MIN(Bollinger_Band_Range,COUNTA(E$32:E99)))),0)) -> 328.8718138 | K100: =IFERROR(AVERAGE(OFFSET(E99,1,,-MIN(Bollinger_Band_Range,COUNTA(E$32:E99)))-Standard_Deviation*IFERROR(STDEV(OFFSET(E99,1,,-MIN(Bollinger_Band_Range,COUNTA(E$32:E99)))),0)),0) -> 271.3054628 | N100: 68 | O100: =INDEX(Data[Date],MATCH(N100,Data[Index],0)) -> 2022-06-28 | P100: =MAX(IF(N100=Data[Index],Data[Adj Close],0),IF(N100=Data[Lag Index U],Data[Adj Close],0)) -> 258.978912 | Q100: =MIN(IF(N100=Data[Index],Data[Adj Close]),IF(N100=Data[Lag Index U],Data[Adj Close])) -> 255.217514 | R100: =MAX(IF(N100=Data[Index],Data[Upper Bollinger Band],0),IF(N100=Data[Lag Index U],Data[Upper Bollinger Band],0)) -> 291.0939465 | S100: =MIN(IF(N100=Data[Index],Data[Upper Bollinger Band]),IF(N100=Data[Lag Index U],Data[Upper Bollinger Band])) -> 289.4589474 | T100: =MAX(IF(N100=Data[Index],Data[Lower Bollinger Band],0),IF(N100=Data[Lag Index U],Data[Lower Bollinger Band],0)) -> 227.2500372 | U100: =MIN(IF(N100=Data[Index],Data[Lower Bollinger Band]),IF(N100=Data[Lag Index U],Data[Lower Bollinger Band])) -> 226.7703238
D101: 2022-04-11 | E101: 283.196289 | F101: =IF(Data[[#This Row],[Adj Close]]<E102,TRUE,"") ->  | G101: =IF(F100=Data[[#This Row],[Up]],0,1) -> 0 | H101: =SUM($G$33:G101) -> 37 | I101: 37 | J101: =AVERAGE(OFFSET(E100,1,,-MIN(Bollinger_Band_Range,COUNTA(E$32:E100)))+Standard_Deviation*IFERROR(STDEV(OFFSET(E100,1,,-MIN(Bollinger_Band_Range,COUNTA(E$32:E100)))),0)) -> 326.0256436 | K101: =IFERROR(AVERAGE(OFFSET(E100,1,,-MIN(Bollinger_Band_Range,COUNTA(E$32:E100)))-Standard_Deviation*IFERROR(STDEV(OFFSET(E100,1,,-MIN(Bollinger_Band_Range,COUNTA(E$32:E100)))),0)),0) -> 275.0272556 | N101: 69 | O101: =INDEX(Data[Date],MATCH(N101,Data[Index],0)) -> 2022-06-29 | P101: =MAX(IF(N101=Data[Index],Data[Adj Close],0),IF(N101=Data[Lag Index U],Data[Adj Close],0)) -> 258.978912 | Q101: =MIN(IF(N101=Data[Index],Data[Adj Close]),IF(N101=Data[Lag Index U],Data[Adj Close])) -> 255.565781 | R101: =MAX(IF(N101=Data[Index],Data[Upper Bollinger Band],0),IF(N101=Data[Lag Index U],Data[Upper Bollinger Band],0)) -> 289.4589474 | S101: =MIN(IF(N101=Data[Index],Data[Upper Bollinger Band]),IF(N101=Data[Lag Index U],Data[Upper Bollinger Band])) -> 287.391157 | T101: =MAX(IF(N101=Data[Index],Data[Lower Bollinger Band],0),IF(N101=Data[Lag Index U],Data[Lower Bollinger Band],0)) -> 227.7665016 | U101: =MIN(IF(N101=Data[Index],Data[Lower Bollinger Band]),IF(N101=Data[Lag Index U],Data[Lower Bollinger Band])) -> 227.2500372
D102: 2022-04-12 | E102: 280.019409 | F102: =IF(Data[[#This Row],[Adj Close]]<E103,TRUE,"") -> TRUE | G102: =IF(F101=Data[[#This Row],[Up]],0,1) -> 1 | H102: =SUM($G$33:G102) -> 38 | I102: 37 | J102: =AVERAGE(OFFSET(E101,1,,-MIN(Bollinger_Band_Range,COUNTA(E$32:E101)))+Standard_Deviation*IFERROR(STDEV(OFFSET(E101,1,,-MIN(Bollinger_Band_Range,COUNTA(E$32:E101)))),0)) -> 327.3972186 | K102: =IFERROR(AVERAGE(OFFSET(E101,1,,-MIN(Bollinger_Band_Range,COUNTA(E$32:E101)))-Standard_Deviation*IFERROR(STDEV(OFFSET(E101,1,,-MIN(Bollinger_Band_Range,COUNTA(E$32:E101)))),0)),0) -> 273.1503644 | N102: 70 | O102: =INDEX(Data[Date],MATCH(N102,Data[Index],0)) -> 2022-06-30 | P102: =MAX(IF(N102=Data[Index],Data[Adj Close],0),IF(N102=Data[Lag Index U],Data[Adj Close],0)) -> 267.078827 | Q102: =MIN(IF(N102=Data[Index],Data[Adj Close]),IF(N102=Data[Lag Index U],Data[Adj Close])) -> 255.565781 | R102: =MAX(IF(N102=Data[Index],Data[Upper Bollinger Band],0),IF(N102=Data[Lag Index U],Data[Upper Bollinger Band],0)) -> 287.391157 | S102: =MIN(IF(N102=Data[Index],Data[Upper Bollinger Band]),IF(N102=Data[Lag Index U],Data[Upper Bollinger Band])) -> 281.3920766 | T102: =MAX(IF(N102=Data[Index],Data[Lower Bollinger Band],0),IF(N102=Data[Lag Index U],Data[Lower Bollinger Band],0)) -> 230.8987606 | U102: =MIN(IF(N102=Data[Index],Data[Lower Bollinger Band]),IF(N102=Data[Lag Index U],Data[Lower Bollinger Band])) -> 227.7665016
D103: 2022-04-13 | E103: 285.539154 | F103: =IF(Data[[#This Row],[Adj Close]]<E104,TRUE,"") ->  | G103: =IF(F102=Data[[#This Row],[Up]],0,1) -> 1 | H103: =SUM($G$33:G103) -> 39 | I103: 38 | J103: =AVERAGE(OFFSET(E102,1,,-MIN(Bollinger_Band_Range,COUNTA(E$32:E102)))+Standard_Deviation*IFERROR(STDEV(OFFSET(E102,1,,-MIN(Bollinger_Band_Range,COUNTA(E$32:E102)))),0)) -> 328.3460631 | K103: =IFERROR(AVERAGE(OFFSET(E102,1,,-MIN(Bollinger_Band_Range,COUNTA(E$32:E102)))-Standard_Deviation*IFERROR(STDEV(OFFSET(E102,1,,-MIN(Bollinger_Band_Range,COUNTA(E$32:E102)))),0)),0) -> 271.529416 | N103: 71 | O103: =INDEX(Data[Date],MATCH(N103,Data[Index],0)) -> 2022-07-07 | P103: =MAX(IF(N103=Data[Index],Data[Adj Close],0),IF(N103=Data[Lag Index U],Data[Adj Close],0)) -> 267.078827 | Q103: =MIN(IF(N103=Data[Index],Data[Adj Close]),IF(N103=Data[Lag Index U],Data[Adj Close])) -> 251.476013 | R103: =MAX(IF(N103=Data[Index],Data[Upper Bollinger Band],0),IF(N103=Data[Lag Index U],Data[Upper Bollinger Band],0)) -> 281.3920766 | S103: =MIN(IF(N103=Data[Index],Data[Upper Bollinger Band]),IF(N103=Data[Lag Index U],Data[Upper Bollinger Band])) -> 278.9989159 | T103: =MAX(IF(N103=Data[Index],Data[Lower Bollinger Band],0),IF(N103=Data[Lag Index U],Data[Lower Bollinger Band],0)) -> 234.098922 | U103: =MIN(IF(N103=Data[Index],Data[Lower Bollinger Band]),IF(N103=Data[Lag Index U],Data[Lower Bollinger Band])) -> 230.8987606
D104: 2022-04-14 | E104: 277.805542 | F104: =IF(Data[[#This Row],[Adj Close]]<E105,TRUE,"") -> TRUE | G104: =IF(F103=Data[[#This Row],[Up]],0,1) -> 1 | H104: =SUM($G$33:G104) -> 40 | I104: 39 | J104: =AVERAGE(OFFSET(E103,1,,-MIN(Bollinger_Band_Range,COUNTA(E$32:E103)))+Standard_Deviation*IFERROR(STDEV(OFFSET(E103,1,,-MIN(Bollinger_Band_Range,COUNTA(E$32:E103)))),0)) -> 330.9744555 | K104: =IFERROR(AVERAGE(OFFSET(E103,1,,-MIN(Bollinger_Band_Range,COUNTA(E$32:E103)))-Standard_Deviation*IFERROR(STDEV(OFFSET(E103,1,,-MIN(Bollinger_Band_Range,COUNTA(E$32:E103)))),0)),0) -> 267.3731611 | N104: 72 | O104: =INDEX(Data[Date],MATCH(N104,Data[Index],0)) -> 2022-07-13 | P104: =MAX(IF(N104=Data[Index],Data[Adj Close],0),IF(N104=Data[Lag Index U],Data[Adj Close],0)) -> 255.456314 | Q104: =MIN(IF(N104=Data[Index],Data[Adj Close]),IF(N104=Data[Lag Index U],Data[Adj Close])) -> 251.476013 | R104: =MAX(IF(N104=Data[Index],Data[Upper Bollinger Band],0),IF(N104=Data[Lag Index U],Data[Upper Bollinger Band],0)) -> 278.9989159 | S104: =MIN(IF(N104=Data[Index],Data[Upper Bollinger Band]),IF(N104=Data[Lag Index U],Data[Upper Bollinger Band])) -> 277.4130138 | T104: =MAX(IF(N104=Data[Index],Data[Lower Bollinger Band],0),IF(N104=Data[Lag Index U],Data[Lower Bollinger Band],0)) -> 237.1326618 | U104: =MIN(IF(N104=Data[Index],Data[Lower Bollinger Band]),IF(N104=Data[Lag Index U],Data[Lower Bollinger Band])) -> 234.098922
D105: 2022-04-18 | E105: 278.49054 | F105: =IF(Data[[#This Row],[Adj Close]]<E106,TRUE,"") -> TRUE | G105: =IF(F104=Data[[#This Row],[Up]],0,1) -> 0 | H105: =SUM($G$33:G105) -> 40 | I105: 40 | J105: =AVERAGE(OFFSET(E104,1,,-MIN(Bollinger_Band_Range,COUNTA(E$32:E104)))+Standard_Deviation*IFERROR(STDEV(OFFSET(E104,1,,-MIN(Bollinger_Band_Range,COUNTA(E$32:E104)))),0)) -> 332.8881079 | K105: =IFERROR(AVERAGE(OFFSET(E104,1,,-MIN(Bollinger_Band_Range,COUNTA(E$32:E104)))-Standard_Deviation*IFERROR(STDEV(OFFSET(E104,1,,-MIN(Bollinger_Band_Range,COUNTA(E$32:E104)))),0)),0) -> 263.4829127 | N105: 73 | O105: =INDEX(Data[Date],MATCH(N105,Data[Index],0)) -> 2022-07-15 | P105: =MAX(IF(N105=Data[Index],Data[Adj Close],0),IF(N105=Data[Lag Index U],Data[Adj Close],0)) -> 255.456314 | Q105: =MIN(IF(N105=Data[Index],Data[Adj Close]),IF(N105=Data[Lag Index U],Data[Adj Close])) -> 252.998474 | R105: =MAX(IF(N105=Data[Index],Data[Upper Bollinger Band],0),IF(N105=Data[Lag Index U],Data[Upper Bollinger Band],0)) -> 277.4130138 | S105: =MIN(IF(N105=Data[Index],Data[Upper Bollinger Band]),IF(N105=Data[Lag Index U],Data[Upper Bollinger Band])) -> 275.7850773 | T105: =MAX(IF(N105=Data[Index],Data[Lower Bollinger Band],0),IF(N105=Data[Lag Index U],Data[Lower Bollinger Band],0)) -> 239.6840297 | U105: =MIN(IF(N105=Data[Index],Data[Lower Bollinger Band]),IF(N105=Data[Lag Index U],Data[Lower Bollinger Band])) -> 237.1326618
D106: 2022-04-19 | E106: 283.235962 | F106: =IF(Data[[#This Row],[Adj Close]]<E107,TRUE,"") -> TRUE | G106: =IF(F105=Data[[#This Row],[Up]],0,1) -> 0 | H106: =SUM($G$33:G106) -> 40 | I106: 40 | J106: =AVERAGE(OFFSET(E105,1,,-MIN(Bollinger_Band_Range,COUNTA(E$32:E105)))+Standard_Deviation*IFERROR(STDEV(OFFSET(E105,1,,-MIN(Bollinger_Band_Range,COUNTA(E$32:E105)))),0)) -> 333.6220136 | K106: =IFERROR(AVERAGE(OFFSET(E105,1,,-MIN(Bollinger_Band_Range,COUNTA(E$32:E105)))-Standard_Deviation*IFERROR(STDEV(OFFSET(E105,1,,-MIN(Bollinger_Band_Range,COUNTA(E$32:E105)))),0)),0) -> 261.3730335 | N106: 74 | O106: =INDEX(Data[Date],MATCH(N106,Data[Index],0)) -> 2022-07-18 | P106: =MAX(IF(N106=Data[Index],Data[Adj Close],0),IF(N106=Data[Lag Index U],Data[Adj Close],0)) -> 263.536346 | Q106: =MIN(IF(N106=Data[Index],Data[Adj Close]),IF(N106=Data[Lag Index U],Data[Adj Close])) -> 252.998474 | R106: =MAX(IF(N106=Data[Index],Data[Upper Bollinger Band],0),IF(N106=Data[Lag Index U],Data[Upper Bollinger Band],0)) -> 275.7850773 | S106: =MIN(IF(N106=Data[Index],Data[Upper Bollinger Band]),IF(N106=Data[Lag Index U],Data[Upper Bollinger Band])) -> 274.4859286 | T106: =MAX(IF(N106=Data[Index],Data[Lower Bollinger Band],0),IF(N106=Data[Lag Index U],Data[Lower Bollinger Band],0)) -> 244.0708102 | U106: =MIN(IF(N106=Data[Index],Data[Lower Bollinger Band]),IF(N106=Data[Lag Index U],Data[Lower Bollinger Band])) -> 239.6840297
D107: 2022-04-20 | E107: 284.288269 | F107: =IF(Data[[#This Row],[Adj Close]]<E108,TRUE,"") ->  | G107: =IF(F106=Data[[#This Row],[Up]],0,1) -> 1 | H107: =SUM($G$33:G107) -> 41 | I107: 40 | J107: =AVERAGE(OFFSET(E106,1,,-MIN(Bollinger_Band_Range,COUNTA(E$32:E106)))+Standard_Deviation*IFERROR(STDEV(OFFSET(E106,1,,-MIN(Bollinger_Band_Range,COUNTA(E$32:E106)))),0)) -> 333.6500003 | K107: =IFERROR(AVERAGE(OFFSET(E106,1,,-MIN(Bollinger_Band_Range,COUNTA(E$32:E106)))-Standard_Deviation*IFERROR(STDEV(OFFSET(E106,1,,-MIN(Bollinger_Band_Range,COUNTA(E$32:E106)))),0)),0) -> 259.5878508 | N107: 75 | O107: =INDEX(Data[Date],MATCH(N107,Data[Index],0)) -> 2022-07-21 | P107: =MAX(IF(N107=Data[Index],Data[Adj Close],0),IF(N107=Data[Lag Index U],Data[Adj Close],0)) -> 263.536346 | Q107: =MIN(IF(N107=Data[Index],Data[Adj Close]),IF(N107=Data[Lag Index U],Data[Adj Close])) -> 250.660034 | R107: =MAX(IF(N107=Data[Index],Data[Upper Bollinger Band],0),IF(N107=Data[Lag Index U],Data[Upper Bollinger Band],0)) -> 274.6209589 | S107: =MIN(IF(N107=Data[Index],Data[Upper Bollinger Band]),IF(N107=Data[Lag Index U],Data[Upper Bollinger Band])) -> 273.3795238 | T107: =MAX(IF(N107=Data[Index],Data[Lower Bollinger Band],0),IF(N107=Data[Lag Index U],Data[Lower Bollinger Band],0)) -> 244.537189 | U107: =MIN(IF(N107=Data[Index],Data[Lower Bollinger Band]),IF(N107=Data[Lag Index U],Data[Lower Bollinger Band])) -> 243.2597857
D108: 2022-04-21 | E108: 278.778412 | F108: =IF(Data[[#This Row],[Adj Close]]<E109,TRUE,"") ->  | G108: =IF(F107=Data[[#This Row],[Up]],0,1) -> 0 | H108: =SUM($G$33:G108) -> 41 | I108: 41 | J108: =AVERAGE(OFFSET(E107,1,,-MIN(Bollinger_Band_Range,COUNTA(E$32:E107)))+Standard_Deviation*IFERROR(STDEV(OFFSET(E107,1,,-MIN(Bollinger_Band_Range,COUNTA(E$32:E107)))),0)) -> 334.597804 | K108: =IFERROR(AVERAGE(OFFSET(E107,1,,-MIN(Bollinger_Band_Range,COUNTA(E$32:E107)))-Standard_Deviation*IFERROR(STDEV(OFFSET(E107,1,,-MIN(Bollinger_Band_Range,COUNTA(E$32:E107)))),0)),0) -> 256.785561 | N108: 76 | O108: =INDEX(Data[Date],MATCH(N108,Data[Index],0)) -> 2022-07-26 | P108: =MAX(IF(N108=Data[Index],Data[Adj Close],0),IF(N108=Data[Lag Index U],Data[Adj Close],0)) -> 279.358093 | Q108: =MIN(IF(N108=Data[Index],Data[Adj Close]),IF(N108=Data[Lag Index U],Data[Adj Close])) -> 250.660034 | R108: =MAX(IF(N108=Data[Index],Data[Upper Bollinger Band],0),IF(N108=Data[Lag Index U],Data[Upper Bollinger Band],0)) -> 284.067718 | S108: =MIN(IF(N108=Data[Index],Data[Upper Bollinger Band]),IF(N108=Data[Lag Index U],Data[Upper Bollinger Band])) -> 273.3795238 | T108: =MAX(IF(N108=Data[Index],Data[Lower Bollinger Band],0),IF(N108=Data[Lag Index U],Data[Lower Bollinger Band],0)) -> 243.2597857 | U108: =MIN(IF(N108=Data[Index],Data[Lower Bollinger Band]),IF(N108=Data[Lag Index U],Data[Lower Bollinger Band])) -> 237.7778354
D109: 2022-04-22 | E109: 272.047485 | F109: =IF(Data[[#This Row],[Adj Close]]<E110,TRUE,"") -> TRUE | G109: =IF(F108=Data[[#This Row],[Up]],0,1) -> 1 | H109: =SUM($G$33:G109) -> 42 | I109: 41 | J109: =AVERAGE(OFFSET(E108,1,,-MIN(Bollinger_Band_Range,COUNTA(E$32:E108)))+Standard_Deviation*IFERROR(STDEV(OFFSET(E108,1,,-MIN(Bollinger_Band_Range,COUNTA(E$32:E108)))),0)) -> 335.9019935 | K109: =IFERROR(AVERAGE(OFFSET(E108,1,,-MIN(Bollinger_Band_Range,COUNTA(E$32:E108)))-Standard_Deviation*IFERROR(STDEV(OFFSET(E108,1,,-MIN(Bollinger_Band_Range,COUNTA(E$32:E108)))),0)),0) -> 252.4961237 | N109: 77 | O109: =INDEX(Data[Date],MATCH(N109,Data[Index],0)) -> 2022-07-29 | P109: =MAX(IF(N109=Data[Index],Data[Adj Close],0),IF(N109=Data[Lag Index U],Data[Adj Close],0)) -> 279.358093 | Q109: =MIN(IF(N109=Data[Index],Data[Adj Close]),IF(N109=Data[Lag Index U],Data[Adj Close])) -> 273.467224 | R109: =MAX(IF(N109=Data[Index],Data[Upper Bollinger Band],0),IF(N109=Data[Lag Index U],Data[Upper Bollinger Band],0)) -> 288.9334164 | S109: =MIN(IF(N109=Data[Index],Data[Upper Bollinger Band]),IF(N109=Data[Lag Index U],Data[Upper Bollinger Band])) -> 284.067718 | T109: =MAX(IF(N109=Data[Index],Data[Lower Bollinger Band],0),IF(N109=Data[Lag Index U],Data[Lower Bollinger Band],0)) -> 237.7778354 | U109: =MIN(IF(N109=Data[Index],Data[Lower Bollinger Band]),IF(N109=Data[Lag Index U],Data[Lower Bollinger Band])) -> 235.9371767
D110: 2022-04-25 | E110: 278.689087 | F110: =IF(Data[[#This Row],[Adj Close]]<E111,TRUE,"") ->  | G110: =IF(F109=Data[[#This Row],[Up]],0,1) -> 1 | H110: =SUM($G$33:G110) -> 43 | I110: 42 | J110: =AVERAGE(OFFSET(E109,1,,-MIN(Bollinger_Band_Range,COUNTA(E$32:E109)))+Standard_Deviation*IFERROR(STDEV(OFFSET(E109,1,,-MIN(Bollinger_Band_Range,COUNTA(E$32:E109)))),0)) -> 335.6697738 | K110: =IFERROR(AVERAGE(OFFSET(E109,1,,-MIN(Bollinger_Band_Range,COUNTA(E$32:E109)))-Standard_Deviation*IFERROR(STDEV(OFFSET(E109,1,,-MIN(Bollinger_Band_Range,COUNTA(E$32:E109)))),0)),0) -> 250.448955 | N110: 78 | O110: =INDEX(Data[Date],MATCH(N110,Data[Index],0)) -> 2022-08-02 | P110: =MAX(IF(N110=Data[Index],Data[Adj Close],0),IF(N110=Data[Lag Index U],Data[Adj Close],0)) -> 282.253754 | Q110: =MIN(IF(N110=Data[Index],Data[Adj Close]),IF(N110=Data[Lag Index U],Data[Adj Close])) -> 273.467224 | R110: =MAX(IF(N110=Data[Index],Data[Upper Bollinger Band],0),IF(N110=Data[Lag Index U],Data[Upper Bollinger Band],0)) -> 295.8853495 | S110: =MIN(IF(N110=Data[Index],Data[Upper Bollinger Band]),IF(N110=Data[Lag Index U],Data[Upper Bollinger Band])) -> 288.9334164 | T110: =MAX(IF(N110=Data[Index],Data[Lower Bollinger Band],0),IF(N110=Data[Lag Index U],Data[Lower Bollinger Band],0)) -> 235.9371767 | U110: =MIN(IF(N110=Data[Index],Data[Lower Bollinger Band]),IF(N110=Data[Lag Index U],Data[Lower Bollinger Band])) -> 232.1207325
D111: 2022-04-26 | E111: 268.265076 | F111: =IF(Data[[#This Row],[Adj Close]]<E112,TRUE,"") -> TRUE | G111: =IF(F110=Data[[#This Row],[Up]],0,1) -> 1 | H111: =SUM($G$33:G111) -> 44 | I111: 43 | J111: =AVERAGE(OFFSET(E110,1,,-MIN(Bollinger_Band_Range,COUNTA(E$32:E110)))+Standard_Deviation*IFERROR(STDEV(OFFSET(E110,1,,-MIN(Bollinger_Band_Range,COUNTA(E$32:E110)))),0)) -> 335.2807983 | K111: =IFERROR(AVERAGE(OFFSET(E110,1,,-MIN(Bollinger_Band_Range,COUNTA(E$32:E110)))-Standard_Deviation*IFERROR(STDEV(OFFSET(E110,1,,-MIN(Bollinger_Band_Range,COUNTA(E$32:E110)))),0)),0) -> 246.8192172 | N111: 79 | O111: =INDEX(Data[Date],MATCH(N111,Data[Index],0)) -> 2022-08-04 | P111: =MAX(IF(N111=Data[Index],Data[Adj Close],0),IF(N111=Data[Lag Index U],Data[Adj Close],0)) -> 282.253754 | Q111: =MIN(IF(N111=Data[Index],Data[Adj Close]),IF(N111=Data[Lag Index U],Data[Adj Close])) -> 278.940155 | R111: =MAX(IF(N111=Data[Index],Data[Upper Bollinger Band],0),IF(N111=Data[Lag Index U],Data[Upper Bollinger Band],0)) -> 300.7897987 | S111: =MIN(IF(N111=Data[Index],Data[Upper Bollinger Band]),IF(N111=Data[Lag Index U],Data[Upper Bollinger Band])) -> 295.8853495 | T111: =MAX(IF(N111=Data[Index],Data[Lower Bollinger Band],0),IF(N111=Data[Lag Index U],Data[Lower Bollinger Band],0)) -> 232.1207325 | U111: =MIN(IF(N111=Data[Index],Data[Lower Bollinger Band]),IF(N111=Data[Lag Index U],Data[Lower Bollinger Band])) -> 230.3069938
D112: 2022-04-27 | E112: 281.171021 | F112: =IF(Data[[#This Row],[Adj Close]]<E113,TRUE,"") -> TRUE | G112: =IF(F111=Data[[#This Row],[Up]],0,1) -> 0 | H112: =SUM($G$33:G112) -> 44 | I112: 44 | J112: =AVERAGE(OFFSET(E111,1,,-MIN(Bollinger_Band_Range,COUNTA(E$32:E111)))+Standard_Deviation*IFERROR(STDEV(OFFSET(E111,1,,-MIN(Bollinger_Band_Range,COUNTA(E$32:E111)))),0)) -> 331.255385 | K112: =IFERROR(AVERAGE(OFFSET(E111,1,,-MIN(Bollinger_Band_Range,COUNTA(E$32:E111)))-Standard_Deviation*IFERROR(STDEV(OFFSET(E111,1,,-MIN(Bollinger_Band_Range,COUNTA(E$32:E111)))),0)),0) -> 247.6489213 | N112: 80 | O112: =INDEX(Data[Date],MATCH(N112,Data[Index],0)) -> 2022-08-08 | P112: =MAX(IF(N112=Data[Index],Data[Adj Close],0),IF(N112=Data[Lag Index U],Data[Adj Close],0)) -> 287.736633 | Q112: =MIN(IF(N112=Data[Index],Data[Adj Close]),IF(N112=Data[Lag Index U],Data[Adj Close])) -> 278.940155 | R112: =MAX(IF(N112=Data[Index],Data[Upper Bollinger Band],0),IF(N112=Data[Lag Index U],Data[Upper Bollinger Band],0)) -> 305.010437 | S112: =MIN(IF(N112=Data[Index],Data[Upper Bollinger Band]),IF(N112=Data[Lag Index U],Data[Upper Bollinger Band])) -> 300.7897987 | T112: =MAX(IF(N112=Data[Index],Data[Lower Bollinger Band],0),IF(N112=Data[Lag Index U],Data[Lower Bollinger Band],0)) -> 232.5613249 | U112: =MIN(IF(N112=Data[Index],Data[Lower Bollinger Band]),IF(N112=Data[Lag Index U],Data[Lower Bollinger Band])) -> 230.3069938
D113: 2022-04-28 | E113: 287.534637 | F113: =IF(Data[[#This Row],[Adj Close]]<E114,TRUE,"") ->  | G113: =IF(F112=Data[[#This Row],[Up]],0,1) -> 1 | H113: =SUM($G$33:G113) -> 45 | I113: 44 | J113: =AVERAGE(OFFSET(E112,1,,-MIN(Bollinger_Band_Range,COUNTA(E$32:E112)))+Standard_Deviation*IFERROR(STDEV(OFFSET(E112,1,,-MIN(Bollinger_Band_Range,COUNTA(E$32:E112)))),0)) -> 327.0233339 | K113: =IFERROR(AVERAGE(OFFSET(E112,1,,-MIN(Bollinger_Band_Range,COUNTA(E$32:E112)))-Standard_Deviation*IFERROR(STDEV(OFFSET(E112,1,,-MIN(Bollinger_Band_Range,COUNTA(E$32:E112)))),0)),0) -> 249.4755036 | N113: 81 | O113: =INDEX(Data[Date],MATCH(N113,Data[Index],0)) -> 2022-08-10 | P113: =MAX(IF(N113=Data[Index],Data[Adj Close],0),IF(N113=Data[Lag Index U],Data[Adj Close],0)) -> 287.736633 | Q113: =MIN(IF(N113=Data[Index],Data[Adj Close]),IF(N113=Data[Lag Index U],Data[Adj Close])) -> 285.607147 | R113: =MAX(IF(N113=Data[Index],Data[Upper Bollinger Band],0),IF(N113=Data[Lag Index U],Data[Upper Bollinger Band],0)) -> 306.4830351 | S113: =MIN(IF(N113=Data[Index],Data[Upper Bollinger Band]),IF(N113=Data[Lag Index U],Data[Upper Bollinger Band])) -> 305.010437 | T113: =MAX(IF(N113=Data[Index],Data[Lower Bollinger Band],0),IF(N113=Data[Lag Index U],Data[Lower Bollinger Band],0)) -> 234.3665085 | U113: =MIN(IF(N113=Data[Index],Data[Lower Bollinger Band]),IF(N113=Data[Lag Index U],Data[Lower Bollinger Band])) -> 232.5613249
D114: 2022-04-29 | E114: 275.512207 | F114: =IF(Data[[#This Row],[Adj Close]]<E115,TRUE,"") -> TRUE | G114: =IF(F113=Data[[#This Row],[Up]],0,1) -> 1 | H114: =SUM($G$33:G114) -> 46 | I114: 45 | J114: =AVERAGE(OFFSET(E113,1,,-MIN(Bollinger_Band_Range,COUNTA(E$32:E113)))+Standard_Deviation*IFERROR(STDEV(OFFSET(E113,1,,-MIN(Bollinger_Band_Range,COUNTA(E$32:E113)))),0)) -> 324.23834 | K114: =IFERROR(AVERAGE(OFFSET(E113,1,,-MIN(Bollinger_Band_Range,COUNTA(E$32:E113)))-Standard_Deviation*IFERROR(STDEV(OFFSET(E113,1,,-MIN(Bollinger_Band_Range,COUNTA(E$32:E113)))),0)),0) -> 249.2037714 | N114: 82 | O114: =INDEX(Data[Date],MATCH(N114,Data[Index],0)) -> 2022-08-11 | P114: =MAX(IF(N114=Data[Index],Data[Adj Close],0),IF(N114=Data[Lag Index U],Data[Adj Close],0)) -> 292.025452 | Q114: =MIN(IF(N114=Data[Index],Data[Adj Close]),IF(N114=Data[Lag Index U],Data[Adj Close])) -> 285.607147 | R114: =MAX(IF(N114=Data[Index],Data[Upper Bollinger Band],0),IF(N114=Data[Lag Index U],Data[Upper Bollinger Band],0)) -> 310.6205114 | S114: =MIN(IF(N114=Data[Index],Data[Upper Bollinger Band]),IF(N114=Data[Lag Index U],Data[Upper Bollinger Band])) -> 306.4830351 | T114: =MAX(IF(N114=Data[Index],Data[Lower Bollinger Band],0),IF(N114=Data[Lag Index U],Data[Lower Bollinger Band],0)) -> 237.63341 | U114: =MIN(IF(N114=Data[Index],Data[Lower Bollinger Band]),IF(N114=Data[Lag Index U],Data[Lower Bollinger Band])) -> 234.3665085
D115: 2022-05-02 | E115: 282.411957 | F115: =IF(Data[[#This Row],[Adj Close]]<E116,TRUE,"") ->  | G115: =IF(F114=Data[[#This Row],[Up]],0,1) -> 1 | H115: =SUM($G$33:G115) -> 47 | I115: 46 | J115: =AVERAGE(OFFSET(E114,1,,-MIN(Bollinger_Band_Range,COUNTA(E$32:E114)))+Standard_Deviation*IFERROR(STDEV(OFFSET(E114,1,,-MIN(Bollinger_Band_Range,COUNTA(E$32:E114)))),0)) -> 320.1742758 | K115: =IFERROR(AVERAGE(OFFSET(E114,1,,-MIN(Bollinger_Band_Range,COUNTA(E$32:E114)))-Standard_Deviation*IFERROR(STDEV(OFFSET(E114,1,,-MIN(Bollinger_Band_Range,COUNTA(E$32:E114)))),0)),0) -> 250.7908855 | N115: 83 | O115: =INDEX(Data[Date],MATCH(N115,Data[Index],0)) -> 2022-08-15 | P115: =MAX(IF(N115=Data[Index],Data[Adj Close],0),IF(N115=Data[Lag Index U],Data[Adj Close],0)) -> 292.025452 | Q115: =MIN(IF(N115=Data[Index],Data[Adj Close]),IF(N115=Data[Lag Index U],Data[Adj Close])) -> 275.014984 | R115: =MAX(IF(N115=Data[Index],Data[Upper Bollinger Band],0),IF(N115=Data[Lag Index U],Data[Upper Bollinger Band],0)) -> 314.161271 | S115: =MIN(IF(N115=Data[Index],Data[Upper Bollinger Band]),IF(N115=Data[Lag Index U],Data[Upper Bollinger Band])) -> 300.929669 | T115: =MAX(IF(N115=Data[Index],Data[Lower Bollinger Band],0),IF(N115=Data[Lag Index U],Data[Lower Bollinger Band],0)) -> 263.9881685 | U115: =MIN(IF(N115=Data[Index],Data[Lower Bollinger Band]),IF(N115=Data[Lag Index U],Data[Lower Bollinger Band])) -> 237.63341
D116: 2022-05-03 | E116: 279.741425 | F116: =IF(Data[[#This Row],[Adj Close]]<E117,TRUE,"") -> TRUE | G116: =IF(F115=Data[[#This Row],[Up]],0,1) -> 1 | H116: =SUM($G$33:G116) -> 48 | I116: 47 | J116: =AVERAGE(OFFSET(E115,1,,-MIN(Bollinger_Band_Range,COUNTA(E$32:E115)))+Standard_Deviation*IFERROR(STDEV(OFFSET(E115,1,,-MIN(Bollinger_Band_Range,COUNTA(E$32:E115)))),0)) -> 312.8650239 | K116: =IFERROR(AVERAGE(OFFSET(E115,1,,-MIN(Bollinger_Band_Range,COUNTA(E$32:E115)))-Standard_Deviation*IFERROR(STDEV(OFFSET(E115,1,,-MIN(Bollinger_Band_Range,COUNTA(E$32:E115)))),0)),0) -> 254.8051484 | N116: 84 | O116: =INDEX(Data[Date],MATCH(N116,Data[Index],0)) -> 2022-08-24 | P116: =MAX(IF(N116=Data[Index],Data[Adj Close],0),IF(N116=Data[Lag Index U],Data[Adj Close],0)) -> 278.066376 | Q116: =MIN(IF(N116=Data[Index],Data[Adj Close]),IF(N116=Data[Lag Index U],Data[Adj Close])) -> 275.014984 | R116: =MAX(IF(N116=Data[Index],Data[Upper Bollinger Band],0),IF(N116=Data[Lag Index U],Data[Upper Bollinger Band],0)) -> 300.929669 | S116: =MIN(IF(N116=Data[Index],Data[Upper Bollinger Band]),IF(N116=Data[Lag Index U],Data[Upper Bollinger Band])) -> 300.6121792 | T116: =MAX(IF(N116=Data[Index],Data[Lower Bollinger Band],0),IF(N116=Data[Lag Index U],Data[Lower Bollinger Band],0)) -> 264.6073551 | U116: =MIN(IF(N116=Data[Index],Data[Lower Bollinger Band]),IF(N116=Data[Lag Index U],Data[Lower Bollinger Band])) -> 263.9881685
D117: 2022-05-04 | E117: 287.882111 | F117: =IF(Data[[#This Row],[Adj Close]]<E118,TRUE,"") ->  | G117: =IF(F116=Data[[#This Row],[Up]],0,1) -> 1 | H117: =SUM($G$33:G117) -> 49 | I117: 48 | J117: =AVERAGE(OFFSET(E116,1,,-MIN(Bollinger_Band_Range,COUNTA(E$32:E116)))+Standard_Deviation*IFERROR(STDEV(OFFSET(E116,1,,-MIN(Bollinger_Band_Range,COUNTA(E$32:E116)))),0)) -> 306.2297403 | K117: =IFERROR(AVERAGE(OFFSET(E116,1,,-MIN(Bollinger_Band_Range,COUNTA(E$32:E116)))-Standard_Deviation*IFERROR(STDEV(OFFSET(E116,1,,-MIN(Bollinger_Band_Range,COUNTA(E$32:E116)))),0)),0) -> 259.3655541 | N117: 85 | O117: =INDEX(Data[Date],MATCH(N117,Data[Index],0)) -> 2022-08-25 | P117: =MAX(IF(N117=Data[Index],Data[Adj Close],0),IF(N117=Data[Lag Index U],Data[Adj Close],0)) -> 278.066376 | Q117: =MIN(IF(N117=Data[Index],Data[Adj Close]),IF(N117=Data[Lag Index U],Data[Adj Close])) -> 252.5383 | R117: =MAX(IF(N117=Data[Index],Data[Upper Bollinger Band],0),IF(N117=Data[Lag Index U],Data[Upper Bollinger Band],0)) -> 315.6604706 | S117: =MIN(IF(N117=Data[Index],Data[Upper Bollinger Band]),IF(N117=Data[Lag Index U],Data[Upper Bollinger Band])) -> 300.6121792 | T117: =MAX(IF(N117=Data[Index],Data[Lower Bollinger Band],0),IF(N117=Data[Lag Index U],Data[Lower Bollinger Band],0)) -> 264.6073551 | U117: =MIN(IF(N117=Data[Index],Data[Lower Bollinger Band]),IF(N117=Data[Lag Index U],Data[Lower Bollinger Band])) -> 236.4667283
D118: 2022-05-05 | E118: 275.343475 | F118: =IF(Data[[#This Row],[Adj Close]]<E119,TRUE,"") ->  | G118: =IF(F117=Data[[#This Row],[Up]],0,1) -> 0 | H118: =SUM($G$33:G118) -> 49 | I118: 49 | J118: =AVERAGE(OFFSET(E117,1,,-MIN(Bollinger_Band_Range,COUNTA(E$32:E117)))+Standard_Deviation*IFERROR(STDEV(OFFSET(E117,1,,-MIN(Bollinger_Band_Range,COUNTA(E$32:E117)))),0)) -> 303.2353315 | K118: =IFERROR(AVERAGE(OFFSET(E117,1,,-MIN(Bollinger_Band_Range,COUNTA(E$32:E117)))-Standard_Deviation*IFERROR(STDEV(OFFSET(E117,1,,-MIN(Bollinger_Band_Range,COUNTA(E$32:E117)))),0)),0) -> 260.1609913 | N118: 86 | O118: =INDEX(Data[Date],MATCH(N118,Data[Index],0)) -> 2022-09-06 | P118: =MAX(IF(N118=Data[Index],Data[Adj Close],0),IF(N118=Data[Lag Index U],Data[Adj Close],0)) -> 265.900635 | Q118: =MIN(IF(N118=Data[Index],Data[Adj Close]),IF(N118=Data[Lag Index U],Data[Adj Close])) -> 252.5383 | R118: =MAX(IF(N118=Data[Index],Data[Upper Bollinger Band],0),IF(N118=Data[Lag Index U],Data[Upper Bollinger Band],0)) -> 316.2297187 | S118: =MIN(IF(N118=Data[Index],Data[Upper Bollinger Band]),IF(N118=Data[Lag Index U],Data[Upper Bollinger Band])) -> 310.5502383 | T118: =MAX(IF(N118=Data[Index],Data[Lower Bollinger Band],0),IF(N118=Data[Lag Index U],Data[Lower Bollinger Band],0)) -> 236.4667283 | U118: =MIN(IF(N118=Data[Index],Data[Lower Bollinger Band]),IF(N118=Data[Lag Index U],Data[Lower Bollinger Band])) -> 230.936801
D119: 2022-05-06 | E119: 272.742432 | F119: =IF(Data[[#This Row],[Adj Close]]<E120,TRUE,"") ->  | G119: =IF(F118=Data[[#This Row],[Up]],0,1) -> 0 | H119: =SUM($G$33:G119) -> 49 | I119: 49 | J119: =AVERAGE(OFFSET(E118,1,,-MIN(Bollinger_Band_Range,COUNTA(E$32:E118)))+Standard_Deviation*IFERROR(STDEV(OFFSET(E118,1,,-MIN(Bollinger_Band_Range,COUNTA(E$32:E118)))),0)) -> 298.8243908 | K119: =IFERROR(AVERAGE(OFFSET(E118,1,,-MIN(Bollinger_Band_Range,COUNTA(E$32:E118)))-Standard_Deviation*IFERROR(STDEV(OFFSET(E118,1,,-MIN(Bollinger_Band_Range,COUNTA(E$32:E118)))),0)),0) -> 261.9272085 | N119: 87 | O119: =INDEX(Data[Date],MATCH(N119,Data[Index],0)) -> 2022-09-12 | P119: =MAX(IF(N119=Data[Index],Data[Adj Close],0),IF(N119=Data[Lag Index U],Data[Adj Close],0)) -> 265.900635 | Q119: =MIN(IF(N119=Data[Index],Data[Adj Close]),IF(N119=Data[Lag Index U],Data[Adj Close])) -> 251.28186 | R119: =MAX(IF(N119=Data[Index],Data[Upper Bollinger Band],0),IF(N119=Data[Lag Index U],Data[Upper Bollinger Band],0)) -> 310.5502383 | S119: =MIN(IF(N119=Data[Index],Data[Upper Bollinger Band]),IF(N119=Data[Lag Index U],Data[Upper Bollinger Band])) -> 307.7199808 | T119: =MAX(IF(N119=Data[Index],Data[Lower Bollinger Band],0),IF(N119=Data[Lag Index U],Data[Lower Bollinger Band],0)) -> 231.5817948 | U119: =MIN(IF(N119=Data[Index],Data[Lower Bollinger Band]),IF(N119=Data[Lag Index U],Data[Lower Bollinger Band])) -> 230.3376931
D120: 2022-05-09 | E120: 262.665863 | F120: =IF(Data[[#This Row],[Adj Close]]<E121,TRUE,"") -> TRUE | G120: =IF(F119=Data[[#This Row],[Up]],0,1) -> 1 | H120: =SUM($G$33:G120) -> 50 | I120: 49 | J120: =AVERAGE(OFFSET(E119,1,,-MIN(Bollinger_Band_Range,COUNTA(E$32:E119)))+Standard_Deviation*IFERROR(STDEV(OFFSET(E119,1,,-MIN(Bollinger_Band_Range,COUNTA(E$32:E119)))),0)) -> 297.8881889 | K120: =IFERROR(AVERAGE(OFFSET(E119,1,,-MIN(Bollinger_Band_Range,COUNTA(E$32:E119)))-Standard_Deviation*IFERROR(STDEV(OFFSET(E119,1,,-MIN(Bollinger_Band_Range,COUNTA(E$32:E119)))),0)),0) -> 259.6478464 | N120: 88 | O120: =INDEX(Data[Date],MATCH(N120,Data[Index],0)) -> 2022-09-13 | P120: =MAX(IF(N120=Data[Index],Data[Adj Close],0),IF(N120=Data[Lag Index U],Data[Adj Close],0)) -> 251.5112 | Q120: =MIN(IF(N120=Data[Index],Data[Adj Close]),IF(N120=Data[Lag Index U],Data[Adj Close])) -> 251.28186 | R120: =MAX(IF(N120=Data[Index],Data[Upper Bollinger Band],0),IF(N120=Data[Lag Index U],Data[Upper Bollinger Band],0)) -> 307.7199808 | S120: =MIN(IF(N120=Data[Index],Data[Upper Bollinger Band]),IF(N120=Data[Lag Index U],Data[Upper Bollinger Band])) -> 304.0629046 | T120: =MAX(IF(N120=Data[Index],Data[Lower Bollinger Band],0),IF(N120=Data[Lag Index U],Data[Lower Bollinger Band],0)) -> 230.3376931 | U120: =MIN(IF(N120=Data[Index],Data[Lower Bollinger Band]),IF(N120=Data[Lag Index U],Data[Lower Bollinger Band])) -> 230.0189728
D121: 2022-05-10 | E121: 267.550262 | F121: =IF(Data[[#This Row],[Adj Close]]<E122,TRUE,"") ->  | G121: =IF(F120=Data[[#This Row],[Up]],0,1) -> 1 | H121: =SUM($G$33:G121) -> 51 | I121: 50 | J121: =AVERAGE(OFFSET(E120,1,,-MIN(Bollinger_Band_Range,COUNTA(E$32:E120)))+Standard_Deviation*IFERROR(STDEV(OFFSET(E120,1,,-MIN(Bollinger_Band_Range,COUNTA(E$32:E120)))),0)) -> 298.2366877 | K121: =IFERROR(AVERAGE(OFFSET(E120,1,,-MIN(Bollinger_Band_Range,COUNTA(E$32:E120)))-Standard_Deviation*IFERROR(STDEV(OFFSET(E120,1,,-MIN(Bollinger_Band_Range,COUNTA(E$32:E120)))),0)),0) -> 257.7347449 | N121: 89 | O121: =INDEX(Data[Date],MATCH(N121,Data[Index],0)) -> 2022-09-14 | P121: =MAX(IF(N121=Data[Index],Data[Adj Close],0),IF(N121=Data[Lag Index U],Data[Adj Close],0)) -> 251.5112 | Q121: =MIN(IF(N121=Data[Index],Data[Adj Close]),IF(N121=Data[Lag Index U],Data[Adj Close])) -> 238.278488 | R121: =MAX(IF(N121=Data[Index],Data[Upper Bollinger Band],0),IF(N121=Data[Lag Index U],Data[Upper Bollinger Band],0)) -> 304.0629046 | S121: =MIN(IF(N121=Data[Index],Data[Upper Bollinger Band]),IF(N121=Data[Lag Index U],Data[Upper Bollinger Band])) -> 289.530249 | T121: =MAX(IF(N121=Data[Index],Data[Lower Bollinger Band],0),IF(N121=Data[Lag Index U],Data[Lower Bollinger Band],0)) -> 230.0189728 | U121: =MIN(IF(N121=Data[Index],Data[Lower Bollinger Band]),IF(N121=Data[Lag Index U],Data[Lower Bollinger Band])) -> 224.0304583
D122: 2022-05-11 | E122: 258.665009 | F122: =IF(Data[[#This Row],[Adj Close]]<E123,TRUE,"") ->  | G122: =IF(F121=Data[[#This Row],[Up]],0,1) -> 0 | H122: =SUM($G$33:G122) -> 51 | I122: 51 | J122: =AVERAGE(OFFSET(E121,1,,-MIN(Bollinger_Band_Range,COUNTA(E$32:E121)))+Standard_Deviation*IFERROR(STDEV(OFFSET(E121,1,,-MIN(Bollinger_Band_Range,COUNTA(E$32:E121)))),0)) -> 300.8797144 | K122: =IFERROR(AVERAGE(OFFSET(E121,1,,-MIN(Bollinger_Band_Range,COUNTA(E$32:E121)))-Standard_Deviation*IFERROR(STDEV(OFFSET(E121,1,,-MIN(Bollinger_Band_Range,COUNTA(E$32:E121)))),0)),0) -> 252.9562782 | N122: 90 | O122: =INDEX(Data[Date],MATCH(N122,Data[Index],0)) -> 2022-09-21 | P122: =MAX(IF(N122=Data[Index],Data[Adj Close],0),IF(N122=Data[Lag Index U],Data[Adj Close],0)) -> 240.30278 | Q122: =MIN(IF(N122=Data[Index],Data[Adj Close]),IF(N122=Data[Lag Index U],Data[Adj Close])) -> 238.278488 | R122: =MAX(IF(N122=Data[Index],Data[Upper Bollinger Band],0),IF(N122=Data[Lag Index U],Data[Upper Bollinger Band],0)) -> 289.530249 | S122: =MIN(IF(N122=Data[Index],Data[Upper Bollinger Band]),IF(N122=Data[Lag Index U],Data[Upper Bollinger Band])) -> 286.9058018 | T122: =MAX(IF(N122=Data[Index],Data[Lower Bollinger Band],0),IF(N122=Data[Lag Index U],Data[Lower Bollinger Band],0)) -> 224.0304583 | U122: =MIN(IF(N122=Data[Index],Data[Lower Bollinger Band]),IF(N122=Data[Lag Index U],Data[Lower Bollinger Band])) -> 223.1836851
D123: 2022-05-12 | E123: 253.50264 | F123: =IF(Data[[#This Row],[Adj Close]]<E124,TRUE,"") -> TRUE | G123: =IF(F122=Data[[#This Row],[Up]],0,1) -> 1 | H123: =SUM($G$33:G123) -> 52 | I123: 51 | J123: =AVERAGE(OFFSET(E122,1,,-MIN(Bollinger_Band_Range,COUNTA(E$32:E122)))+Standard_Deviation*IFERROR(STDEV(OFFSET(E122,1,,-MIN(Bollinger_Band_Range,COUNTA(E$32:E122)))),0)) -> 303.143508 | K123: =IFERROR(AVERAGE(OFFSET(E122,1,,-MIN(Bollinger_Band_Range,COUNTA(E$32:E122)))-Standard_Deviation*IFERROR(STDEV(OFFSET(E122,1,,-MIN(Bollinger_Band_Range,COUNTA(E$32:E122)))),0)),0) -> 247.4888332 | N123: 91 | O123: =INDEX(Data[Date],MATCH(N123,Data[Index],0)) -> 2022-09-22 | P123: =MAX(IF(N123=Data[Index],Data[Adj Close],0),IF(N123=Data[Lag Index U],Data[Adj Close],0)) -> 240.30278 | Q123: =MIN(IF(N123=Data[Index],Data[Adj Close]),IF(N123=Data[Lag Index U],Data[Adj Close])) -> 235.745636 | R123: =MAX(IF(N123=Data[Index],Data[Upper Bollinger Band],0),IF(N123=Data[Lag Index U],Data[Upper Bollinger Band],0)) -> 286.9058018 | S123: =MIN(IF(N123=Data[Index],Data[Upper Bollinger Band]),IF(N123=Data[Lag Index U],Data[Upper Bollinger Band])) -> 279.9945527 | T123: =MAX(IF(N123=Data[Index],Data[Lower Bollinger Band],0),IF(N123=Data[Lag Index U],Data[Lower Bollinger Band],0)) -> 223.4304938 | U123: =MIN(IF(N123=Data[Index],Data[Lower Bollinger Band]),IF(N123=Data[Lag Index U],Data[Lower Bollinger Band])) -> 220.0841432
D124: 2022-05-13 | E124: 259.230927 | F124: =IF(Data[[#This Row],[Adj Close]]<E125,TRUE,"") -> TRUE | G124: =IF(F123=Data[[#This Row],[Up]],0,1) -> 0 | H124: =SUM($G$33:G124) -> 52 | I124: 52 | J124: =AVERAGE(OFFSET(E123,1,,-MIN(Bollinger_Band_Range,COUNTA(E$32:E123)))+Standard_Deviation*IFERROR(STDEV(OFFSET(E123,1,,-MIN(Bollinger_Band_Range,COUNTA(E$32:E123)))),0)) -> 304.1500435 | K124: =IFERROR(AVERAGE(OFFSET(E123,1,,-MIN(Bollinger_Band_Range,COUNTA(E$32:E123)))-Standard_Deviation*IFERROR(STDEV(OFFSET(E123,1,,-MIN(Bollinger_Band_Range,COUNTA(E$32:E123)))),0)),0) -> 244.6248362 | N124: 92 | O124: =INDEX(Data[Date],MATCH(N124,Data[Index],0)) -> 2022-09-27 | P124: =MAX(IF(N124=Data[Index],Data[Adj Close],0),IF(N124=Data[Lag Index U],Data[Adj Close],0)) -> 240.392548 | Q124: =MIN(IF(N124=Data[Index],Data[Adj Close]),IF(N124=Data[Lag Index U],Data[Adj Close])) -> 235.745636 | R124: =MAX(IF(N124=Data[Index],Data[Upper Bollinger Band],0),IF(N124=Data[Lag Index U],Data[Upper Bollinger Band],0)) -> 279.9945527 | S124: =MIN(IF(N124=Data[Index],Data[Upper Bollinger Band]),IF(N124=Data[Lag Index U],Data[Upper Bollinger Band])) -> 278.2679601 | T124: =MAX(IF(N124=Data[Index],Data[Lower Bollinger Band],0),IF(N124=Data[Lag Index U],Data[Lower Bollinger Band],0)) -> 220.0841432 | U124: =MIN(IF(N124=Data[Index],Data[Lower Bollinger Band]),IF(N124=Data[Lag Index U],Data[Lower Bollinger Band])) -> 219.6268918
D125: 2022-05-16 | E125: 259.608154 | F125: =IF(Data[[#This Row],[Adj Close]]<E126,TRUE,"") -> TRUE | G125: =IF(F124=Data[[#This Row],[Up]],0,1) -> 0 | H125: =SUM($G$33:G125) -> 52 | I125: 52 | J125: =AVERAGE(OFFSET(E124,1,,-MIN(Bollinger_Band_Range,COUNTA(E$32:E124)))+Standard_Deviation*IFERROR(STDEV(OFFSET(E124,1,,-MIN(Bollinger_Band_Range,COUNTA(E$32:E124)))),0)) -> 304.634008 | K125: =IFERROR(AVERAGE(OFFSET(E124,1,,-MIN(Bollinger_Band_Range,COUNTA(E$32:E124)))-Standard_Deviation*IFERROR(STDEV(OFFSET(E124,1,,-MIN(Bollinger_Band_Range,COUNTA(E$32:E124)))),0)),0) -> 242.2526331 | N125: 93 | O125: =INDEX(Data[Date],MATCH(N125,Data[Index],0)) -> 2022-09-28 | P125: =MAX(IF(N125=Data[Index],Data[Adj Close],0),IF(N125=Data[Lag Index U],Data[Adj Close],0)) -> 240.392548 | Q125: =MIN(IF(N125=Data[Index],Data[Adj Close]),IF(N125=Data[Lag Index U],Data[Adj Close])) -> 232.245483 | R125: =MAX(IF(N125=Data[Index],Data[Upper Bollinger Band],0),IF(N125=Data[Lag Index U],Data[Upper Bollinger Band],0)) -> 278.2679601 | S125: =MIN(IF(N125=Data[Index],Data[Upper Bollinger Band]),IF(N125=Data[Lag Index U],Data[Upper Bollinger Band])) -> 276.0240231 | T125: =MAX(IF(N125=Data[Index],Data[Lower Bollinger Band],0),IF(N125=Data[Lag Index U],Data[Lower Bollinger Band],0)) -> 219.6268918 | U125: =MIN(IF(N125=Data[Index],Data[Lower Bollinger Band]),IF(N125=Data[Lag Index U],Data[Lower Bollinger Band])) -> 216.7382924
D126: 2022-05-17 | E126: 264.889679 | F126: =IF(Data[[#This Row],[Adj Close]]<E127,TRUE,"") ->  | G126: =IF(F125=Data[[#This Row],[Up]],0,1) -> 1 | H126: =SUM($G$33:G126) -> 53 | I126: 52 | J126: =AVERAGE(OFFSET(E125,1,,-MIN(Bollinger_Band_Range,COUNTA(E$32:E125)))+Standard_Deviation*IFERROR(STDEV(OFFSET(E125,1,,-MIN(Bollinger_Band_Range,COUNTA(E$32:E125)))),0)) -> 303.4148372 | K126: =IFERROR(AVERAGE(OFFSET(E125,1,,-MIN(Bollinger_Band_Range,COUNTA(E$32:E125)))-Standard_Deviation*IFERROR(STDEV(OFFSET(E125,1,,-MIN(Bollinger_Band_Range,COUNTA(E$32:E125)))),0)),0) -> 241.6371756 | N126: 94 | O126: =INDEX(Data[Date],MATCH(N126,Data[Index],0)) -> 2022-09-30 | P126: =MAX(IF(N126=Data[Index],Data[Adj Close],0),IF(N126=Data[Lag Index U],Data[Adj Close],0)) -> 248.49968 | Q126: =MIN(IF(N126=Data[Index],Data[Adj Close]),IF(N126=Data[Lag Index U],Data[Adj Close])) -> 232.245483 | R126: =MAX(IF(N126=Data[Index],Data[Upper Bollinger Band],0),IF(N126=Data[Lag Index U],Data[Upper Bollinger Band],0)) -> 276.0240231 | S126: =MIN(IF(N126=Data[Index],Data[Upper Bollinger Band]),IF(N126=Data[Lag Index U],Data[Upper Bollinger Band])) -> 272.6853003 | T126: =MAX(IF(N126=Data[Index],Data[Lower Bollinger Band],0),IF(N126=Data[Lag Index U],Data[Lower Bollinger Band],0)) -> 217.2270457 | U126: =MIN(IF(N126=Data[Index],Data[Lower Bollinger Band]),IF(N126=Data[Lag Index U],Data[Lower Bollinger Band])) -> 216.3930661
D127: 2022-05-18 | E127: 252.82933 | F127: =IF(Data[[#This Row],[Adj Close]]<E128,TRUE,"") ->  | G127: =IF(F126=Data[[#This Row],[Up]],0,1) -> 0 | H127: =SUM($G$33:G127) -> 53 | I127: 53 | J127: =AVERAGE(OFFSET(E126,1,,-MIN(Bollinger_Band_Range,COUNTA(E$32:E126)))+Standard_Deviation*IFERROR(STDEV(OFFSET(E126,1,,-MIN(Bollinger_Band_Range,COUNTA(E$32:E126)))),0)) -> 303.3400309 | K127: =IFERROR(AVERAGE(OFFSET(E126,1,,-MIN(Bollinger_Band_Range,COUNTA(E$32:E126)))-Standard_Deviation*IFERROR(STDEV(OFFSET(E126,1,,-MIN(Bollinger_Band_Range,COUNTA(E$32:E126)))),0)),0) -> 238.566088 | N127: 95 | O127: =INDEX(Data[Date],MATCH(N127,Data[Index],0)) -> 2022-10-05 | P127: =MAX(IF(N127=Data[Index],Data[Adj Close],0),IF(N127=Data[Lag Index U],Data[Adj Close],0)) -> 248.49968 | Q127: =MIN(IF(N127=Data[Index],Data[Adj Close]),IF(N127=Data[Lag Index U],Data[Adj Close])) -> 224.77655 | R127: =MAX(IF(N127=Data[Index],Data[Upper Bollinger Band],0),IF(N127=Data[Lag Index U],Data[Upper Bollinger Band],0)) -> 272.6853003 | S127: =MIN(IF(N127=Data[Index],Data[Upper Bollinger Band]),IF(N127=Data[Lag Index U],Data[Upper Bollinger Band])) -> 259.8830851 | T127: =MAX(IF(N127=Data[Index],Data[Lower Bollinger Band],0),IF(N127=Data[Lag Index U],Data[Lower Bollinger Band],0)) -> 222.116564 | U127: =MIN(IF(N127=Data[Index],Data[Lower Bollinger Band]),IF(N127=Data[Lag Index U],Data[Lower Bollinger Band])) -> 217.2270457
D128: 2022-05-19 | E128: 251.893951 | F128: =IF(Data[[#This Row],[Adj Close]]<E129,TRUE,"") ->  | G128: =IF(F127=Data[[#This Row],[Up]],0,1) -> 0 | H128: =SUM($G$33:G128) -> 53 | I128: 53 | J128: =AVERAGE(OFFSET(E127,1,,-MIN(Bollinger_Band_Range,COUNTA(E$32:E127)))+Standard_Deviation*IFERROR(STDEV(OFFSET(E127,1,,-MIN(Bollinger_Band_Range,COUNTA(E$32:E127)))),0)) -> 303.8850176 | K128: =IFERROR(AVERAGE(OFFSET(E127,1,,-MIN(Bollinger_Band_Range,COUNTA(E$32:E127)))-Standard_Deviation*IFERROR(STDEV(OFFSET(E127,1,,-MIN(Bollinger_Band_Range,COUNTA(E$32:E127)))),0)),0) -> 235.3326552 | N128: 96 | O128: =INDEX(Data[Date],MATCH(N128,Data[Index],0)) -> 2022-10-11 | P128: =MAX(IF(N128=Data[Index],Data[Adj Close],0),IF(N128=Data[Lag Index U],Data[Adj Close],0)) -> 233.581741 | Q128: =MIN(IF(N128=Data[Index],Data[Adj Close]),IF(N128=Data[Lag Index U],Data[Adj Close])) -> 224.77655 | R128: =MAX(IF(N128=Data[Index],Data[Upper Bollinger Band],0),IF(N128=Data[Lag Index U],Data[Upper Bollinger Band],0)) -> 260.034612 | S128: =MIN(IF(N128=Data[Index],Data[Upper Bollinger Band]),IF(N128=Data[Lag Index U],Data[Upper Bollinger Band])) -> 258.3157503 | T128: =MAX(IF(N128=Data[Index],Data[Lower Bollinger Band],0),IF(N128=Data[Lag Index U],Data[Lower Bollinger Band],0)) -> 219.3145061 | U128: =MIN(IF(N128=Data[Index],Data[Lower Bollinger Band]),IF(N128=Data[Lag Index U],Data[Lower Bollinger Band])) -> 217.2829374
D129: 2022-05-20 | E129: 251.316803 | F129: =IF(Data[[#This Row],[Adj Close]]<E130,TRUE,"") -> TRUE | G129: =IF(F128=Data[[#This Row],[Up]],0,1) -> 1 | H129: =SUM($G$33:G129) -> 54 | I129: 53 | J129: =AVERAGE(OFFSET(E128,1,,-MIN(Bollinger_Band_Range,COUNTA(E$32:E128)))+Standard_Deviation*IFERROR(STDEV(OFFSET(E128,1,,-MIN(Bollinger_Band_Range,COUNTA(E$32:E128)))),0)) -> 304.9089926 | K129: =IFERROR(AVERAGE(OFFSET(E128,1,,-MIN(Bollinger_Band_Range,COUNTA(E$32:E128)))-Standard_Deviation*IFERROR(STDEV(OFFSET(E128,1,,-MIN(Bollinger_Band_Range,COUNTA(E$32:E128)))),0)),0) -> 232.235612 | N129: 97 | O129: =INDEX(Data[Date],MATCH(N129,Data[Index],0)) -> 2022-10-13 | P129: =MAX(IF(N129=Data[Index],Data[Adj Close],0),IF(N129=Data[Lag Index U],Data[Adj Close],0)) -> 233.581741 | Q129: =MIN(IF(N129=Data[Index],Data[Adj Close]),IF(N129=Data[Lag Index U],Data[Adj Close])) -> 227.917694 | R129: =MAX(IF(N129=Data[Index],Data[Upper Bollinger Band],0),IF(N129=Data[Lag Index U],Data[Upper Bollinger Band],0)) -> 258.3157503 | S129: =MIN(IF(N129=Data[Index],Data[Upper Bollinger Band]),IF(N129=Data[Lag Index U],Data[Upper Bollinger Band])) -> 258.0280832 | T129: =MAX(IF(N129=Data[Index],Data[Lower Bollinger Band],0),IF(N129=Data[Lag Index U],Data[Lower Bollinger Band],0)) -> 217.2829374 | U129: =MIN(IF(N129=Data[Index],Data[Lower Bollinger Band]),IF(N129=Data[Lag Index U],Data[Lower Bollinger Band])) -> 215.9571508
D130: 2022-05-23 | E130: 259.366974 | F130: =IF(Data[[#This Row],[Adj Close]]<E131,TRUE,"") ->  | G130: =IF(F129=Data[[#This Row],[Up]],0,1) -> 1 | H130: =SUM($G$33:G130) -> 55 | I130: 54 | J130: =AVERAGE(OFFSET(E129,1,,-MIN(Bollinger_Band_Range,COUNTA(E$32:E129)))+Standard_Deviation*IFERROR(STDEV(OFFSET(E129,1,,-MIN(Bollinger_Band_Range,COUNTA(E$32:E129)))),0)) -> 303.7056499 | K130: =IFERROR(AVERAGE(OFFSET(E129,1,,-MIN(Bollinger_Band_Range,COUNTA(E$32:E129)))-Standard_Deviation*IFERROR(STDEV(OFFSET(E129,1,,-MIN(Bollinger_Band_Range,COUNTA(E$32:E129)))),0)),0) -> 231.5067434 | N130: 98 | O130: =INDEX(Data[Date],MATCH(N130,Data[Index],0)) -> 2022-10-14 | P130: =MAX(IF(N130=Data[Index],Data[Adj Close],0),IF(N130=Data[Lag Index U],Data[Adj Close],0)) -> 237.829758 | Q130: =MIN(IF(N130=Data[Index],Data[Adj Close]),IF(N130=Data[Lag Index U],Data[Adj Close])) -> 227.917694 | R130: =MAX(IF(N130=Data[Index],Data[Upper Bollinger Band],0),IF(N130=Data[Lag Index U],Data[Upper Bollinger Band],0)) -> 258.0280832 | S130: =MIN(IF(N130=Data[Index],Data[Upper Bollinger Band]),IF(N130=Data[Lag Index U],Data[Upper Bollinger Band])) -> 256.6224871 | T130: =MAX(IF(N130=Data[Index],Data[Lower Bollinger Band],0),IF(N130=Data[Lag Index U],Data[Lower Bollinger Band],0)) -> 216.2718214 | U130: =MIN(IF(N130=Data[Index],Data[Lower Bollinger Band]),IF(N130=Data[Lag Index U],Data[Lower Bollinger Band])) -> 215.9571508
D131: 2022-05-24 | E131: 258.342041 | F131: =IF(Data[[#This Row],[Adj Close]]<E132,TRUE,"") -> TRUE | G131: =IF(F130=Data[[#This Row],[Up]],0,1) -> 1 | H131: =SUM($G$33:G131) -> 56 | I131: 55 | J131: =AVERAGE(OFFSET(E130,1,,-MIN(Bollinger_Band_Range,COUNTA(E$32:E130)))+Standard_Deviation*IFERROR(STDEV(OFFSET(E130,1,,-MIN(Bollinger_Band_Range,COUNTA(E$32:E130)))),0)) -> 303.7336238 | K131: =IFERROR(AVERAGE(OFFSET(E130,1,,-MIN(Bollinger_Band_Range,COUNTA(E$32:E130)))-Standard_Deviation*IFERROR(STDEV(OFFSET(E130,1,,-MIN(Bollinger_Band_Range,COUNTA(E$32:E130)))),0)),0) -> 230.486466 | N131: 99 | O131: =INDEX(Data[Date],MATCH(N131,Data[Index],0)) -> 2022-10-18 | P131: =MAX(IF(N131=Data[Index],Data[Adj Close],0),IF(N131=Data[Lag Index U],Data[Adj Close],0)) -> 237.829758 | Q131: =MIN(IF(N131=Data[Index],Data[Adj Close]),IF(N131=Data[Lag Index U],Data[Adj Close])) -> 235.486359 | R131: =MAX(IF(N131=Data[Index],Data[Upper Bollinger Band],0),IF(N131=Data[Lag Index U],Data[Upper Bollinger Band],0)) -> 256.6224871 | S131: =MIN(IF(N131=Data[Index],Data[Upper Bollinger Band]),IF(N131=Data[Lag Index U],Data[Upper Bollinger Band])) -> 256.0277275 | T131: =MAX(IF(N131=Data[Index],Data[Lower Bollinger Band],0),IF(N131=Data[Lag Index U],Data[Lower Bollinger Band],0)) -> 216.2718214 | U131: =MIN(IF(N131=Data[Index],Data[Lower Bollinger Band]),IF(N131=Data[Lag Index U],Data[Lower Bollinger Band])) -> 216.1386331
D132: 2022-05-25 | E132: 261.227783 | F132: =IF(Data[[#This Row],[Adj Close]]<E133,TRUE,"") -> TRUE | G132: =IF(F131=Data[[#This Row],[Up]],0,1) -> 0 | H132: =SUM($G$33:G132) -> 56 | I132: 56 | J132: =AVERAGE(OFFSET(E131,1,,-MIN(Bollinger_Band_Range,COUNTA(E$32:E131)))+Standard_Deviation*IFERROR(STDEV(OFFSET(E131,1,,-MIN(Bollinger_Band_Range,COUNTA(E$32:E131)))),0)) -> 301.5332711 | K132: =IFERROR(AVERAGE(OFFSET(E131,1,,-MIN(Bollinger_Band_Range,COUNTA(E$32:E131)))-Standard_Deviation*IFERROR(STDEV(OFFSET(E131,1,,-MIN(Bollinger_Band_Range,COUNTA(E$32:E131)))),0)),0) -> 230.6924949 | N132: 100 | O132: =INDEX(Data[Date],MATCH(N132,Data[Index],0)) -> 2022-10-20 | P132: =MAX(IF(N132=Data[Index],Data[Adj Close],0),IF(N132=Data[Lag Index U],Data[Adj Close],0)) -> 249.955582 | Q132: =MIN(IF(N132=Data[Index],Data[Adj Close]),IF(N132=Data[Lag Index U],Data[Adj Close])) -> 235.486359 | R132: =MAX(IF(N132=Data[Index],Data[Upper Bollinger Band],0),IF(N132=Data[Lag Index U],Data[Upper Bollinger Band],0)) -> 260.6163897 | S132: =MIN(IF(N132=Data[Index],Data[Upper Bollinger Band]),IF(N132=Data[Lag Index U],Data[Upper Bollinger Band])) -> 256.0277275 | T132: =MAX(IF(N132=Data[Index],Data[Lower Bollinger Band],0),IF(N132=Data[Lag Index U],Data[Lower Bollinger Band],0)) -> 216.1386331 | U132: =MIN(IF(N132=Data[Index],Data[Lower Bollinger Band]),IF(N132=Data[Lag Index U],Data[Lower Bollinger Band])) -> 214.3670317
D133: 2022-05-26 | E133: 264.591125 | F133: =IF(Data[[#This Row],[Adj Close]]<E134,TRUE,"") -> TRUE | G133: =IF(F132=Data[[#This Row],[Up]],0,1) -> 0 | H133: =SUM($G$33:G133) -> 56 | I133: 56 | J133: =AVERAGE(OFFSET(E132,1,,-MIN(Bollinger_Band_Range,COUNTA(E$32:E132)))+Standard_Deviation*IFERROR(STDEV(OFFSET(E132,1,,-MIN(Bollinger_Band_Range,COUNTA(E$32:E132)))),0)) -> 296.9948139 | K133: =IFERROR(AVERAGE(OFFSET(E132,1,,-MIN(Bollinger_Band_Range,COUNTA(E$32:E132)))-Standard_Deviation*IFERROR(STDEV(OFFSET(E132,1,,-MIN(Bollinger_Band_Range,COUNTA(E$32:E132)))),0)),0) -> 232.9366009 | N133: 101 | O133: =INDEX(Data[Date],MATCH(N133,Data[Index],0)) -> 2022-10-25 | P133: =MAX(IF(N133=Data[Index],Data[Adj Close],0),IF(N133=Data[Lag Index U],Data[Adj Close],0)) -> 249.955582 | Q133: =MIN(IF(N133=Data[Index],Data[Adj Close]),IF(N133=Data[Lag Index U],Data[Adj Close])) -> 226.112778 | R133: =MAX(IF(N133=Data[Index],Data[Upper Bollinger Band],0),IF(N133=Data[Lag Index U],Data[Upper Bollinger Band],0)) -> 261.0467731 | S133: =MIN(IF(N133=Data[Index],Data[Upper Bollinger Band]),IF(N133=Data[Lag Index U],Data[Upper Bollinger Band])) -> 260.4697996 | T133: =MAX(IF(N133=Data[Index],Data[Lower Bollinger Band],0),IF(N133=Data[Lag Index U],Data[Lower Bollinger Band],0)) -> 214.3670317 | U133: =MIN(IF(N133=Data[Index],Data[Lower Bollinger Band]),IF(N133=Data[Lag Index U],Data[Lower Bollinger Band])) -> 211.8924085
D134: 2022-05-27 | E134: 271.894989 | F134: =IF(Data[[#This Row],[Adj Close]]<E135,TRUE,"") ->  | G134: =IF(F133=Data[[#This Row],[Up]],0,1) -> 1 | H134: =SUM($G$33:G134) -> 57 | I134: 56 | J134: =AVERAGE(OFFSET(E133,1,,-MIN(Bollinger_Band_Range,COUNTA(E$32:E133)))+Standard_Deviation*IFERROR(STDEV(OFFSET(E133,1,,-MIN(Bollinger_Band_Range,COUNTA(E$32:E133)))),0)) -> 296.3381417 | K134: =IFERROR(AVERAGE(OFFSET(E133,1,,-MIN(Bollinger_Band_Range,COUNTA(E$32:E133)))-Standard_Deviation*IFERROR(STDEV(OFFSET(E133,1,,-MIN(Bollinger_Band_Range,COUNTA(E$32:E133)))),0)),0) -> 233.2315513 | N134: 102 | O134: =INDEX(Data[Date],MATCH(N134,Data[Index],0)) -> 2022-10-27 | P134: =MAX(IF(N134=Data[Index],Data[Adj Close],0),IF(N134=Data[Lag Index U],Data[Adj Close],0)) -> 235.207138 | Q134: =MIN(IF(N134=Data[Index],Data[Adj Close]),IF(N134=Data[Lag Index U],Data[Adj Close])) -> 226.112778 | R134: =MAX(IF(N134=Data[Index],Data[Upper Bollinger Band],0),IF(N134=Data[Lag Index U],Data[Upper Bollinger Band],0)) -> 261.0467731 | S134: =MIN(IF(N134=Data[Index],Data[Upper Bollinger Band]),IF(N134=Data[Lag Index U],Data[Upper Bollinger Band])) -> 261.0335108 | T134: =MAX(IF(N134=Data[Index],Data[Lower Bollinger Band],0),IF(N134=Data[Lag Index U],Data[Lower Bollinger Band],0)) -> 212.2018363 | U134: =MIN(IF(N134=Data[Index],Data[Lower Bollinger Band]),IF(N134=Data[Lag Index U],Data[Lower Bollinger Band])) -> 211.8924085
D135: 2022-05-31 | E135: 270.531769 | F135: =IF(Data[[#This Row],[Adj Close]]<E136,TRUE,"") -> TRUE | G135: =IF(F134=Data[[#This Row],[Up]],0,1) -> 1 | H135: =SUM($G$33:G135) -> 58 | I135: 57 | J135: =AVERAGE(OFFSET(E134,1,,-MIN(Bollinger_Band_Range,COUNTA(E$32:E134)))+Standard_Deviation*IFERROR(STDEV(OFFSET(E134,1,,-MIN(Bollinger_Band_Range,COUNTA(E$32:E134)))),0)) -> 293.5290596 | K135: =IFERROR(AVERAGE(OFFSET(E134,1,,-MIN(Bollinger_Band_Range,COUNTA(E$32:E134)))-Standard_Deviation*IFERROR(STDEV(OFFSET(E134,1,,-MIN(Bollinger_Band_Range,COUNTA(E$32:E134)))),0)),0) -> 234.8526146 | N135: 103 | O135: =INDEX(Data[Date],MATCH(N135,Data[Index],0)) -> 2022-10-28 | P135: =MAX(IF(N135=Data[Index],Data[Adj Close],0),IF(N135=Data[Lag Index U],Data[Adj Close],0)) -> 235.207138 | Q135: =MIN(IF(N135=Data[Index],Data[Adj Close]),IF(N135=Data[Lag Index U],Data[Adj Close])) -> 213.647903 | R135: =MAX(IF(N135=Data[Index],Data[Upper Bollinger Band],0),IF(N135=Data[Lag Index U],Data[Upper Bollinger Band],0)) -> 261.0335108 | S135: =MIN(IF(N135=Data[Index],Data[Upper Bollinger Band]),IF(N135=Data[Lag Index U],Data[Upper Bollinger Band])) -> 257.5934726 | T135: =MAX(IF(N135=Data[Index],Data[Lower Bollinger Band],0),IF(N135=Data[Lag Index U],Data[Lower Bollinger Band],0)) -> 212.2018363 | U135: =MIN(IF(N135=Data[Index],Data[Lower Bollinger Band]),IF(N135=Data[Lag Index U],Data[Lower Bollinger Band])) -> 206.3230389
D136: 2022-06-01 | E136: 271.079041 | F136: =IF(Data[[#This Row],[Adj Close]]<E137,TRUE,"") -> TRUE | G136: =IF(F135=Data[[#This Row],[Up]],0,1) -> 0 | H136: =SUM($G$33:G136) -> 58 | I136: 58 | J136: =AVERAGE(OFFSET(E135,1,,-MIN(Bollinger_Band_Range,COUNTA(E$32:E135)))+Standard_Deviation*IFERROR(STDEV(OFFSET(E135,1,,-MIN(Bollinger_Band_Range,COUNTA(E$32:E135)))),0)) -> 291.450361 | K136: =IFERROR(AVERAGE(OFFSET(E135,1,,-MIN(Bollinger_Band_Range,COUNTA(E$32:E135)))-Standard_Deviation*IFERROR(STDEV(OFFSET(E135,1,,-MIN(Bollinger_Band_Range,COUNTA(E$32:E135)))),0)),0) -> 236.0650748 | N136: 104 | O136: =INDEX(Data[Date],MATCH(N136,Data[Index],0)) -> 2022-11-03 | P136: =MAX(IF(N136=Data[Index],Data[Adj Close],0),IF(N136=Data[Lag Index U],Data[Adj Close],0)) -> 228.226822 | Q136: =MIN(IF(N136=Data[Index],Data[Adj Close]),IF(N136=Data[Lag Index U],Data[Adj Close])) -> 213.647903 | R136: =MAX(IF(N136=Data[Index],Data[Upper Bollinger Band],0),IF(N136=Data[Lag Index U],Data[Upper Bollinger Band],0)) -> 258.2762027 | S136: =MIN(IF(N136=Data[Index],Data[Upper Bollinger Band]),IF(N136=Data[Lag Index U],Data[Upper Bollinger Band])) -> 257.8418735 | T136: =MAX(IF(N136=Data[Index],Data[Lower Bollinger Band],0),IF(N136=Data[Lag Index U],Data[Lower Bollinger Band],0)) -> 206.3230389 | U136: =MIN(IF(N136=Data[Index],Data[Lower Bollinger Band]),IF(N136=Data[Lag Index U],Data[Lower Bollinger Band])) -> 204.4697065
D137: 2022-06-02 | E137: 273.228394 | F137: =IF(Data[[#This Row],[Adj Close]]<E138,TRUE,"") ->  | G137: =IF(F136=Data[[#This Row],[Up]],0,1) -> 1 | H137: =SUM($G$33:G137) -> 59 | I137: 58 | J137: =AVERAGE(OFFSET(E136,1,,-MIN(Bollinger_Band_Range,COUNTA(E$32:E136)))+Standard_Deviation*IFERROR(STDEV(OFFSET(E136,1,,-MIN(Bollinger_Band_Range,COUNTA(E$32:E136)))),0)) -> 286.0164542 | K137: =IFERROR(AVERAGE(OFFSET(E136,1,,-MIN(Bollinger_Band_Range,COUNTA(E$32:E136)))-Standard_Deviation*IFERROR(STDEV(OFFSET(E136,1,,-MIN(Bollinger_Band_Range,COUNTA(E$32:E136)))),0)),0) -> 240.0336099 | N137: 105 | O137: =INDEX(Data[Date],MATCH(N137,Data[Index],0)) -> 2022-11-08 | P137: =MAX(IF(N137=Data[Index],Data[Adj Close],0),IF(N137=Data[Lag Index U],Data[Adj Close],0)) -> 228.226822 | Q137: =MIN(IF(N137=Data[Index],Data[Adj Close]),IF(N137=Data[Lag Index U],Data[Adj Close])) -> 223.879074 | R137: =MAX(IF(N137=Data[Index],Data[Upper Bollinger Band],0),IF(N137=Data[Lag Index U],Data[Upper Bollinger Band],0)) -> 258.238089 | S137: =MIN(IF(N137=Data[Index],Data[Upper Bollinger Band]),IF(N137=Data[Lag Index U],Data[Upper Bollinger Band])) -> 258.1458479 | T137: =MAX(IF(N137=Data[Index],Data[Lower Bollinger Band],0),IF(N137=Data[Lag Index U],Data[Lower Bollinger Band],0)) -> 204.9450885 | U137: =MIN(IF(N137=Data[Index],Data[Lower Bollinger Band]),IF(N137=Data[Lag Index U],Data[Lower Bollinger Band])) -> 204.7291963
D138: 2022-06-03 | E138: 268.690857 | F138: =IF(Data[[#This Row],[Adj Close]]<E139,TRUE,"") ->  | G138: =IF(F137=Data[[#This Row],[Up]],0,1) -> 0 | H138: =SUM($G$33:G138) -> 59 | I138: 59 | J138: =AVERAGE(OFFSET(E137,1,,-MIN(Bollinger_Band_Range,COUNTA(E$32:E137)))+Standard_Deviation*IFERROR(STDEV(OFFSET(E137,1,,-MIN(Bollinger_Band_Range,COUNTA(E$32:E137)))),0)) -> 284.3922754 | K138: =IFERROR(AVERAGE(OFFSET(E137,1,,-MIN(Bollinger_Band_Range,COUNTA(E$32:E137)))-Standard_Deviation*IFERROR(STDEV(OFFSET(E137,1,,-MIN(Bollinger_Band_Range,COUNTA(E$32:E137)))),0)),0) -> 240.9925269 | N138: 106 | O138: =INDEX(Data[Date],MATCH(N138,Data[Index],0)) -> 2022-11-09 | P138: =MAX(IF(N138=Data[Index],Data[Adj Close],0),IF(N138=Data[Lag Index U],Data[Adj Close],0)) -> 246.415558 | Q138: =MIN(IF(N138=Data[Index],Data[Adj Close]),IF(N138=Data[Lag Index U],Data[Adj Close])) -> 223.879074 | R138: =MAX(IF(N138=Data[Index],Data[Upper Bollinger Band],0),IF(N138=Data[Lag Index U],Data[Upper Bollinger Band],0)) -> 262.0188647 | S138: =MIN(IF(N138=Data[Index],Data[Upper Bollinger Band]),IF(N138=Data[Lag Index U],Data[Upper Bollinger Band])) -> 258.238089 | T138: =MAX(IF(N138=Data[Index],Data[Lower Bollinger Band],0),IF(N138=Data[Lag Index U],Data[Lower Bollinger Band],0)) -> 204.7291963 | U138: =MIN(IF(N138=Data[Index],Data[Lower Bollinger Band]),IF(N138=Data[Lag Index U],Data[Lower Bollinger Band])) -> 203.6697494
D139: 2022-06-06 | E139: 267.427094 | F139: =IF(Data[[#This Row],[Adj Close]]<E140,TRUE,"") -> TRUE | G139: =IF(F138=Data[[#This Row],[Up]],0,1) -> 1 | H139: =SUM($G$33:G139) -> 60 | I139: 59 | J139: =AVERAGE(OFFSET(E138,1,,-MIN(Bollinger_Band_Range,COUNTA(E$32:E138)))+Standard_Deviation*IFERROR(STDEV(OFFSET(E138,1,,-MIN(Bollinger_Band_Range,COUNTA(E$32:E138)))),0)) -> 283.2350591 | K139: =IFERROR(AVERAGE(OFFSET(E138,1,,-MIN(Bollinger_Band_Range,COUNTA(E$32:E138)))-Standard_Deviation*IFERROR(STDEV(OFFSET(E138,1,,-MIN(Bollinger_Band_Range,COUNTA(E$32:E138)))),0)),0) -> 241.6182094 | N139: 107 | O139: =INDEX(Data[Date],MATCH(N139,Data[Index],0)) -> 2022-11-11 | P139: =MAX(IF(N139=Data[Index],Data[Adj Close],0),IF(N139=Data[Lag Index U],Data[Adj Close],0)) -> 246.415558 | Q139: =MIN(IF(N139=Data[Index],Data[Adj Close]),IF(N139=Data[Lag Index U],Data[Adj Close])) -> 240.871185 | R139: =MAX(IF(N139=Data[Index],Data[Upper Bollinger Band],0),IF(N139=Data[Lag Index U],Data[Upper Bollinger Band],0)) -> 262.6022461 | S139: =MIN(IF(N139=Data[Index],Data[Upper Bollinger Band]),IF(N139=Data[Lag Index U],Data[Upper Bollinger Band])) -> 262.0188647 | T139: =MAX(IF(N139=Data[Index],Data[Lower Bollinger Band],0),IF(N139=Data[Lag Index U],Data[Lower Bollinger Band],0)) -> 203.6697494 | U139: =MIN(IF(N139=Data[Index],Data[Lower Bollinger Band]),IF(N139=Data[Lag Index U],Data[Lower Bollinger Band])) -> 203.4872377
D140: 2022-06-07 | E140: 271.158661 | F140: =IF(Data[[#This Row],[Adj Close]]<E141,TRUE,"") ->  | G140: =IF(F139=Data[[#This Row],[Up]],0,1) -> 1 | H140: =SUM($G$33:G140) -> 61 | I140: 60 | J140: =AVERAGE(OFFSET(E139,1,,-MIN(Bollinger_Band_Range,COUNTA(E$32:E139)))+Standard_Deviation*IFERROR(STDEV(OFFSET(E139,1,,-MIN(Bollinger_Band_Range,COUNTA(E$32:E139)))),0)) -> 284.4700799 | K140: =IFERROR(AVERAGE(OFFSET(E139,1,,-MIN(Bollinger_Band_Range,COUNTA(E$32:E139)))-Standard_Deviation*IFERROR(STDEV(OFFSET(E139,1,,-MIN(Bollinger_Band_Range,COUNTA(E$32:E139)))),0)),0) -> 241.2324684 | N140: 108 | O140: =INDEX(Data[Date],MATCH(N140,Data[Index],0)) -> 2022-11-14 | P140: =MAX(IF(N140=Data[Index],Data[Adj Close],0),IF(N140=Data[Lag Index U],Data[Adj Close],0)) -> 241.729996 | Q140: =MIN(IF(N140=Data[Index],Data[Adj Close]),IF(N140=Data[Lag Index U],Data[Adj Close])) -> 240.871185 | R140: =MAX(IF(N140=Data[Index],Data[Upper Bollinger Band],0),IF(N140=Data[Lag Index U],Data[Upper Bollinger Band],0)) -> 263.9275814 | S140: =MIN(IF(N140=Data[Index],Data[Upper Bollinger Band]),IF(N140=Data[Lag Index U],Data[Upper Bollinger Band])) -> 262.6022461 | T140: =MAX(IF(N140=Data[Index],Data[Lower Bollinger Band],0),IF(N140=Data[Lag Index U],Data[Lower Bollinger Band],0)) -> 203.4872377 | U140: =MIN(IF(N140=Data[Index],Data[Lower Bollinger Band]),IF(N140=Data[Lag Index U],Data[Lower Bollinger Band])) -> 203.0993841
D141: 2022-06-08 | E141: 269.078949 | F141: =IF(Data[[#This Row],[Adj Close]]<E142,TRUE,"") ->  | G141: =IF(F140=Data[[#This Row],[Up]],0,1) -> 0 | H141: =SUM($G$33:G141) -> 61 | I141: 61 | J141: =AVERAGE(OFFSET(E140,1,,-MIN(Bollinger_Band_Range,COUNTA(E$32:E140)))+Standard_Deviation*IFERROR(STDEV(OFFSET(E140,1,,-MIN(Bollinger_Band_Range,COUNTA(E$32:E140)))),0)) -> 284.7274694 | K141: =IFERROR(AVERAGE(OFFSET(E140,1,,-MIN(Bollinger_Band_Range,COUNTA(E$32:E140)))-Standard_Deviation*IFERROR(STDEV(OFFSET(E140,1,,-MIN(Bollinger_Band_Range,COUNTA(E$32:E140)))),0)),0) -> 241.1279476 | N141: 109 | O141: =INDEX(Data[Date],MATCH(N141,Data[Index],0)) -> 2022-11-16 | P141: =MAX(IF(N141=Data[Index],Data[Adj Close],0),IF(N141=Data[Lag Index U],Data[Adj Close],0)) -> 241.729996 | Q141: =MIN(IF(N141=Data[Index],Data[Adj Close]),IF(N141=Data[Lag Index U],Data[Adj Close])) -> 241.220001 | R141: =MAX(IF(N141=Data[Index],Data[Upper Bollinger Band],0),IF(N141=Data[Lag Index U],Data[Upper Bollinger Band],0)) -> 264.7077245 | S141: =MIN(IF(N141=Data[Index],Data[Upper Bollinger Band]),IF(N141=Data[Lag Index U],Data[Upper Bollinger Band])) -> 263.9275814 | T141: =MAX(IF(N141=Data[Index],Data[Lower Bollinger Band],0),IF(N141=Data[Lag Index U],Data[Lower Bollinger Band],0)) -> 203.0993841 | U141: =MIN(IF(N141=Data[Index],Data[Lower Bollinger Band]),IF(N141=Data[Lag Index U],Data[Lower Bollinger Band])) -> 202.9386044
D142: 2022-06-09 | E142: 263.486633 | F142: =IF(Data[[#This Row],[Adj Close]]<E143,TRUE,"") ->  | G142: =IF(F141=Data[[#This Row],[Up]],0,1) -> 0 | H142: =SUM($G$33:G142) -> 61 | I142: 61 | J142: =AVERAGE(OFFSET(E141,1,,-MIN(Bollinger_Band_Range,COUNTA(E$32:E141)))+Standard_Deviation*IFERROR(STDEV(OFFSET(E141,1,,-MIN(Bollinger_Band_Range,COUNTA(E$32:E141)))),0)) -> 284.7609135 | K142: =IFERROR(AVERAGE(OFFSET(E141,1,,-MIN(Bollinger_Band_Range,COUNTA(E$32:E141)))-Standard_Deviation*IFERROR(STDEV(OFFSET(E141,1,,-MIN(Bollinger_Band_Range,COUNTA(E$32:E141)))),0)),0) -> 241.5766659 | N142: 110 | O142: =INDEX(Data[Date],MATCH(N142,Data[Index],0)) -> 2022-11-18 | P142: =MAX(IF(N142=Data[Index],Data[Adj Close],0),IF(N142=Data[Lag Index U],Data[Adj Close],0)) -> 247.580002 | Q142: =MIN(IF(N142=Data[Index],Data[Adj Close]),IF(N142=Data[Lag Index U],Data[Adj Close])) -> 241.220001 | R142: =MAX(IF(N142=Data[Index],Data[Upper Bollinger Band],0),IF(N142=Data[Lag Index U],Data[Upper Bollinger Band],0)) -> 264.6714371 | S142: =MIN(IF(N142=Data[Index],Data[Upper Bollinger Band]),IF(N142=Data[Lag Index U],Data[Upper Bollinger Band])) -> 262.3505584 | T142: =MAX(IF(N142=Data[Index],Data[Lower Bollinger Band],0),IF(N142=Data[Lag Index U],Data[Lower Bollinger Band],0)) -> 204.3307375 | U142: =MIN(IF(N142=Data[Index],Data[Lower Bollinger Band]),IF(N142=Data[Lag Index U],Data[Lower Bollinger Band])) -> 202.9529344
D143: 2022-06-10 | E143: 251.74469 | F143: =IF(Data[[#This Row],[Adj Close]]<E144,TRUE,"") ->  | G143: =IF(F142=Data[[#This Row],[Up]],0,1) -> 0 | H143: =SUM($G$33:G143) -> 61 | I143: 61 | J143: =AVERAGE(OFFSET(E142,1,,-MIN(Bollinger_Band_Range,COUNTA(E$32:E142)))+Standard_Deviation*IFERROR(STDEV(OFFSET(E142,1,,-MIN(Bollinger_Band_Range,COUNTA(E$32:E142)))),0)) -> 285.0742717 | K143: =IFERROR(AVERAGE(OFFSET(E142,1,,-MIN(Bollinger_Band_Range,COUNTA(E$32:E142)))-Standard_Deviation*IFERROR(STDEV(OFFSET(E142,1,,-MIN(Bollinger_Band_Range,COUNTA(E$32:E142)))),0)),0) -> 241.0875127 | N143: 111 | O143: =INDEX(Data[Date],MATCH(N143,Data[Index],0)) -> 2022-11-23 | P143: =MAX(IF(N143=Data[Index],Data[Adj Close],0),IF(N143=Data[Lag Index U],Data[Adj Close],0)) -> 247.580002 | Q143: =MIN(IF(N143=Data[Index],Data[Adj Close]),IF(N143=Data[Lag Index U],Data[Adj Close])) -> 240.330002 | R143: =MAX(IF(N143=Data[Index],Data[Upper Bollinger Band],0),IF(N143=Data[Lag Index U],Data[Upper Bollinger Band],0)) -> 267.4811411 | S143: =MIN(IF(N143=Data[Index],Data[Upper Bollinger Band]),IF(N143=Data[Lag Index U],Data[Upper Bollinger Band])) -> 264.6405037 | T143: =MAX(IF(N143=Data[Index],Data[Lower Bollinger Band],0),IF(N143=Data[Lag Index U],Data[Lower Bollinger Band],0)) -> 204.5694038 | U143: =MIN(IF(N143=Data[Index],Data[Lower Bollinger Band]),IF(N143=Data[Lag Index U],Data[Lower Bollinger Band])) -> 203.7317987
D144: 2022-06-13 | E144: 241.067505 | F144: =IF(Data[[#This Row],[Adj Close]]<E145,TRUE,"") -> TRUE | G144: =IF(F143=Data[[#This Row],[Up]],0,1) -> 1 | H144: =SUM($G$33:G144) -> 62 | I144: 61 | J144: =AVERAGE(OFFSET(E143,1,,-MIN(Bollinger_Band_Range,COUNTA(E$32:E143)))+Standard_Deviation*IFERROR(STDEV(OFFSET(E143,1,,-MIN(Bollinger_Band_Range,COUNTA(E$32:E143)))),0)) -> 288.600288 | K144: =IFERROR(AVERAGE(OFFSET(E143,1,,-MIN(Bollinger_Band_Range,COUNTA(E$32:E143)))-Standard_Deviation*IFERROR(STDEV(OFFSET(E143,1,,-MIN(Bollinger_Band_Range,COUNTA(E$32:E143)))),0)),0) -> 235.7451542 | N144: 112 | O144: =INDEX(Data[Date],MATCH(N144,Data[Index],0)) -> 2022-11-29 | P144: =MAX(IF(N144=Data[Index],Data[Adj Close],0),IF(N144=Data[Lag Index U],Data[Adj Close],0)) -> 255.139999 | Q144: =MIN(IF(N144=Data[Index],Data[Adj Close]),IF(N144=Data[Lag Index U],Data[Adj Close])) -> 240.330002 | R144: =MAX(IF(N144=Data[Index],Data[Upper Bollinger Band],0),IF(N144=Data[Lag Index U],Data[Upper Bollinger Band],0)) -> 270.7268667 | S144: =MIN(IF(N144=Data[Index],Data[Upper Bollinger Band]),IF(N144=Data[Lag Index U],Data[Upper Bollinger Band])) -> 267.4811411 | T144: =MAX(IF(N144=Data[Index],Data[Lower Bollinger Band],0),IF(N144=Data[Lag Index U],Data[Lower Bollinger Band],0)) -> 204.5694038 | U144: =MIN(IF(N144=Data[Index],Data[Lower Bollinger Band]),IF(N144=Data[Lag Index U],Data[Lower Bollinger Band])) -> 204.0847988
D145: 2022-06-14 | E145: 243.28653 | F145: =IF(Data[[#This Row],[Adj Close]]<E146,TRUE,"") -> TRUE | G145: =IF(F144=Data[[#This Row],[Up]],0,1) -> 0 | H145: =SUM($G$33:G145) -> 62 | I145: 62 | J145: =AVERAGE(OFFSET(E144,1,,-MIN(Bollinger_Band_Range,COUNTA(E$32:E144)))+Standard_Deviation*IFERROR(STDEV(OFFSET(E144,1,,-MIN(Bollinger_Band_Range,COUNTA(E$32:E144)))),0)) -> 290.6474077 | K145: =IFERROR(AVERAGE(OFFSET(E144,1,,-MIN(Bollinger_Band_Range,COUNTA(E$32:E144)))-Standard_Deviation*IFERROR(STDEV(OFFSET(E144,1,,-MIN(Bollinger_Band_Range,COUNTA(E$32:E144)))),0)),0) -> 232.0658721 | N145: 113 | O145: =INDEX(Data[Date],MATCH(N145,Data[Index],0)) -> 2022-11-30 | P145: =MAX(IF(N145=Data[Index],Data[Adj Close],0),IF(N145=Data[Lag Index U],Data[Adj Close],0)) -> 255.139999 | Q145: =MIN(IF(N145=Data[Index],Data[Adj Close]),IF(N145=Data[Lag Index U],Data[Adj Close])) -> 254.690002 | R145: =MAX(IF(N145=Data[Index],Data[Upper Bollinger Band],0),IF(N145=Data[Lag Index U],Data[Upper Bollinger Band],0)) -> 271.881004 | S145: =MIN(IF(N145=Data[Index],Data[Upper Bollinger Band]),IF(N145=Data[Lag Index U],Data[Upper Bollinger Band])) -> 270.7268667 | T145: =MAX(IF(N145=Data[Index],Data[Lower Bollinger Band],0),IF(N145=Data[Lag Index U],Data[Lower Bollinger Band],0)) -> 206.4515141 | U145: =MIN(IF(N145=Data[Index],Data[Lower Bollinger Band]),IF(N145=Data[Lag Index U],Data[Lower Bollinger Band])) -> 204.0847988
D146: 2022-06-15 | E146: 250.520737 | F146: =IF(Data[[#This Row],[Adj Close]]<E147,TRUE,"") ->  | G146: =IF(F145=Data[[#This Row],[Up]],0,1) -> 1 | H146: =SUM($G$33:G146) -> 63 | I146: 62 | J146: =AVERAGE(OFFSET(E145,1,,-MIN(Bollinger_Band_Range,COUNTA(E$32:E145)))+Standard_Deviation*IFERROR(STDEV(OFFSET(E145,1,,-MIN(Bollinger_Band_Range,COUNTA(E$32:E145)))),0)) -> 290.6842385 | K146: =IFERROR(AVERAGE(OFFSET(E145,1,,-MIN(Bollinger_Band_Range,COUNTA(E$32:E145)))-Standard_Deviation*IFERROR(STDEV(OFFSET(E145,1,,-MIN(Bollinger_Band_Range,COUNTA(E$32:E145)))),0)),0) -> 230.5921471 | N146: 114 | O146: =INDEX(Data[Date],MATCH(N146,Data[Index],0)) -> 2022-12-01 | P146: =MAX(IF(N146=Data[Index],Data[Adj Close],0),IF(N146=Data[Lag Index U],Data[Adj Close],0)) -> 255.020004 | Q146: =MIN(IF(N146=Data[Index],Data[Adj Close]),IF(N146=Data[Lag Index U],Data[Adj Close])) -> 254.690002 | R146: =MAX(IF(N146=Data[Index],Data[Upper Bollinger Band],0),IF(N146=Data[Lag Index U],Data[Upper Bollinger Band],0)) -> 271.881004 | S146: =MIN(IF(N146=Data[Index],Data[Upper Bollinger Band]),IF(N146=Data[Lag Index U],Data[Upper Bollinger Band])) -> 270.2230522 | T146: =MAX(IF(N146=Data[Index],Data[Lower Bollinger Band],0),IF(N146=Data[Lag Index U],Data[Lower Bollinger Band],0)) -> 212.246676 | U146: =MIN(IF(N146=Data[Index],Data[Lower Bollinger Band]),IF(N146=Data[Lag Index U],Data[Lower Bollinger Band])) -> 206.4515141
D147: 2022-06-16 | E147: 243.76416 | F147: =IF(Data[[#This Row],[Adj Close]]<E148,TRUE,"") -> TRUE | G147: =IF(F146=Data[[#This Row],[Up]],0,1) -> 1 | H147: =SUM($G$33:G147) -> 64 | I147: 63 | J147: =AVERAGE(OFFSET(E146,1,,-MIN(Bollinger_Band_Range,COUNTA(E$32:E146)))+Standard_Deviation*IFERROR(STDEV(OFFSET(E146,1,,-MIN(Bollinger_Band_Range,COUNTA(E$32:E146)))),0)) -> 291.915166 | K147: =IFERROR(AVERAGE(OFFSET(E146,1,,-MIN(Bollinger_Band_Range,COUNTA(E$32:E146)))-Standard_Deviation*IFERROR(STDEV(OFFSET(E146,1,,-MIN(Bollinger_Band_Range,COUNTA(E$32:E146)))),0)),0) -> 228.4547026 | N147: 115 | O147: =INDEX(Data[Date],MATCH(N147,Data[Index],0)) -> 2022-12-02 | P147: =MAX(IF(N147=Data[Index],Data[Adj Close],0),IF(N147=Data[Lag Index U],Data[Adj Close],0)) -> 255.020004 | Q147: =MIN(IF(N147=Data[Index],Data[Adj Close]),IF(N147=Data[Lag Index U],Data[Adj Close])) -> 244.369995 | R147: =MAX(IF(N147=Data[Index],Data[Upper Bollinger Band],0),IF(N147=Data[Lag Index U],Data[Upper Bollinger Band],0)) -> 270.2230522 | S147: =MIN(IF(N147=Data[Index],Data[Upper Bollinger Band]),IF(N147=Data[Lag Index U],Data[Upper Bollinger Band])) -> 264.9825471 | T147: =MAX(IF(N147=Data[Index],Data[Lower Bollinger Band],0),IF(N147=Data[Lag Index U],Data[Lower Bollinger Band],0)) -> 223.8337508 | U147: =MIN(IF(N147=Data[Index],Data[Lower Bollinger Band]),IF(N147=Data[Lag Index U],Data[Lower Bollinger Band])) -> 212.246676
D148: 2022-06-17 | E148: 246.430969 | F148: =IF(Data[[#This Row],[Adj Close]]<E149,TRUE,"") -> TRUE | G148: =IF(F147=Data[[#This Row],[Up]],0,1) -> 0 | H148: =SUM($G$33:G148) -> 64 | I148: 64 | J148: =AVERAGE(OFFSET(E147,1,,-MIN(Bollinger_Band_Range,COUNTA(E$32:E147)))+Standard_Deviation*IFERROR(STDEV(OFFSET(E147,1,,-MIN(Bollinger_Band_Range,COUNTA(E$32:E147)))),0)) -> 292.5177218 | K148: =IFERROR(AVERAGE(OFFSET(E147,1,,-MIN(Bollinger_Band_Range,COUNTA(E$32:E147)))-Standard_Deviation*IFERROR(STDEV(OFFSET(E147,1,,-MIN(Bollinger_Band_Range,COUNTA(E$32:E147)))),0)),0) -> 227.3058486 | N148: 116 | O148: =INDEX(Data[Date],MATCH(N148,Data[Index],0)) -> 2022-12-07 | P148: =MAX(IF(N148=Data[Index],Data[Adj Close],0),IF(N148=Data[Lag Index U],Data[Adj Close],0)) -> 247.399994 | Q148: =MIN(IF(N148=Data[Index],Data[Adj Close]),IF(N148=Data[Lag Index U],Data[Adj Close])) -> 244.369995 | R148: =MAX(IF(N148=Data[Index],Data[Upper Bollinger Band],0),IF(N148=Data[Lag Index U],Data[Upper Bollinger Band],0)) -> 264.9825471 | S148: =MIN(IF(N148=Data[Index],Data[Upper Bollinger Band]),IF(N148=Data[Lag Index U],Data[Upper Bollinger Band])) -> 260.2406649 | T148: =MAX(IF(N148=Data[Index],Data[Lower Bollinger Band],0),IF(N148=Data[Lag Index U],Data[Lower Bollinger Band],0)) -> 230.927725 | U148: =MIN(IF(N148=Data[Index],Data[Lower Bollinger Band]),IF(N148=Data[Lag Index U],Data[Lower Bollinger Band])) -> 223.8337508
D149: 2022-06-21 | E149: 252.490997 | F149: =IF(Data[[#This Row],[Adj Close]]<E150,TRUE,"") ->  | G149: =IF(F148=Data[[#This Row],[Up]],0,1) -> 1 | H149: =SUM($G$33:G149) -> 65 | I149: 64 | J149: =AVERAGE(OFFSET(E148,1,,-MIN(Bollinger_Band_Range,COUNTA(E$32:E148)))+Standard_Deviation*IFERROR(STDEV(OFFSET(E148,1,,-MIN(Bollinger_Band_Range,COUNTA(E$32:E148)))),0)) -> 292.4390416 | K149: =IFERROR(AVERAGE(OFFSET(E148,1,,-MIN(Bollinger_Band_Range,COUNTA(E$32:E148)))-Standard_Deviation*IFERROR(STDEV(OFFSET(E148,1,,-MIN(Bollinger_Band_Range,COUNTA(E$32:E148)))),0)),0) -> 227.5019482 | N149: 117 | O149: =INDEX(Data[Date],MATCH(N149,Data[Index],0)) -> 2022-12-08 | P149: =MAX(IF(N149=Data[Index],Data[Adj Close],0),IF(N149=Data[Lag Index U],Data[Adj Close],0)) -> 247.399994 | Q149: =MIN(IF(N149=Data[Index],Data[Adj Close]),IF(N149=Data[Lag Index U],Data[Adj Close])) -> 245.419998 | R149: =MAX(IF(N149=Data[Index],Data[Upper Bollinger Band],0),IF(N149=Data[Lag Index U],Data[Upper Bollinger Band],0)) -> 260.2406649 | S149: =MIN(IF(N149=Data[Index],Data[Upper Bollinger Band]),IF(N149=Data[Lag Index U],Data[Upper Bollinger Band])) -> 260.2136209 | T149: =MAX(IF(N149=Data[Index],Data[Lower Bollinger Band],0),IF(N149=Data[Lag Index U],Data[Lower Bollinger Band],0)) -> 231.2670523 | U149: =MIN(IF(N149=Data[Index],Data[Lower Bollinger Band]),IF(N149=Data[Lag Index U],Data[Lower Bollinger Band])) -> 230.927725
D150: 2022-06-22 | E150: 251.884003 | F150: =IF(Data[[#This Row],[Adj Close]]<E151,TRUE,"") -> TRUE | G150: =IF(F149=Data[[#This Row],[Up]],0,1) -> 1 | H150: =SUM($G$33:G150) -> 66 | I150: 65 | J150: =AVERAGE(OFFSET(E149,1,,-MIN(Bollinger_Band_Range,COUNTA(E$32:E149)))+Standard_Deviation*IFERROR(STDEV(OFFSET(E149,1,,-MIN(Bollinger_Band_Range,COUNTA(E$32:E149)))),0)) -> 292.5156818 | K150: =IFERROR(AVERAGE(OFFSET(E149,1,,-MIN(Bollinger_Band_Range,COUNTA(E$32:E149)))-Standard_Deviation*IFERROR(STDEV(OFFSET(E149,1,,-MIN(Bollinger_Band_Range,COUNTA(E$32:E149)))),0)),0) -> 226.6770109 | N150: 118 | O150: =INDEX(Data[Date],MATCH(N150,Data[Index],0)) -> 2022-12-09 | P150: =MAX(IF(N150=Data[Index],Data[Adj Close],0),IF(N150=Data[Lag Index U],Data[Adj Close],0)) -> 257.220001 | Q150: =MIN(IF(N150=Data[Index],Data[Adj Close]),IF(N150=Data[Lag Index U],Data[Adj Close])) -> 245.419998 | R150: =MAX(IF(N150=Data[Index],Data[Upper Bollinger Band],0),IF(N150=Data[Lag Index U],Data[Upper Bollinger Band],0)) -> 264.8965673 | S150: =MIN(IF(N150=Data[Index],Data[Upper Bollinger Band]),IF(N150=Data[Lag Index U],Data[Upper Bollinger Band])) -> 260.2136209 | T150: =MAX(IF(N150=Data[Index],Data[Lower Bollinger Band],0),IF(N150=Data[Lag Index U],Data[Lower Bollinger Band],0)) -> 231.2670523 | U150: =MIN(IF(N150=Data[Index],Data[Lower Bollinger Band]),IF(N150=Data[Lag Index U],Data[Lower Bollinger Band])) -> 230.3914316
D151: 2022-06-23 | E151: 257.585785 | F151: =IF(Data[[#This Row],[Adj Close]]<E152,TRUE,"") -> TRUE | G151: =IF(F150=Data[[#This Row],[Up]],0,1) -> 0 | H151: =SUM($G$33:G151) -> 66 | I151: 66 | J151: =AVERAGE(OFFSET(E150,1,,-MIN(Bollinger_Band_Range,COUNTA(E$32:E150)))+Standard_Deviation*IFERROR(STDEV(OFFSET(E150,1,,-MIN(Bollinger_Band_Range,COUNTA(E$32:E150)))),0)) -> 292.4954226 | K151: =IFERROR(AVERAGE(OFFSET(E150,1,,-MIN(Bollinger_Band_Range,COUNTA(E$32:E150)))-Standard_Deviation*IFERROR(STDEV(OFFSET(E150,1,,-MIN(Bollinger_Band_Range,COUNTA(E$32:E150)))),0)),0) -> 226.6216445 | N151: 119 | O151: =INDEX(Data[Date],MATCH(N151,Data[Index],0)) -> 2022-12-14 | P151: =MAX(IF(N151=Data[Index],Data[Adj Close],0),IF(N151=Data[Lag Index U],Data[Adj Close],0)) -> 257.220001 | Q151: =MIN(IF(N151=Data[Index],Data[Adj Close]),IF(N151=Data[Lag Index U],Data[Adj Close])) -> 240.449997 | R151: =MAX(IF(N151=Data[Index],Data[Upper Bollinger Band],0),IF(N151=Data[Lag Index U],Data[Upper Bollinger Band],0)) -> 264.8965673 | S151: =MIN(IF(N151=Data[Index],Data[Upper Bollinger Band]),IF(N151=Data[Lag Index U],Data[Upper Bollinger Band])) -> 264.4908185 | T151: =MAX(IF(N151=Data[Index],Data[Lower Bollinger Band],0),IF(N151=Data[Lag Index U],Data[Lower Bollinger Band],0)) -> 231.8261812 | U151: =MIN(IF(N151=Data[Index],Data[Lower Bollinger Band]),IF(N151=Data[Lag Index U],Data[Lower Bollinger Band])) -> 230.3914316
D152: 2022-06-24 | E152: 266.382294 | F152: =IF(Data[[#This Row],[Adj Close]]<E153,TRUE,"") ->  | G152: =IF(F151=Data[[#This Row],[Up]],0,1) -> 1 | H152: =SUM($G$33:G152) -> 67 | I152: 66 | J152: =AVERAGE(OFFSET(E151,1,,-MIN(Bollinger_Band_Range,COUNTA(E$32:E151)))+Standard_Deviation*IFERROR(STDEV(OFFSET(E151,1,,-MIN(Bollinger_Band_Range,COUNTA(E$32:E151)))),0)) -> 293.0569874 | K152: =IFERROR(AVERAGE(OFFSET(E151,1,,-MIN(Bollinger_Band_Range,COUNTA(E$32:E151)))-Standard_Deviation*IFERROR(STDEV(OFFSET(E151,1,,-MIN(Bollinger_Band_Range,COUNTA(E$32:E151)))),0)),0) -> 226.5755308 | N152: 120 | O152: =INDEX(Data[Date],MATCH(N152,Data[Index],0)) -> 2022-12-19 | P152: =MAX(IF(N152=Data[Index],Data[Adj Close],0),IF(N152=Data[Lag Index U],Data[Adj Close],0)) -> 244.429993 | Q152: =MIN(IF(N152=Data[Index],Data[Adj Close]),IF(N152=Data[Lag Index U],Data[Adj Close])) -> 240.449997 | R152: =MAX(IF(N152=Data[Index],Data[Upper Bollinger Band],0),IF(N152=Data[Lag Index U],Data[Upper Bollinger Band],0)) -> 264.6741861 | S152: =MIN(IF(N152=Data[Index],Data[Upper Bollinger Band]),IF(N152=Data[Lag Index U],Data[Upper Bollinger Band])) -> 264.6146327 | T152: =MAX(IF(N152=Data[Index],Data[Lower Bollinger Band],0),IF(N152=Data[Lag Index U],Data[Lower Bollinger Band],0)) -> 231.6253666 | U152: =MIN(IF(N152=Data[Index],Data[Lower Bollinger Band]),IF(N152=Data[Lag Index U],Data[Lower Bollinger Band])) -> 231.4808126
D153: 2022-06-27 | E153: 263.586121 | F153: =IF(Data[[#This Row],[Adj Close]]<E154,TRUE,"") ->  | G153: =IF(F152=Data[[#This Row],[Up]],0,1) -> 0 | H153: =SUM($G$33:G153) -> 67 | I153: 67 | J153: =AVERAGE(OFFSET(E152,1,,-MIN(Bollinger_Band_Range,COUNTA(E$32:E152)))+Standard_Deviation*IFERROR(STDEV(OFFSET(E152,1,,-MIN(Bollinger_Band_Range,COUNTA(E$32:E152)))),0)) -> 292.945134 | K153: =IFERROR(AVERAGE(OFFSET(E152,1,,-MIN(Bollinger_Band_Range,COUNTA(E$32:E152)))-Standard_Deviation*IFERROR(STDEV(OFFSET(E152,1,,-MIN(Bollinger_Band_Range,COUNTA(E$32:E152)))),0)),0) -> 226.5868838 | N153: 121 | O153: =INDEX(Data[Date],MATCH(N153,Data[Index],0)) -> 2022-12-21 | P153: =MAX(IF(N153=Data[Index],Data[Adj Close],0),IF(N153=Data[Lag Index U],Data[Adj Close],0)) -> 244.429993 | Q153: =MIN(IF(N153=Data[Index],Data[Adj Close]),IF(N153=Data[Lag Index U],Data[Adj Close])) -> 238.190002 | R153: =MAX(IF(N153=Data[Index],Data[Upper Bollinger Band],0),IF(N153=Data[Lag Index U],Data[Upper Bollinger Band],0)) -> 265.4840472 | S153: =MIN(IF(N153=Data[Index],Data[Upper Bollinger Band]),IF(N153=Data[Lag Index U],Data[Upper Bollinger Band])) -> 264.6741861 | T153: =MAX(IF(N153=Data[Index],Data[Lower Bollinger Band],0),IF(N153=Data[Lag Index U],Data[Lower Bollinger Band],0)) -> 231.4808126 | U153: =MIN(IF(N153=Data[Index],Data[Lower Bollinger Band]),IF(N153=Data[Lag Index U],Data[Lower Bollinger Band])) -> 229.7319515
D154: 2022-06-28 | E154: 255.217514 | F154: =IF(Data[[#This Row],[Adj Close]]<E155,TRUE,"") -> TRUE | G154: =IF(F153=Data[[#This Row],[Up]],0,1) -> 1 | H154: =SUM($G$33:G154) -> 68 | I154: 67 | J154: =AVERAGE(OFFSET(E153,1,,-MIN(Bollinger_Band_Range,COUNTA(E$32:E153)))+Standard_Deviation*IFERROR(STDEV(OFFSET(E153,1,,-MIN(Bollinger_Band_Range,COUNTA(E$32:E153)))),0)) -> 291.0939465 | K154: =IFERROR(AVERAGE(OFFSET(E153,1,,-MIN(Bollinger_Band_Range,COUNTA(E$32:E153)))-Standard_Deviation*IFERROR(STDEV(OFFSET(E153,1,,-MIN(Bollinger_Band_Range,COUNTA(E$32:E153)))),0)),0) -> 226.7703238 | N154: 122 | O154: =INDEX(Data[Date],MATCH(N154,Data[Index],0)) -> 2022-12-22 | P154: =MAX(IF(N154=Data[Index],Data[Adj Close],0),IF(N154=Data[Lag Index U],Data[Adj Close],0)) -> 238.729996 | Q154: =MIN(IF(N154=Data[Index],Data[Adj Close]),IF(N154=Data[Lag Index U],Data[Adj Close])) -> 238.190002 | R154: =MAX(IF(N154=Data[Index],Data[Upper Bollinger Band],0),IF(N154=Data[Lag Index U],Data[Upper Bollinger Band],0)) -> 266.0131491 | S154: =MIN(IF(N154=Data[Index],Data[Upper Bollinger Band]),IF(N154=Data[Lag Index U],Data[Upper Bollinger Band])) -> 265.4840472 | T154: =MAX(IF(N154=Data[Index],Data[Lower Bollinger Band],0),IF(N154=Data[Lag Index U],Data[Lower Bollinger Band],0)) -> 229.7319515 | U154: =MIN(IF(N154=Data[Index],Data[Lower Bollinger Band]),IF(N154=Data[Lag Index U],Data[Lower Bollinger Band])) -> 228.3268487
D155: 2022-06-29 | E155: 258.978912 | F155: =IF(Data[[#This Row],[Adj Close]]<E156,TRUE,"") ->  | G155: =IF(F154=Data[[#This Row],[Up]],0,1) -> 1 | H155: =SUM($G$33:G155) -> 69 | I155: 68 | J155: =AVERAGE(OFFSET(E154,1,,-MIN(Bollinger_Band_Range,COUNTA(E$32:E154)))+Standard_Deviation*IFERROR(STDEV(OFFSET(E154,1,,-MIN(Bollinger_Band_Range,COUNTA(E$32:E154)))),0)) -> 289.4589474 | K155: =IFERROR(AVERAGE(OFFSET(E154,1,,-MIN(Bollinger_Band_Range,COUNTA(E$32:E154)))-Standard_Deviation*IFERROR(STDEV(OFFSET(E154,1,,-MIN(Bollinger_Band_Range,COUNTA(E$32:E154)))),0)),0) -> 227.2500372 | N155: 123 | O155: =INDEX(Data[Date],MATCH(N155,Data[Index],0)) -> 2022-12-23 | P155: =MAX(IF(N155=Data[Index],Data[Adj Close],0),IF(N155=Data[Lag Index U],Data[Adj Close],0)) -> 238.729996 | Q155: =MIN(IF(N155=Data[Index],Data[Adj Close]),IF(N155=Data[Lag Index U],Data[Adj Close])) -> 234.529999 | R155: =MAX(IF(N155=Data[Index],Data[Upper Bollinger Band],0),IF(N155=Data[Lag Index U],Data[Upper Bollinger Band],0)) -> 267.6503958 | S155: =MIN(IF(N155=Data[Index],Data[Upper Bollinger Band]),IF(N155=Data[Lag Index U],Data[Upper Bollinger Band])) -> 266.0131491 | T155: =MAX(IF(N155=Data[Index],Data[Lower Bollinger Band],0),IF(N155=Data[Lag Index U],Data[Lower Bollinger Band],0)) -> 228.3268487 | U155: =MIN(IF(N155=Data[Index],Data[Lower Bollinger Band]),IF(N155=Data[Lag Index U],Data[Lower Bollinger Band])) -> 225.6296029
D156: 2022-06-30 | E156: 255.565781 | F156: =IF(Data[[#This Row],[Adj Close]]<E157,TRUE,"") -> TRUE | G156: =IF(F155=Data[[#This Row],[Up]],0,1) -> 1 | H156: =SUM($G$33:G156) -> 70 | I156: 69 | J156: =AVERAGE(OFFSET(E155,1,,-MIN(Bollinger_Band_Range,COUNTA(E$32:E155)))+Standard_Deviation*IFERROR(STDEV(OFFSET(E155,1,,-MIN(Bollinger_Band_Range,COUNTA(E$32:E155)))),0)) -> 287.391157 | K156: =IFERROR(AVERAGE(OFFSET(E155,1,,-MIN(Bollinger_Band_Range,COUNTA(E$32:E155)))-Standard_Deviation*IFERROR(STDEV(OFFSET(E155,1,,-MIN(Bollinger_Band_Range,COUNTA(E$32:E155)))),0)),0) -> 227.7665016 | N156: 124 | O156: =INDEX(Data[Date],MATCH(N156,Data[Index],0)) -> 2022-12-28 | P156: =MAX(IF(N156=Data[Index],Data[Adj Close],0),IF(N156=Data[Lag Index U],Data[Adj Close],0)) -> 241.009995 | Q156: =MIN(IF(N156=Data[Index],Data[Adj Close]),IF(N156=Data[Lag Index U],Data[Adj Close])) -> 234.529999 | R156: =MAX(IF(N156=Data[Index],Data[Upper Bollinger Band],0),IF(N156=Data[Lag Index U],Data[Upper Bollinger Band],0)) -> 267.6503958 | S156: =MIN(IF(N156=Data[Index],Data[Upper Bollinger Band]),IF(N156=Data[Lag Index U],Data[Upper Bollinger Band])) -> 266.3662842 | T156: =MAX(IF(N156=Data[Index],Data[Lower Bollinger Band],0),IF(N156=Data[Lag Index U],Data[Lower Bollinger Band],0)) -> 225.6296029 | U156: =MIN(IF(N156=Data[Index],Data[Lower Bollinger Band]),IF(N156=Data[Lag Index U],Data[Lower Bollinger Band])) -> 225.5007141
D157: 2022-07-01 | E157: 258.302216 | F157: =IF(Data[[#This Row],[Adj Close]]<E158,TRUE,"") -> TRUE | G157: =IF(F156=Data[[#This Row],[Up]],0,1) -> 0 | H157: =SUM($G$33:G157) -> 70 | I157: 70 | J157: =AVERAGE(OFFSET(E156,1,,-MIN(Bollinger_Band_Range,COUNTA(E$32:E156)))+Standard_Deviation*IFERROR(STDEV(OFFSET(E156,1,,-MIN(Bollinger_Band_Range,COUNTA(E$32:E156)))),0)) -> 284.5405818 | K157: =IFERROR(AVERAGE(OFFSET(E156,1,,-MIN(Bollinger_Band_Range,COUNTA(E$32:E156)))-Standard_Deviation*IFERROR(STDEV(OFFSET(E156,1,,-MIN(Bollinger_Band_Range,COUNTA(E$32:E156)))),0)),0) -> 229.124459 | N157: 125 | O157: =INDEX(Data[Date],MATCH(N157,Data[Index],0)) -> 2022-12-29 | P157: =MAX(IF(N157=Data[Index],Data[Adj Close],0),IF(N157=Data[Lag Index U],Data[Adj Close],0)) -> 241.009995 | Q157: =MIN(IF(N157=Data[Index],Data[Adj Close]),IF(N157=Data[Lag Index U],Data[Adj Close])) -> 222.309998 | R157: =MAX(IF(N157=Data[Index],Data[Upper Bollinger Band],0),IF(N157=Data[Lag Index U],Data[Upper Bollinger Band],0)) -> 267.4824676 | S157: =MIN(IF(N157=Data[Index],Data[Upper Bollinger Band]),IF(N157=Data[Lag Index U],Data[Upper Bollinger Band])) -> 263.3160212 | T157: =MAX(IF(N157=Data[Index],Data[Lower Bollinger Band],0),IF(N157=Data[Lag Index U],Data[Lower Bollinger Band],0)) -> 225.5199774 | U157: =MIN(IF(N157=Data[Index],Data[Lower Bollinger Band]),IF(N157=Data[Lag Index U],Data[Lower Bollinger Band])) -> 216.9625322
D158: 2022-07-05 | E158: 261.556152 | F158: =IF(Data[[#This Row],[Adj Close]]<E159,TRUE,"") -> TRUE | G158: =IF(F157=Data[[#This Row],[Up]],0,1) -> 0 | H158: =SUM($G$33:G158) -> 70 | I158: 70 | J158: =AVERAGE(OFFSET(E157,1,,-MIN(Bollinger_Band_Range,COUNTA(E$32:E157)))+Standard_Deviation*IFERROR(STDEV(OFFSET(E157,1,,-MIN(Bollinger_Band_Range,COUNTA(E$32:E157)))),0)) -> 283.1308161 | K158: =IFERROR(AVERAGE(OFFSET(E157,1,,-MIN(Bollinger_Band_Range,COUNTA(E$32:E157)))-Standard_Deviation*IFERROR(STDEV(OFFSET(E157,1,,-MIN(Bollinger_Band_Range,COUNTA(E$32:E157)))),0)),0) -> 229.8207542 | N158: 126 | O158: =INDEX(Data[Date],MATCH(N158,Data[Index],0)) -> 2023-01-05 | P158: =MAX(IF(N158=Data[Index],Data[Adj Close],0),IF(N158=Data[Lag Index U],Data[Adj Close],0)) -> 240.350006 | Q158: =MIN(IF(N158=Data[Index],Data[Adj Close]),IF(N158=Data[Lag Index U],Data[Adj Close])) -> 222.309998 | R158: =MAX(IF(N158=Data[Index],Data[Upper Bollinger Band],0),IF(N158=Data[Lag Index U],Data[Upper Bollinger Band],0)) -> 269.1415918 | S158: =MIN(IF(N158=Data[Index],Data[Upper Bollinger Band]),IF(N158=Data[Lag Index U],Data[Upper Bollinger Band])) -> 255.6514728 | T158: =MAX(IF(N158=Data[Index],Data[Lower Bollinger Band],0),IF(N158=Data[Lag Index U],Data[Lower Bollinger Band],0)) -> 216.9845274 | U158: =MIN(IF(N158=Data[Index],Data[Lower Bollinger Band]),IF(N158=Data[Lag Index U],Data[Lower Bollinger Band])) -> 209.782193
D159: 2022-07-06 | E159: 264.899597 | F159: =IF(Data[[#This Row],[Adj Close]]<E160,TRUE,"") -> TRUE | G159: =IF(F158=Data[[#This Row],[Up]],0,1) -> 0 | H159: =SUM($G$33:G159) -> 70 | I159: 70 | J159: =AVERAGE(OFFSET(E158,1,,-MIN(Bollinger_Band_Range,COUNTA(E$32:E158)))+Standard_Deviation*IFERROR(STDEV(OFFSET(E158,1,,-MIN(Bollinger_Band_Range,COUNTA(E$32:E158)))),0)) -> 282.562819 | K159: =IFERROR(AVERAGE(OFFSET(E158,1,,-MIN(Bollinger_Band_Range,COUNTA(E$32:E158)))-Standard_Deviation*IFERROR(STDEV(OFFSET(E158,1,,-MIN(Bollinger_Band_Range,COUNTA(E$32:E158)))),0)),0) -> 230.1360016 | N159: 127 | O159: =INDEX(Data[Date],MATCH(N159,Data[Index],0)) -> 2023-01-17 | P159: =MAX(IF(N159=Data[Index],Data[Adj Close],0),IF(N159=Data[Lag Index U],Data[Adj Close],0)) -> 240.350006 | Q159: =MIN(IF(N159=Data[Index],Data[Adj Close]),IF(N159=Data[Lag Index U],Data[Adj Close])) -> 231.929993 | R159: =MAX(IF(N159=Data[Index],Data[Upper Bollinger Band],0),IF(N159=Data[Lag Index U],Data[Upper Bollinger Band],0)) -> 255.6514728 | S159: =MIN(IF(N159=Data[Index],Data[Upper Bollinger Band]),IF(N159=Data[Lag Index U],Data[Upper Bollinger Band])) -> 253.7391793 | T159: =MAX(IF(N159=Data[Index],Data[Lower Bollinger Band],0),IF(N159=Data[Lag Index U],Data[Lower Bollinger Band],0)) -> 217.4664721 | U159: =MIN(IF(N159=Data[Index],Data[Lower Bollinger Band]),IF(N159=Data[Lag Index U],Data[Lower Bollinger Band])) -> 216.9845274
D160: 2022-07-07 | E160: 267.078827 | F160: =IF(Data[[#This Row],[Adj Close]]<E161,TRUE,"") ->  | G160: =IF(F159=Data[[#This Row],[Up]],0,1) -> 1 | H160: =SUM($G$33:G160) -> 71 | I160: 70 | J160: =AVERAGE(OFFSET(E159,1,,-MIN(Bollinger_Band_Range,COUNTA(E$32:E159)))+Standard_Deviation*IFERROR(STDEV(OFFSET(E159,1,,-MIN(Bollinger_Band_Range,COUNTA(E$32:E159)))),0)) -> 281.3920766 | K160: =IFERROR(AVERAGE(OFFSET(E159,1,,-MIN(Bollinger_Band_Range,COUNTA(E$32:E159)))-Standard_Deviation*IFERROR(STDEV(OFFSET(E159,1,,-MIN(Bollinger_Band_Range,COUNTA(E$32:E159)))),0)),0) -> 230.8987606 | N160: 128 | O160: =INDEX(Data[Date],MATCH(N160,Data[Index],0)) -> 2023-01-19 | P160: =MAX(IF(N160=Data[Index],Data[Adj Close],0),IF(N160=Data[Lag Index U],Data[Adj Close],0)) -> 242.580002 | Q160: =MIN(IF(N160=Data[Index],Data[Adj Close]),IF(N160=Data[Lag Index U],Data[Adj Close])) -> 231.929993 | R160: =MAX(IF(N160=Data[Index],Data[Upper Bollinger Band],0),IF(N160=Data[Lag Index U],Data[Upper Bollinger Band],0)) -> 253.7391793 | S160: =MIN(IF(N160=Data[Index],Data[Upper Bollinger Band]),IF(N160=Data[Lag Index U],Data[Upper Bollinger Band])) -> 252.9355566 | T160: =MAX(IF(N160=Data[Index],Data[Lower Bollinger Band],0),IF(N160=Data[Lag Index U],Data[Lower Bollinger Band],0)) -> 217.6174435 | U160: =MIN(IF(N160=Data[Index],Data[Lower Bollinger Band]),IF(N160=Data[Lag Index U],Data[Lower Bollinger Band])) -> 217.1568201
D161: 2022-07-08 | E161: 266.342468 | F161: =IF(Data[[#This Row],[Adj Close]]<E162,TRUE,"") ->  | G161: =IF(F160=Data[[#This Row],[Up]],0,1) -> 0 | H161: =SUM($G$33:G161) -> 71 | I161: =N(H160) -> 71 | J161: =AVERAGE(OFFSET(E160,1,,-MIN(Bollinger_Band_Range,COUNTA(E$32:E160)))+Standard_Deviation*IFERROR(STDEV(OFFSET(E160,1,,-MIN(Bollinger_Band_Range,COUNTA(E$32:E160)))),0)) -> 280.6507106 | K161: =IFERROR(AVERAGE(OFFSET(E160,1,,-MIN(Bollinger_Band_Range,COUNTA(E$32:E160)))-Standard_Deviation*IFERROR(STDEV(OFFSET(E160,1,,-MIN(Bollinger_Band_Range,COUNTA(E$32:E160)))),0)),0) -> 231.3664785 | N161: 129 | O161: =INDEX(Data[Date],MATCH(N161,Data[Index],0)) -> 2023-01-23 | P161: =MAX(IF(N161=Data[Index],Data[Adj Close],0),IF(N161=Data[Lag Index U],Data[Adj Close],0)) -> 242.580002 | Q161: =MIN(IF(N161=Data[Index],Data[Adj Close]),IF(N161=Data[Lag Index U],Data[Adj Close])) -> 240.610001 | R161: =MAX(IF(N161=Data[Index],Data[Upper Bollinger Band],0),IF(N161=Data[Lag Index U],Data[Upper Bollinger Band],0)) -> 253.9079575 | S161: =MIN(IF(N161=Data[Index],Data[Upper Bollinger Band]),IF(N161=Data[Lag Index U],Data[Upper Bollinger Band])) -> 252.9355566 | T161: =MAX(IF(N161=Data[Index],Data[Lower Bollinger Band],0),IF(N161=Data[Lag Index U],Data[Lower Bollinger Band],0)) -> 217.6174435 | U161: =MIN(IF(N161=Data[Index],Data[Lower Bollinger Band]),IF(N161=Data[Lag Index U],Data[Lower Bollinger Band])) -> 217.2180422
D162: 2022-07-11 | E162: 263.207977 | F162: =IF(Data[[#This Row],[Adj Close]]<E163,TRUE,"") ->  | G162: =IF(F161=Data[[#This Row],[Up]],0,1) -> 0 | H162: =SUM($G$33:G162) -> 71 | I162: 71 | J162: =AVERAGE(OFFSET(E161,1,,-MIN(Bollinger_Band_Range,COUNTA(E$32:E161)))+Standard_Deviation*IFERROR(STDEV(OFFSET(E161,1,,-MIN(Bollinger_Band_Range,COUNTA(E$32:E161)))),0)) -> 280.5973994 | K162: =IFERROR(AVERAGE(OFFSET(E161,1,,-MIN(Bollinger_Band_Range,COUNTA(E$32:E161)))-Standard_Deviation*IFERROR(STDEV(OFFSET(E161,1,,-MIN(Bollinger_Band_Range,COUNTA(E$32:E161)))),0)),0) -> 231.3919241 | N162: =N(N161)+1 -> 130 | O162: =INDEX(Data[Date],MATCH(N162,Data[Index],0)) -> 2023-01-25 | P162: =MAX(IF(N162=Data[Index],Data[Adj Close],0),IF(N162=Data[Lag Index U],Data[Adj Close],0)) -> 248.160004 | Q162: =MIN(IF(N162=Data[Index],Data[Adj Close]),IF(N162=Data[Lag Index U],Data[Adj Close])) -> 240.610001 | R162: =MAX(IF(N162=Data[Index],Data[Upper Bollinger Band],0),IF(N162=Data[Lag Index U],Data[Upper Bollinger Band],0)) -> 258.4558735 | S162: =MIN(IF(N162=Data[Index],Data[Upper Bollinger Band]),IF(N162=Data[Lag Index U],Data[Upper Bollinger Band])) -> 253.9079575 | T162: =MAX(IF(N162=Data[Index],Data[Lower Bollinger Band],0),IF(N162=Data[Lag Index U],Data[Lower Bollinger Band],0)) -> 217.2180422 | U162: =MIN(IF(N162=Data[Index],Data[Lower Bollinger Band]),IF(N162=Data[Lag Index U],Data[Lower Bollinger Band])) -> 215.137126
D163: 2022-07-12 | E163: 252.421326 | F163: =IF(Data[[#This Row],[Adj Close]]<E164,TRUE,"") ->  | G163: =IF(F162=Data[[#This Row],[Up]],0,1) -> 0 | H163: =SUM($G$33:G163) -> 71 | I163: 71 | J163: =AVERAGE(OFFSET(E162,1,,-MIN(Bollinger_Band_Range,COUNTA(E$32:E162)))+Standard_Deviation*IFERROR(STDEV(OFFSET(E162,1,,-MIN(Bollinger_Band_Range,COUNTA(E$32:E162)))),0)) -> 280.5799985 | K163: =IFERROR(AVERAGE(OFFSET(E162,1,,-MIN(Bollinger_Band_Range,COUNTA(E$32:E162)))-Standard_Deviation*IFERROR(STDEV(OFFSET(E162,1,,-MIN(Bollinger_Band_Range,COUNTA(E$32:E162)))),0)),0) -> 231.4769886
D164: 2022-07-13 | E164: 251.476013 | F164: =IF(Data[[#This Row],[Adj Close]]<E165,TRUE,"") -> TRUE | G164: =IF(F163=Data[[#This Row],[Up]],0,1) -> 1 | H164: =SUM($G$33:G164) -> 72 | I164: 71 | J164: =AVERAGE(OFFSET(E163,1,,-MIN(Bollinger_Band_Range,COUNTA(E$32:E163)))+Standard_Deviation*IFERROR(STDEV(OFFSET(E163,1,,-MIN(Bollinger_Band_Range,COUNTA(E$32:E163)))),0)) -> 278.9989159 | K164: =IFERROR(AVERAGE(OFFSET(E163,1,,-MIN(Bollinger_Band_Range,COUNTA(E$32:E163)))-Standard_Deviation*IFERROR(STDEV(OFFSET(E163,1,,-MIN(Bollinger_Band_Range,COUNTA(E$32:E163)))),0)),0) -> 234.098922
D165: 2022-07-14 | E165: 252.82933 | F165: =IF(Data[[#This Row],[Adj Close]]<E166,TRUE,"") -> TRUE | G165: =IF(F164=Data[[#This Row],[Up]],0,1) -> 0 | H165: =SUM($G$33:G165) -> 72 | I165: 72 | J165: =AVERAGE(OFFSET(E164,1,,-MIN(Bollinger_Band_Range,COUNTA(E$32:E164)))+Standard_Deviation*IFERROR(STDEV(OFFSET(E164,1,,-MIN(Bollinger_Band_Range,COUNTA(E$32:E164)))),0)) -> 277.6435848 | K165: =IFERROR(AVERAGE(OFFSET(E164,1,,-MIN(Bollinger_Band_Range,COUNTA(E$32:E164)))-Standard_Deviation*IFERROR(STDEV(OFFSET(E164,1,,-MIN(Bollinger_Band_Range,COUNTA(E$32:E164)))),0)),0) -> 236.4085331
D166: 2022-07-15 | E166: 255.456314 | F166: =IF(Data[[#This Row],[Adj Close]]<E167,TRUE,"") ->  | G166: =IF(F165=Data[[#This Row],[Up]],0,1) -> 1 | H166: =SUM($G$33:G166) -> 73 | I166: 72 | J166: =AVERAGE(OFFSET(E165,1,,-MIN(Bollinger_Band_Range,COUNTA(E$32:E165)))+Standard_Deviation*IFERROR(STDEV(OFFSET(E165,1,,-MIN(Bollinger_Band_Range,COUNTA(E$32:E165)))),0)) -> 277.4130138 | K166: =IFERROR(AVERAGE(OFFSET(E165,1,,-MIN(Bollinger_Band_Range,COUNTA(E$32:E165)))-Standard_Deviation*IFERROR(STDEV(OFFSET(E165,1,,-MIN(Bollinger_Band_Range,COUNTA(E$32:E165)))),0)),0) -> 237.1326618
D167: 2022-07-18 | E167: 252.998474 | F167: =IF(Data[[#This Row],[Adj Close]]<E168,TRUE,"") -> TRUE | G167: =IF(F166=Data[[#This Row],[Up]],0,1) -> 1 | H167: =SUM($G$33:G167) -> 74 | I167: 73 | J167: =AVERAGE(OFFSET(E166,1,,-MIN(Bollinger_Band_Range,COUNTA(E$32:E166)))+Standard_Deviation*IFERROR(STDEV(OFFSET(E166,1,,-MIN(Bollinger_Band_Range,COUNTA(E$32:E166)))),0)) -> 275.7850773 | K167: =IFERROR(AVERAGE(OFFSET(E166,1,,-MIN(Bollinger_Band_Range,COUNTA(E$32:E166)))-Standard_Deviation*IFERROR(STDEV(OFFSET(E166,1,,-MIN(Bollinger_Band_Range,COUNTA(E$32:E166)))),0)),0) -> 239.6840297
D168: 2022-07-19 | E168: 258.252502 | F168: =IF(Data[[#This Row],[Adj Close]]<E169,TRUE,"") -> TRUE | G168: =IF(F167=Data[[#This Row],[Up]],0,1) -> 0 | H168: =SUM($G$33:G168) -> 74 | I168: 74 | J168: =AVERAGE(OFFSET(E167,1,,-MIN(Bollinger_Band_Range,COUNTA(E$32:E167)))+Standard_Deviation*IFERROR(STDEV(OFFSET(E167,1,,-MIN(Bollinger_Band_Range,COUNTA(E$32:E167)))),0)) -> 274.5156126 | K168: =IFERROR(AVERAGE(OFFSET(E167,1,,-MIN(Bollinger_Band_Range,COUNTA(E$32:E167)))-Standard_Deviation*IFERROR(STDEV(OFFSET(E167,1,,-MIN(Bollinger_Band_Range,COUNTA(E$32:E167)))),0)),0) -> 242.1356477
D169: 2022-07-20 | E169: 260.979004 | F169: =IF(Data[[#This Row],[Adj Close]]<E170,TRUE,"") -> TRUE | G169: =IF(F168=Data[[#This Row],[Up]],0,1) -> 0 | H169: =SUM($G$33:G169) -> 74 | I169: 74 | J169: =AVERAGE(OFFSET(E168,1,,-MIN(Bollinger_Band_Range,COUNTA(E$32:E168)))+Standard_Deviation*IFERROR(STDEV(OFFSET(E168,1,,-MIN(Bollinger_Band_Range,COUNTA(E$32:E168)))),0)) -> 274.4859286 | K169: =IFERROR(AVERAGE(OFFSET(E168,1,,-MIN(Bollinger_Band_Range,COUNTA(E$32:E168)))-Standard_Deviation*IFERROR(STDEV(OFFSET(E168,1,,-MIN(Bollinger_Band_Range,COUNTA(E$32:E168)))),0)),0) -> 243.0141324
D170: 2022-07-21 | E170: 263.536346 | F170: =IF(Data[[#This Row],[Adj Close]]<E171,TRUE,"") ->  | G170: =IF(F169=Data[[#This Row],[Up]],0,1) -> 1 | H170: =SUM($G$33:G170) -> 75 | I170: 74 | J170: =AVERAGE(OFFSET(E169,1,,-MIN(Bollinger_Band_Range,COUNTA(E$32:E169)))+Standard_Deviation*IFERROR(STDEV(OFFSET(E169,1,,-MIN(Bollinger_Band_Range,COUNTA(E$32:E169)))),0)) -> 274.5944851 | K170: =IFERROR(AVERAGE(OFFSET(E169,1,,-MIN(Bollinger_Band_Range,COUNTA(E$32:E169)))-Standard_Deviation*IFERROR(STDEV(OFFSET(E169,1,,-MIN(Bollinger_Band_Range,COUNTA(E$32:E169)))),0)),0) -> 244.0708102
D171: 2022-07-22 | E171: 259.0784 | F171: =IF(Data[[#This Row],[Adj Close]]<E172,TRUE,"") ->  | G171: =IF(F170=Data[[#This Row],[Up]],0,1) -> 0 | H171: =SUM($G$33:G171) -> 75 | I171: 75 | J171: =AVERAGE(OFFSET(E170,1,,-MIN(Bollinger_Band_Range,COUNTA(E$32:E170)))+Standard_Deviation*IFERROR(STDEV(OFFSET(E170,1,,-MIN(Bollinger_Band_Range,COUNTA(E$32:E170)))),0)) -> 274.6209589 | K171: =IFERROR(AVERAGE(OFFSET(E170,1,,-MIN(Bollinger_Band_Range,COUNTA(E$32:E170)))-Standard_Deviation*IFERROR(STDEV(OFFSET(E170,1,,-MIN(Bollinger_Band_Range,COUNTA(E$32:E170)))),0)),0) -> 244.1935979
D172: 2022-07-25 | E172: 257.555908 | F172: =IF(Data[[#This Row],[Adj Close]]<E173,TRUE,"") ->  | G172: =IF(F171=Data[[#This Row],[Up]],0,1) -> 0 | H172: =SUM($G$33:G172) -> 75 | I172: 75 | J172: =AVERAGE(OFFSET(E171,1,,-MIN(Bollinger_Band_Range,COUNTA(E$32:E171)))+Standard_Deviation*IFERROR(STDEV(OFFSET(E171,1,,-MIN(Bollinger_Band_Range,COUNTA(E$32:E171)))),0)) -> 273.3947292 | K172: =IFERROR(AVERAGE(OFFSET(E171,1,,-MIN(Bollinger_Band_Range,COUNTA(E$32:E171)))-Standard_Deviation*IFERROR(STDEV(OFFSET(E171,1,,-MIN(Bollinger_Band_Range,COUNTA(E$32:E171)))),0)),0) -> 244.537189
D173: 2022-07-26 | E173: 250.660034 | F173: =IF(Data[[#This Row],[Adj Close]]<E174,TRUE,"") -> TRUE | G173: =IF(F172=Data[[#This Row],[Up]],0,1) -> 1 | H173: =SUM($G$33:G173) -> 76 | I173: 75 | J173: =AVERAGE(OFFSET(E172,1,,-MIN(Bollinger_Band_Range,COUNTA(E$32:E172)))+Standard_Deviation*IFERROR(STDEV(OFFSET(E172,1,,-MIN(Bollinger_Band_Range,COUNTA(E$32:E172)))),0)) -> 273.3795238 | K173: =IFERROR(AVERAGE(OFFSET(E172,1,,-MIN(Bollinger_Band_Range,COUNTA(E$32:E172)))-Standard_Deviation*IFERROR(STDEV(OFFSET(E172,1,,-MIN(Bollinger_Band_Range,COUNTA(E$32:E172)))),0)),0) -> 243.2597857
D174: 2022-07-27 | E174: 267.417145 | F174: =IF(Data[[#This Row],[Adj Close]]<E175,TRUE,"") -> TRUE | G174: =IF(F173=Data[[#This Row],[Up]],0,1) -> 0 | H174: =SUM($G$33:G174) -> 76 | I174: 76 | J174: =AVERAGE(OFFSET(E173,1,,-MIN(Bollinger_Band_Range,COUNTA(E$32:E173)))+Standard_Deviation*IFERROR(STDEV(OFFSET(E173,1,,-MIN(Bollinger_Band_Range,COUNTA(E$32:E173)))),0)) -> 274.989539 | K174: =IFERROR(AVERAGE(OFFSET(E173,1,,-MIN(Bollinger_Band_Range,COUNTA(E$32:E173)))-Standard_Deviation*IFERROR(STDEV(OFFSET(E173,1,,-MIN(Bollinger_Band_Range,COUNTA(E$32:E173)))),0)),0) -> 242.8697336
D175: 2022-07-28 | E175: 275.049408 | F175: =IF(Data[[#This Row],[Adj Close]]<E176,TRUE,"") -> TRUE | G175: =IF(F174=Data[[#This Row],[Up]],0,1) -> 0 | H175: =SUM($G$33:G175) -> 76 | I175: 76 | J175: =AVERAGE(OFFSET(E174,1,,-MIN(Bollinger_Band_Range,COUNTA(E$32:E174)))+Standard_Deviation*IFERROR(STDEV(OFFSET(E174,1,,-MIN(Bollinger_Band_Range,COUNTA(E$32:E174)))),0)) -> 279.0951873 | K175: =IFERROR(AVERAGE(OFFSET(E174,1,,-MIN(Bollinger_Band_Range,COUNTA(E$32:E174)))-Standard_Deviation*IFERROR(STDEV(OFFSET(E174,1,,-MIN(Bollinger_Band_Range,COUNTA(E$32:E174)))),0)),0) -> 240.3711349
D176: 2022-07-29 | E176: 279.358093 | F176: =IF(Data[[#This Row],[Adj Close]]<E177,TRUE,"") ->  | G176: =IF(F175=Data[[#This Row],[Up]],0,1) -> 1 | H176: =SUM($G$33:G176) -> 77 | I176: 76 | J176: =AVERAGE(OFFSET(E175,1,,-MIN(Bollinger_Band_Range,COUNTA(E$32:E175)))+Standard_Deviation*IFERROR(STDEV(OFFSET(E175,1,,-MIN(Bollinger_Band_Range,COUNTA(E$32:E175)))),0)) -> 284.067718 | K176: =IFERROR(AVERAGE(OFFSET(E175,1,,-MIN(Bollinger_Band_Range,COUNTA(E$32:E175)))-Standard_Deviation*IFERROR(STDEV(OFFSET(E175,1,,-MIN(Bollinger_Band_Range,COUNTA(E$32:E175)))),0)),0) -> 237.7778354
D177: 2022-08-01 | E177: 276.641541 | F177: =IF(Data[[#This Row],[Adj Close]]<E178,TRUE,"") ->  | G177: =IF(F176=Data[[#This Row],[Up]],0,1) -> 0 | H177: =SUM($G$33:G177) -> 77 | I177: 77 | J177: =AVERAGE(OFFSET(E176,1,,-MIN(Bollinger_Band_Range,COUNTA(E$32:E176)))+Standard_Deviation*IFERROR(STDEV(OFFSET(E176,1,,-MIN(Bollinger_Band_Range,COUNTA(E$32:E176)))),0)) -> 287.1677375 | K177: =IFERROR(AVERAGE(OFFSET(E176,1,,-MIN(Bollinger_Band_Range,COUNTA(E$32:E176)))-Standard_Deviation*IFERROR(STDEV(OFFSET(E176,1,,-MIN(Bollinger_Band_Range,COUNTA(E$32:E176)))),0)),0) -> 236.5117484
D178: 2022-08-02 | E178: 273.467224 | F178: =IF(Data[[#This Row],[Adj Close]]<E179,TRUE,"") -> TRUE | G178: =IF(F177=Data[[#This Row],[Up]],0,1) -> 1 | H178: =SUM($G$33:G178) -> 78 | I178: 77 | J178: =AVERAGE(OFFSET(E177,1,,-MIN(Bollinger_Band_Range,COUNTA(E$32:E177)))+Standard_Deviation*IFERROR(STDEV(OFFSET(E177,1,,-MIN(Bollinger_Band_Range,COUNTA(E$32:E177)))),0)) -> 288.9334164 | K178: =IFERROR(AVERAGE(OFFSET(E177,1,,-MIN(Bollinger_Band_Range,COUNTA(E$32:E177)))-Standard_Deviation*IFERROR(STDEV(OFFSET(E177,1,,-MIN(Bollinger_Band_Range,COUNTA(E$32:E177)))),0)),0) -> 235.9371767
D179: 2022-08-03 | E179: 281.079559 | F179: =IF(Data[[#This Row],[Adj Close]]<E180,TRUE,"") -> TRUE | G179: =IF(F178=Data[[#This Row],[Up]],0,1) -> 0 | H179: =SUM($G$33:G179) -> 78 | I179: 78 | J179: =AVERAGE(OFFSET(E178,1,,-MIN(Bollinger_Band_Range,COUNTA(E$32:E178)))+Standard_Deviation*IFERROR(STDEV(OFFSET(E178,1,,-MIN(Bollinger_Band_Range,COUNTA(E$32:E178)))),0)) -> 292.5313247 | K179: =IFERROR(AVERAGE(OFFSET(E178,1,,-MIN(Bollinger_Band_Range,COUNTA(E$32:E178)))-Standard_Deviation*IFERROR(STDEV(OFFSET(E178,1,,-MIN(Bollinger_Band_Range,COUNTA(E$32:E178)))),0)),0) -> 233.9572646
D180: 2022-08-04 | E180: 282.253754 | F180: =IF(Data[[#This Row],[Adj Close]]<E181,TRUE,"") ->  | G180: =IF(F179=Data[[#This Row],[Up]],0,1) -> 1 | H180: =SUM($G$33:G180) -> 79 | I180: 78 | J180: =AVERAGE(OFFSET(E179,1,,-MIN(Bollinger_Band_Range,COUNTA(E$32:E179)))+Standard_Deviation*IFERROR(STDEV(OFFSET(E179,1,,-MIN(Bollinger_Band_Range,COUNTA(E$32:E179)))),0)) -> 295.8853495 | K180: =IFERROR(AVERAGE(OFFSET(E179,1,,-MIN(Bollinger_Band_Range,COUNTA(E$32:E179)))-Standard_Deviation*IFERROR(STDEV(OFFSET(E179,1,,-MIN(Bollinger_Band_Range,COUNTA(E$32:E179)))),0)),0) -> 232.1207325
D181: 2022-08-05 | E181: 281.517395 | F181: =IF(Data[[#This Row],[Adj Close]]<E182,TRUE,"") ->  | G181: =IF(F180=Data[[#This Row],[Up]],0,1) -> 0 | H181: =SUM($G$33:G181) -> 79 | I181: 79 | J181: =AVERAGE(OFFSET(E180,1,,-MIN(Bollinger_Band_Range,COUNTA(E$32:E180)))+Standard_Deviation*IFERROR(STDEV(OFFSET(E180,1,,-MIN(Bollinger_Band_Range,COUNTA(E$32:E180)))),0)) -> 298.7285219 | K181: =IFERROR(AVERAGE(OFFSET(E180,1,,-MIN(Bollinger_Band_Range,COUNTA(E$32:E180)))-Standard_Deviation*IFERROR(STDEV(OFFSET(E180,1,,-MIN(Bollinger_Band_Range,COUNTA(E$32:E180)))),0)),0) -> 230.7950528
D182: 2022-08-08 | E182: 278.940155 | F182: =IF(Data[[#This Row],[Adj Close]]<E183,TRUE,"") -> TRUE | G182: =IF(F181=Data[[#This Row],[Up]],0,1) -> 1 | H182: =SUM($G$33:G182) -> 80 | I182: 79 | J182: =AVERAGE(OFFSET(E181,1,,-MIN(Bollinger_Band_Range,COUNTA(E$32:E181)))+Standard_Deviation*IFERROR(STDEV(OFFSET(E181,1,,-MIN(Bollinger_Band_Range,COUNTA(E$32:E181)))),0)) -> 300.7897987 | K182: =IFERROR(AVERAGE(OFFSET(E181,1,,-MIN(Bollinger_Band_Range,COUNTA(E$32:E181)))-Standard_Deviation*IFERROR(STDEV(OFFSET(E181,1,,-MIN(Bollinger_Band_Range,COUNTA(E$32:E181)))),0)),0) -> 230.3069938
D183: 2022-08-09 | E183: 280.9104 | F183: =IF(Data[[#This Row],[Adj Close]]<E184,TRUE,"") -> TRUE | G183: =IF(F182=Data[[#This Row],[Up]],0,1) -> 0 | H183: =SUM($G$33:G183) -> 80 | I183: 80 | J183: =AVERAGE(OFFSET(E182,1,,-MIN(Bollinger_Band_Range,COUNTA(E$32:E182)))+Standard_Deviation*IFERROR(STDEV(OFFSET(E182,1,,-MIN(Bollinger_Band_Range,COUNTA(E$32:E182)))),0)) -> 302.3690889 | K183: =IFERROR(AVERAGE(OFFSET(E182,1,,-MIN(Bollinger_Band_Range,COUNTA(E$32:E182)))-Standard_Deviation*IFERROR(STDEV(OFFSET(E182,1,,-MIN(Bollinger_Band_Range,COUNTA(E$32:E182)))),0)),0) -> 231.576611
D184: 2022-08-10 | E184: 287.736633 | F184: =IF(Data[[#This Row],[Adj Close]]<E185,TRUE,"") ->  | G184: =IF(F183=Data[[#This Row],[Up]],0,1) -> 1 | H184: =SUM($G$33:G184) -> 81 | I184: 80 | J184: =AVERAGE(OFFSET(E183,1,,-MIN(Bollinger_Band_Range,COUNTA(E$32:E183)))+Standard_Deviation*IFERROR(STDEV(OFFSET(E183,1,,-MIN(Bollinger_Band_Range,COUNTA(E$32:E183)))),0)) -> 305.010437 | K184: =IFERROR(AVERAGE(OFFSET(E183,1,,-MIN(Bollinger_Band_Range,COUNTA(E$32:E183)))-Standard_Deviation*IFERROR(STDEV(OFFSET(E183,1,,-MIN(Bollinger_Band_Range,COUNTA(E$32:E183)))),0)),0) -> 232.5613249
D185: 2022-08-11 | E185: 285.607147 | F185: =IF(Data[[#This Row],[Adj Close]]<E186,TRUE,"") -> TRUE | G185: =IF(F184=Data[[#This Row],[Up]],0,1) -> 1 | H185: =SUM($G$33:G185) -> 82 | I185: 81 | J185: =AVERAGE(OFFSET(E184,1,,-MIN(Bollinger_Band_Range,COUNTA(E$32:E184)))+Standard_Deviation*IFERROR(STDEV(OFFSET(E184,1,,-MIN(Bollinger_Band_Range,COUNTA(E$32:E184)))),0)) -> 306.4830351 | K185: =IFERROR(AVERAGE(OFFSET(E184,1,,-MIN(Bollinger_Band_Range,COUNTA(E$32:E184)))-Standard_Deviation*IFERROR(STDEV(OFFSET(E184,1,,-MIN(Bollinger_Band_Range,COUNTA(E$32:E184)))),0)),0) -> 234.3665085
D186: 2022-08-12 | E186: 290.473114 | F186: =IF(Data[[#This Row],[Adj Close]]<E187,TRUE,"") -> TRUE | G186: =IF(F185=Data[[#This Row],[Up]],0,1) -> 0 | H186: =SUM($G$33:G186) -> 82 | I186: 82 | J186: =AVERAGE(OFFSET(E185,1,,-MIN(Bollinger_Band_Range,COUNTA(E$32:E185)))+Standard_Deviation*IFERROR(STDEV(OFFSET(E185,1,,-MIN(Bollinger_Band_Range,COUNTA(E$32:E185)))),0)) -> 308.9915988 | K186: =IFERROR(AVERAGE(OFFSET(E185,1,,-MIN(Bollinger_Band_Range,COUNTA(E$32:E185)))-Standard_Deviation*IFERROR(STDEV(OFFSET(E185,1,,-MIN(Bollinger_Band_Range,COUNTA(E$32:E185)))),0)),0) -> 235.3596248
D187: 2022-08-15 | E187: 292.025452 | F187: =IF(Data[[#This Row],[Adj Close]]<E188,TRUE,"") ->  | G187: =IF(F186=Data[[#This Row],[Up]],0,1) -> 1 | H187: =SUM($G$33:G187) -> 83 | I187: 82 | J187: =AVERAGE(OFFSET(E186,1,,-MIN(Bollinger_Band_Range,COUNTA(E$32:E186)))+Standard_Deviation*IFERROR(STDEV(OFFSET(E186,1,,-MIN(Bollinger_Band_Range,COUNTA(E$32:E186)))),0)) -> 310.6205114 | K187: =IFERROR(AVERAGE(OFFSET(E186,1,,-MIN(Bollinger_Band_Range,COUNTA(E$32:E186)))-Standard_Deviation*IFERROR(STDEV(OFFSET(E186,1,,-MIN(Bollinger_Band_Range,COUNTA(E$32:E186)))),0)),0) -> 237.63341
D188: 2022-08-16 | E188: 291.269165 | F188: =IF(Data[[#This Row],[Adj Close]]<E189,TRUE,"") ->  | G188: =IF(F187=Data[[#This Row],[Up]],0,1) -> 0 | H188: =SUM($G$33:G188) -> 83 | I188: 83 | J188: =AVERAGE(OFFSET(E187,1,,-MIN(Bollinger_Band_Range,COUNTA(E$32:E187)))+Standard_Deviation*IFERROR(STDEV(OFFSET(E187,1,,-MIN(Bollinger_Band_Range,COUNTA(E$32:E187)))),0)) -> 312.1891651 | K188: =IFERROR(AVERAGE(OFFSET(E187,1,,-MIN(Bollinger_Band_Range,COUNTA(E$32:E187)))-Standard_Deviation*IFERROR(STDEV(OFFSET(E187,1,,-MIN(Bollinger_Band_Range,COUNTA(E$32:E187)))),0)),0) -> 239.3664226
D189: 2022-08-17 | E189: 290.501343 | F189: =IF(Data[[#This Row],[Adj Close]]<E190,TRUE,"") ->  | G189: =IF(F188=Data[[#This Row],[Up]],0,1) -> 0 | H189: =SUM($G$33:G189) -> 83 | I189: 83 | J189: =AVERAGE(OFFSET(E188,1,,-MIN(Bollinger_Band_Range,COUNTA(E$32:E188)))+Standard_Deviation*IFERROR(STDEV(OFFSET(E188,1,,-MIN(Bollinger_Band_Range,COUNTA(E$32:E188)))),0)) -> 313.3661436 | K189: =IFERROR(AVERAGE(OFFSET(E188,1,,-MIN(Bollinger_Band_Range,COUNTA(E$32:E188)))-Standard_Deviation*IFERROR(STDEV(OFFSET(E188,1,,-MIN(Bollinger_Band_Range,COUNTA(E$32:E188)))),0)),0) -> 241.141678
D190: 2022-08-18 | E190: 289.354553 | F190: =IF(Data[[#This Row],[Adj Close]]<E191,TRUE,"") ->  | G190: =IF(F189=Data[[#This Row],[Up]],0,1) -> 0 | H190: =SUM($G$33:G190) -> 83 | I190: 83 | J190: =AVERAGE(OFFSET(E189,1,,-MIN(Bollinger_Band_Range,COUNTA(E$32:E189)))+Standard_Deviation*IFERROR(STDEV(OFFSET(E189,1,,-MIN(Bollinger_Band_Range,COUNTA(E$32:E189)))),0)) -> 314.161271 | K190: =IFERROR(AVERAGE(OFFSET(E189,1,,-MIN(Bollinger_Band_Range,COUNTA(E$32:E189)))-Standard_Deviation*IFERROR(STDEV(OFFSET(E189,1,,-MIN(Bollinger_Band_Range,COUNTA(E$32:E189)))),0)),0) -> 242.9283713
D191: 2022-08-19 | E191: 285.345856 | F191: =IF(Data[[#This Row],[Adj Close]]<E192,TRUE,"") ->  | G191: =IF(F190=Data[[#This Row],[Up]],0,1) -> 0 | H191: =SUM($G$33:G191) -> 83 | I191: 83 | J191: =AVERAGE(OFFSET(E190,1,,-MIN(Bollinger_Band_Range,COUNTA(E$32:E190)))+Standard_Deviation*IFERROR(STDEV(OFFSET(E190,1,,-MIN(Bollinger_Band_Range,COUNTA(E$32:E190)))),0)) -> 312.94295 | K191: =IFERROR(AVERAGE(OFFSET(E190,1,,-MIN(Bollinger_Band_Range,COUNTA(E$32:E190)))-Standard_Deviation*IFERROR(STDEV(OFFSET(E190,1,,-MIN(Bollinger_Band_Range,COUNTA(E$32:E190)))),0)),0) -> 246.7734379
D192: 2022-08-22 | E192: 276.969452 | F192: =IF(Data[[#This Row],[Adj Close]]<E193,TRUE,"") ->  | G192: =IF(F191=Data[[#This Row],[Up]],0,1) -> 0 | H192: =SUM($G$33:G192) -> 83 | I192: 83 | J192: =AVERAGE(OFFSET(E191,1,,-MIN(Bollinger_Band_Range,COUNTA(E$32:E191)))+Standard_Deviation*IFERROR(STDEV(OFFSET(E191,1,,-MIN(Bollinger_Band_Range,COUNTA(E$32:E191)))),0)) -> 310.0525078 | K192: =IFERROR(AVERAGE(OFFSET(E191,1,,-MIN(Bollinger_Band_Range,COUNTA(E$32:E191)))-Standard_Deviation*IFERROR(STDEV(OFFSET(E191,1,,-MIN(Bollinger_Band_Range,COUNTA(E$32:E191)))),0)),0) -> 251.6052345
D193: 2022-08-23 | E193: 275.663147 | F193: =IF(Data[[#This Row],[Adj Close]]<E194,TRUE,"") ->  | G193: =IF(F192=Data[[#This Row],[Up]],0,1) -> 0 | H193: =SUM($G$33:G193) -> 83 | I193: 83 | J193: =AVERAGE(OFFSET(E192,1,,-MIN(Bollinger_Band_Range,COUNTA(E$32:E192)))+Standard_Deviation*IFERROR(STDEV(OFFSET(E192,1,,-MIN(Bollinger_Band_Range,COUNTA(E$32:E192)))),0)) -> 302.5906558 | K193: =IFERROR(AVERAGE(OFFSET(E192,1,,-MIN(Bollinger_Band_Range,COUNTA(E$32:E192)))-Standard_Deviation*IFERROR(STDEV(OFFSET(E192,1,,-MIN(Bollinger_Band_Range,COUNTA(E$32:E192)))),0)),0) -> 261.5673978
D194: 2022-08-24 | E194: 275.014984 | F194: =IF(Data[[#This Row],[Adj Close]]<E195,TRUE,"") -> TRUE | G194: =IF(F193=Data[[#This Row],[Up]],0,1) -> 1 | H194: =SUM($G$33:G194) -> 84 | I194: 83 | J194: =AVERAGE(OFFSET(E193,1,,-MIN(Bollinger_Band_Range,COUNTA(E$32:E193)))+Standard_Deviation*IFERROR(STDEV(OFFSET(E193,1,,-MIN(Bollinger_Band_Range,COUNTA(E$32:E193)))),0)) -> 300.929669 | K194: =IFERROR(AVERAGE(OFFSET(E193,1,,-MIN(Bollinger_Band_Range,COUNTA(E$32:E193)))-Standard_Deviation*IFERROR(STDEV(OFFSET(E193,1,,-MIN(Bollinger_Band_Range,COUNTA(E$32:E193)))),0)),0) -> 263.9881685
D195: 2022-08-25 | E195: 278.066376 | F195: =IF(Data[[#This Row],[Adj Close]]<E196,TRUE,"") ->  | G195: =IF(F194=Data[[#This Row],[Up]],0,1) -> 1 | H195: =SUM($G$33:G195) -> 85 | I195: 84 | J195: =AVERAGE(OFFSET(E194,1,,-MIN(Bollinger_Band_Range,COUNTA(E$32:E194)))+Standard_Deviation*IFERROR(STDEV(OFFSET(E194,1,,-MIN(Bollinger_Band_Range,COUNTA(E$32:E194)))),0)) -> 300.6121792 | K195: =IFERROR(AVERAGE(OFFSET(E194,1,,-MIN(Bollinger_Band_Range,COUNTA(E$32:E194)))-Standard_Deviation*IFERROR(STDEV(OFFSET(E194,1,,-MIN(Bollinger_Band_Range,COUNTA(E$32:E194)))),0)),0) -> 264.6073551
D196: 2022-08-26 | E196: 267.336609 | F196: =IF(Data[[#This Row],[Adj Close]]<E197,TRUE,"") ->  | G196: =IF(F195=Data[[#This Row],[Up]],0,1) -> 0 | H196: =SUM($G$33:G196) -> 85 | I196: 85 | J196: =AVERAGE(OFFSET(E195,1,,-MIN(Bollinger_Band_Range,COUNTA(E$32:E195)))+Standard_Deviation*IFERROR(STDEV(OFFSET(E195,1,,-MIN(Bollinger_Band_Range,COUNTA(E$32:E195)))),0)) -> 302.652134 | K196: =IFERROR(AVERAGE(OFFSET(E195,1,,-MIN(Bollinger_Band_Range,COUNTA(E$32:E195)))-Standard_Deviation*IFERROR(STDEV(OFFSET(E195,1,,-MIN(Bollinger_Band_Range,COUNTA(E$32:E195)))),0)),0) -> 261.3652519
D197: 2022-08-29 | E197: 264.48465 | F197: =IF(Data[[#This Row],[Adj Close]]<E198,TRUE,"") ->  | G197: =IF(F196=Data[[#This Row],[Up]],0,1) -> 0 | H197: =SUM($G$33:G197) -> 85 | I197: 85 | J197: =AVERAGE(OFFSET(E196,1,,-MIN(Bollinger_Band_Range,COUNTA(E$32:E196)))+Standard_Deviation*IFERROR(STDEV(OFFSET(E196,1,,-MIN(Bollinger_Band_Range,COUNTA(E$32:E196)))),0)) -> 304.948055 | K197: =IFERROR(AVERAGE(OFFSET(E196,1,,-MIN(Bollinger_Band_Range,COUNTA(E$32:E196)))-Standard_Deviation*IFERROR(STDEV(OFFSET(E196,1,,-MIN(Bollinger_Band_Range,COUNTA(E$32:E196)))),0)),0) -> 257.8536418
D198: 2022-08-30 | E198: 262.230988 | F198: =IF(Data[[#This Row],[Adj Close]]<E199,TRUE,"") ->  | G198: =IF(F197=Data[[#This Row],[Up]],0,1) -> 0 | H198: =SUM($G$33:G198) -> 85 | I198: 85 | J198: =AVERAGE(OFFSET(E197,1,,-MIN(Bollinger_Band_Range,COUNTA(E$32:E197)))+Standard_Deviation*IFERROR(STDEV(OFFSET(E197,1,,-MIN(Bollinger_Band_Range,COUNTA(E$32:E197)))),0)) -> 307.2158649 | K198: =IFERROR(AVERAGE(OFFSET(E197,1,,-MIN(Bollinger_Band_Range,COUNTA(E$32:E197)))-Standard_Deviation*IFERROR(STDEV(OFFSET(E197,1,,-MIN(Bollinger_Band_Range,COUNTA(E$32:E197)))),0)),0) -> 254.4622083
D199: 2022-08-31 | E199: 260.735199 | F199: =IF(Data[[#This Row],[Adj Close]]<E200,TRUE,"") ->  | G199: =IF(F198=Data[[#This Row],[Up]],0,1) -> 0 | H199: =SUM($G$33:G199) -> 85 | I199: 85 | J199: =AVERAGE(OFFSET(E198,1,,-MIN(Bollinger_Band_Range,COUNTA(E$32:E198)))+Standard_Deviation*IFERROR(STDEV(OFFSET(E198,1,,-MIN(Bollinger_Band_Range,COUNTA(E$32:E198)))),0)) -> 309.4419668 | K199: =IFERROR(AVERAGE(OFFSET(E198,1,,-MIN(Bollinger_Band_Range,COUNTA(E$32:E198)))-Standard_Deviation*IFERROR(STDEV(OFFSET(E198,1,,-MIN(Bollinger_Band_Range,COUNTA(E$32:E198)))),0)),0) -> 250.2016704
D200: 2022-09-01 | E200: 259.668213 | F200: =IF(Data[[#This Row],[Adj Close]]<E201,TRUE,"") ->  | G200: =IF(F199=Data[[#This Row],[Up]],0,1) -> 0 | H200: =SUM($G$33:G200) -> 85 | I200: 85 | J200: =AVERAGE(OFFSET(E199,1,,-MIN(Bollinger_Band_Range,COUNTA(E$32:E199)))+Standard_Deviation*IFERROR(STDEV(OFFSET(E199,1,,-MIN(Bollinger_Band_Range,COUNTA(E$32:E199)))),0)) -> 311.1712342 | K200: =IFERROR(AVERAGE(OFFSET(E199,1,,-MIN(Bollinger_Band_Range,COUNTA(E$32:E199)))-Standard_Deviation*IFERROR(STDEV(OFFSET(E199,1,,-MIN(Bollinger_Band_Range,COUNTA(E$32:E199)))),0)),0) -> 246.2138489
D201: 2022-09-02 | E201: 255.340408 | F201: =IF(Data[[#This Row],[Adj Close]]<E202,TRUE,"") ->  | G201: =IF(F200=Data[[#This Row],[Up]],0,1) -> 0 | H201: =SUM($G$33:G201) -> 85 | I201: 85 | J201: =AVERAGE(OFFSET(E200,1,,-MIN(Bollinger_Band_Range,COUNTA(E$32:E200)))+Standard_Deviation*IFERROR(STDEV(OFFSET(E200,1,,-MIN(Bollinger_Band_Range,COUNTA(E$32:E200)))),0)) -> 313.3443209 | K201: =IFERROR(AVERAGE(OFFSET(E200,1,,-MIN(Bollinger_Band_Range,COUNTA(E$32:E200)))-Standard_Deviation*IFERROR(STDEV(OFFSET(E200,1,,-MIN(Bollinger_Band_Range,COUNTA(E$32:E200)))),0)),0) -> 241.4230635
D202: 2022-09-06 | E202: 252.5383 | F202: =IF(Data[[#This Row],[Adj Close]]<E203,TRUE,"") -> TRUE | G202: =IF(F201=Data[[#This Row],[Up]],0,1) -> 1 | H202: =SUM($G$33:G202) -> 86 | I202: 85 | J202: =AVERAGE(OFFSET(E201,1,,-MIN(Bollinger_Band_Range,COUNTA(E$32:E201)))+Standard_Deviation*IFERROR(STDEV(OFFSET(E201,1,,-MIN(Bollinger_Band_Range,COUNTA(E$32:E201)))),0)) -> 315.6604706 | K202: =IFERROR(AVERAGE(OFFSET(E201,1,,-MIN(Bollinger_Band_Range,COUNTA(E$32:E201)))-Standard_Deviation*IFERROR(STDEV(OFFSET(E201,1,,-MIN(Bollinger_Band_Range,COUNTA(E$32:E201)))),0)),0) -> 236.4667283
D203: 2022-09-07 | E203: 257.364716 | F203: =IF(Data[[#This Row],[Adj Close]]<E204,TRUE,"") -> TRUE | G203: =IF(F202=Data[[#This Row],[Up]],0,1) -> 0 | H203: =SUM($G$33:G203) -> 86 | I203: 86 | J203: =AVERAGE(OFFSET(E202,1,,-MIN(Bollinger_Band_Range,COUNTA(E$32:E202)))+Standard_Deviation*IFERROR(STDEV(OFFSET(E202,1,,-MIN(Bollinger_Band_Range,COUNTA(E$32:E202)))),0)) -> 316.2297187 | K203: =IFERROR(AVERAGE(OFFSET(E202,1,,-MIN(Bollinger_Band_Range,COUNTA(E$32:E202)))-Standard_Deviation*IFERROR(STDEV(OFFSET(E202,1,,-MIN(Bollinger_Band_Range,COUNTA(E$32:E202)))),0)),0) -> 233.5429118
D204: 2022-09-08 | E204: 257.793488 | F204: =IF(Data[[#This Row],[Adj Close]]<E205,TRUE,"") -> TRUE | G204: =IF(F203=Data[[#This Row],[Up]],0,1) -> 0 | H204: =SUM($G$33:G204) -> 86 | I204: 86 | J204: =AVERAGE(OFFSET(E203,1,,-MIN(Bollinger_Band_Range,COUNTA(E$32:E203)))+Standard_Deviation*IFERROR(STDEV(OFFSET(E203,1,,-MIN(Bollinger_Band_Range,COUNTA(E$32:E203)))),0)) -> 315.2008307 | K204: =IFERROR(AVERAGE(OFFSET(E203,1,,-MIN(Bollinger_Band_Range,COUNTA(E$32:E203)))-Standard_Deviation*IFERROR(STDEV(OFFSET(E203,1,,-MIN(Bollinger_Band_Range,COUNTA(E$32:E203)))),0)),0) -> 231.5774853
D205: 2022-09-09 | E205: 263.716797 | F205: =IF(Data[[#This Row],[Adj Close]]<E206,TRUE,"") -> TRUE | G205: =IF(F204=Data[[#This Row],[Up]],0,1) -> 0 | H205: =SUM($G$33:G205) -> 86 | I205: 86 | J205: =AVERAGE(OFFSET(E204,1,,-MIN(Bollinger_Band_Range,COUNTA(E$32:E204)))+Standard_Deviation*IFERROR(STDEV(OFFSET(E204,1,,-MIN(Bollinger_Band_Range,COUNTA(E$32:E204)))),0)) -> 313.65248 | K205: =IFERROR(AVERAGE(OFFSET(E204,1,,-MIN(Bollinger_Band_Range,COUNTA(E$32:E204)))-Standard_Deviation*IFERROR(STDEV(OFFSET(E204,1,,-MIN(Bollinger_Band_Range,COUNTA(E$32:E204)))),0)),0) -> 230.936801
D206: 2022-09-12 | E206: 265.900635 | F206: =IF(Data[[#This Row],[Adj Close]]<E207,TRUE,"") ->  | G206: =IF(F205=Data[[#This Row],[Up]],0,1) -> 1 | H206: =SUM($G$33:G206) -> 87 | I206: 86 | J206: =AVERAGE(OFFSET(E205,1,,-MIN(Bollinger_Band_Range,COUNTA(E$32:E205)))+Standard_Deviation*IFERROR(STDEV(OFFSET(E205,1,,-MIN(Bollinger_Band_Range,COUNTA(E$32:E205)))),0)) -> 310.5502383 | K206: =IFERROR(AVERAGE(OFFSET(E205,1,,-MIN(Bollinger_Band_Range,COUNTA(E$32:E205)))-Standard_Deviation*IFERROR(STDEV(OFFSET(E205,1,,-MIN(Bollinger_Band_Range,COUNTA(E$32:E205)))),0)),0) -> 231.5817948
D207: 2022-09-13 | E207: 251.28186 | F207: =IF(Data[[#This Row],[Adj Close]]<E208,TRUE,"") -> TRUE | G207: =IF(F206=Data[[#This Row],[Up]],0,1) -> 1 | H207: =SUM($G$33:G207) -> 88 | I207: 87 | J207: =AVERAGE(OFFSET(E206,1,,-MIN(Bollinger_Band_Range,COUNTA(E$32:E206)))+Standard_Deviation*IFERROR(STDEV(OFFSET(E206,1,,-MIN(Bollinger_Band_Range,COUNTA(E$32:E206)))),0)) -> 307.7199808 | K207: =IFERROR(AVERAGE(OFFSET(E206,1,,-MIN(Bollinger_Band_Range,COUNTA(E$32:E206)))-Standard_Deviation*IFERROR(STDEV(OFFSET(E206,1,,-MIN(Bollinger_Band_Range,COUNTA(E$32:E206)))),0)),0) -> 230.3376931
D208: 2022-09-14 | E208: 251.5112 | F208: =IF(Data[[#This Row],[Adj Close]]<E209,TRUE,"") ->  | G208: =IF(F207=Data[[#This Row],[Up]],0,1) -> 1 | H208: =SUM($G$33:G208) -> 89 | I208: 88 | J208: =AVERAGE(OFFSET(E207,1,,-MIN(Bollinger_Band_Range,COUNTA(E$32:E207)))+Standard_Deviation*IFERROR(STDEV(OFFSET(E207,1,,-MIN(Bollinger_Band_Range,COUNTA(E$32:E207)))),0)) -> 304.0629046 | K208: =IFERROR(AVERAGE(OFFSET(E207,1,,-MIN(Bollinger_Band_Range,COUNTA(E$32:E207)))-Standard_Deviation*IFERROR(STDEV(OFFSET(E207,1,,-MIN(Bollinger_Band_Range,COUNTA(E$32:E207)))),0)),0) -> 230.0189728
D209: 2022-09-15 | E209: 244.69043 | F209: =IF(Data[[#This Row],[Adj Close]]<E210,TRUE,"") ->  | G209: =IF(F208=Data[[#This Row],[Up]],0,1) -> 0 | H209: =SUM($G$33:G209) -> 89 | I209: 89 | J209: =AVERAGE(OFFSET(E208,1,,-MIN(Bollinger_Band_Range,COUNTA(E$32:E208)))+Standard_Deviation*IFERROR(STDEV(OFFSET(E208,1,,-MIN(Bollinger_Band_Range,COUNTA(E$32:E208)))),0)) -> 300.7620121 | K209: =IFERROR(AVERAGE(OFFSET(E208,1,,-MIN(Bollinger_Band_Range,COUNTA(E$32:E208)))-Standard_Deviation*IFERROR(STDEV(OFFSET(E208,1,,-MIN(Bollinger_Band_Range,COUNTA(E$32:E208)))),0)),0) -> 228.738774
D210: 2022-09-16 | E210: 244.052231 | F210: =IF(Data[[#This Row],[Adj Close]]<E211,TRUE,"") ->  | G210: =IF(F209=Data[[#This Row],[Up]],0,1) -> 0 | H210: =SUM($G$33:G210) -> 89 | I210: 89 | J210: =AVERAGE(OFFSET(E209,1,,-MIN(Bollinger_Band_Range,COUNTA(E$32:E209)))+Standard_Deviation*IFERROR(STDEV(OFFSET(E209,1,,-MIN(Bollinger_Band_Range,COUNTA(E$32:E209)))),0)) -> 296.6087411 | K210: =IFERROR(AVERAGE(OFFSET(E209,1,,-MIN(Bollinger_Band_Range,COUNTA(E$32:E209)))-Standard_Deviation*IFERROR(STDEV(OFFSET(E209,1,,-MIN(Bollinger_Band_Range,COUNTA(E$32:E209)))),0)),0) -> 228.3618128
D211: 2022-09-19 | E211: 243.83284 | F211: =IF(Data[[#This Row],[Adj Close]]<E212,TRUE,"") ->  | G211: =IF(F210=Data[[#This Row],[Up]],0,1) -> 0 | H211: =SUM($G$33:G211) -> 89 | I211: 89 | J211: =AVERAGE(OFFSET(E210,1,,-MIN(Bollinger_Band_Range,COUNTA(E$32:E210)))+Standard_Deviation*IFERROR(STDEV(OFFSET(E210,1,,-MIN(Bollinger_Band_Range,COUNTA(E$32:E210)))),0)) -> 292.6717699 | K211: =IFERROR(AVERAGE(OFFSET(E210,1,,-MIN(Bollinger_Band_Range,COUNTA(E$32:E210)))-Standard_Deviation*IFERROR(STDEV(OFFSET(E210,1,,-MIN(Bollinger_Band_Range,COUNTA(E$32:E210)))),0)),0) -> 228.1474824
... 90 more rows

Sheet Point and Figure Chart
A1: =IF(ISERROR(RIGHT(CELL("filename",A1),LEN(CELL("filename",A1))-FIND("]",CELL("filename",A1)))), "", RIGHT(CELL("filename",A1),LEN(CELL("filename",A1))-FIND("]",CELL("filename",A1)))) -> Point and Figure Chart
A2: =Model_Name -> SP Point and Figure Chart with Bollinger Band- Complete.xlsm
A3: Navigator
B4: Error Checks: | F4: =Overall_Error_Check -> 0
B6: =MAX($B$5:$B5)+1 -> 1 | C6: =A1 -> Point and Figure Chart
G8: Date
G9: =_xlfn.SEQUENCE(,MAX(Transform_Data[Unique Index])) -> 1 | H9: 2 | I9: 3 | J9: 4 | K9: 5 | L9: 6 | M9: 7 | N9: 8 | O9: 9 | P9: 10 | Q9: 11 | R9: 12 | S9: 13 | T9: 14 | U9: 15 | V9: 16 | W9: 17 | X9: 18 | Y9: 19 | Z9: 20 | AA9: 21 | AB9: 22 | AC9: 23 | AD9: 24 | AE9: 25 | AF9: 26 | AG9: 27 | AH9: 28 | AI9: 29 | AJ9: 30 | AK9: 31 | AL9: 32 | AM9: 33 | AN9: 34 | AO9: 35 | AP9: 36 | AQ9: 37 | AR9: 38 | AS9: 39 | AT9: 40 | AU9: 41 | AV9: 42 | AW9: 43 | AX9: 44 | AY9: 45 | AZ9: 46 | BA9: 47 | BB9: 48 | BC9: 49 | BD9: 50 | BE9: 51 | BF9: 52 | BG9: 53 | BH9: 54 | BI9: 55 | BJ9: 56 | BK9: 57 | BL9: 58 | BM9: 59 | BN9: 60 | BO9: 61 | BP9: 62 | BQ9: 63 | BR9: 64 | BS9: 65 | BT9: 66 | BU9: 67 | BV9: 68 | BW9: 69 | BX9: 70 | BY9: 71 | BZ9: 72 | CA9: 73 | CB9: 74 | CC9: 75 | CD9: 76 | CE9: 77 | CF9: 78 | CG9: 79 | CH9: 80 | CI9: 81 | CJ9: 82 | CK9: 83 | CL9: 84 | CM9: 85 | CN9: 86 | CO9: 87 | CP9: 88 | CQ9: 89 | CR9: 90 | CS9: 91 | CT9: 92 | CU9: 93 | CV9: 94 | CW9: 95 | CX9: 96 | CY9: 97 | CZ9: 98 | DA9: 99 | DB9: 100 | DC9: 101 | DD9: 102 | DE9: 103 | DF9: 104 | DG9: 105 | DH9: 106 | DI9: 107 | DJ9: 108 | DK9: 109 | DL9: 110 | DM9: 111 | DN9: 112 | DO9: 113 | DP9: 114 | DQ9: 115 | DR9: 116 | DS9: 117 | DT9: 118 | DU9: 119 | DV9: 120 | DW9: 121 | DX9: 122 | DY9: 123 | DZ9: 124 | EA9: 125 | EB9: 126 | EC9: 127 | ED9: 128 | EE9: 129 | EF9: 130
E10: Lower Bin | F10: Upper Bin | G10: =TRANSPOSE(Transform_Data[Date]) -> 2022-01-03 | H10: 2022-01-06 | I10: 2022-01-12 | J10: 2022-01-13 | K10: 2022-01-14 | L10: 2022-01-18 | M10: 2022-01-19 | N10: 2022-01-21 | O10: 2022-01-24 | P10: 2022-01-25 | Q10: 2022-01-31 | R10: 2022-02-01 | S10: 2022-02-02 | T10: 2022-02-03 | U10: 2022-02-04 | V10: 2022-02-07 | W10: 2022-02-09 | X10: 2022-02-14 | Y10: 2022-02-15 | Z10: 2022-02-23 | AA10: 2022-02-28 | AB10: 2022-03-01 | AC10: 2022-03-02 | AD10: 2022-03-08 | AE10: 2022-03-09 | AF10: 2022-03-14 | AG10: 2022-03-18 | AH10: 2022-03-21 | AI10: 2022-03-22 | AJ10: 2022-03-23 | AK10: 2022-03-24 | AL10: 2022-03-25 | AM10: 2022-03-29 | AN10: 2022-03-31 | AO10: 2022-04-04 | AP10: 2022-04-06 | AQ10: 2022-04-07 | AR10: 2022-04-12 | AS10: 2022-04-13 | AT10: 2022-04-14 | AU10: 2022-04-20 | AV10: 2022-04-22 | AW10: 2022-04-25 | AX10: 2022-04-26 | AY10: 2022-04-28 | AZ10: 2022-04-29 | BA10: 2022-05-02 | BB10: 2022-05-03 | BC10: 2022-05-04 | BD10: 2022-05-09 | BE10: 2022-05-10 | BF10: 2022-05-12 | BG10: 2022-05-17 | BH10: 2022-05-20 | BI10: 2022-05-23 | BJ10: 2022-05-24 | BK10: 2022-05-27 | BL10: 2022-05-31 | BM10: 2022-06-02 | BN10: 2022-06-06 | BO10: 2022-06-07 | BP10: 2022-06-13 | BQ10: 2022-06-15 | BR10: 2022-06-16 | BS10: 2022-06-21 | BT10: 2022-06-22 | BU10: 2022-06-24 | BV10: 2022-06-28 | BW10: 2022-06-29 | BX10: 2022-06-30 | BY10: 2022-07-07 | BZ10: 2022-07-13 | CA10: 2022-07-15 | CB10: 2022-07-18 | CC10: 2022-07-21 | CD10: 2022-07-26 | CE10: 2022-07-29 | CF10: 2022-08-02 | CG10: 2022-08-04 | CH10: 2022-08-08 | CI10: 2022-08-10 | CJ10: 2022-08-11 | CK10: 2022-08-15 | CL10: 2022-08-24 | CM10: 2022-08-25 | CN10: 2022-09-06 | CO10: 2022-09-12 | CP10: 2022-09-13 | CQ10: 2022-09-14 | CR10: 2022-09-21 | CS10: 2022-09-22 | CT10: 2022-09-27 | CU10: 2022-09-28 | CV10: 2022-09-30 | CW10: 2022-10-05 | CX10: 2022-10-11 | CY10: 2022-10-13 | CZ10: 2022-10-14 | DA10: 2022-10-18 | DB10: 2022-10-20 | DC10: 2022-10-25 | DD10: 2022-10-27 | DE10: 2022-10-28 | DF10: 2022-11-03 | DG10: 2022-11-08 | DH10: 2022-11-09 | DI10: 2022-11-11 | DJ10: 2022-11-14 | DK10: 2022-11-16 | DL10: 2022-11-18 | DM10: 2022-11-23 | DN10: 2022-11-29 | DO10: 2022-11-30 | DP10: 2022-12-01 | DQ10: 2022-12-02 | DR10: 2022-12-07 | DS10: 2022-12-08 | DT10: 2022-12-09 | DU10: 2022-12-14 | DV10: 2022-12-19 | DW10: 2022-12-21 | DX10: 2022-12-22 | DY10: 2022-12-23 | DZ10: 2022-12-28 | EA10: 2022-12-29 | EB10: 2023-01-05 | EC10: 2023-01-17 | ED10: 2023-01-19 | EE10: 2023-01-23 | EF10: 2023-01-25
D11: $ | E11: =_xlfn.SEQUENCE(Number_of_Bins+1,,Max-Width,-Width) -> 345.6633311 | F11: =_xlfn.SEQUENCE(Number_of_Bins+1,,Max,-Width) -> 350.5843793 | G11: =IF((_xlfn.ANCHORARRAY($F11)>=TRANSPOSE(Transform_Data[Min Stock])) *(_xlfn.ANCHORARRAY($E11)<=TRANSPOSE(Transform_Data[Max Stock])), _xlfn.IFS(Starting_Symbol=Up_Symbol,IF(MOD(_xlfn.ANCHORARRAY(G9),2)=1,Up_Symbol,Down_Symbol), Starting_Symbol=Down_Symbol,IF(MOD(_xlfn.ANCHORARRAY(G9),2)=1,Down_Symbol,Up_Symbol)), _xlfn.IFS((_xlfn.ANCHORARRAY($F11)>=TRANSPOSE(Transform_Data[Min Upper Band])) *(_xlfn.ANCHORARRAY($E11)<=TRANSPOSE(Transform_Data[Max Upper Band])), Bollinger_Band_Symbol, (_xlfn.ANCHORARRAY($F11)>=TRANSPOSE(Transform_Data[Min Lower Band])) *(_xlfn.ANCHORARRAY($E11)<=TRANSPOSE(Transform_Data[Max Lower Band])), Bollinger_Band_Symbol, TRUE,"")) -> +++ | H11: +++
E12: 340.7422829 | F12: 345.6633311 | G12: +++ | H12: +++ | I12: +++ | J12: +++ | N12: +++ | O12: +++ | P12: +++
E13: 335.8212348 | F13: 340.7422829 | G13: +++ | H13: +++ | I13: +++ | J13: +++ | K13: +++ | L13: +++ | M13: +++ | N13: +++ | P13: +++ | Q13: +++ | AU13: +++ | AV13: +++
E14: 330.9001866 | F14: 335.8212348 | G14: O | Q14: +++ | R14: +++ | AN14: +++ | AO14: +++ | AP14: +++ | AQ14: +++ | AS14: +++ | AT14: +++ | AU14: +++ | AV14: +++ | AW14: +++ | AX14: +++
E15: 325.9791384 | F15: 330.9001866 | G15: O | R15: +++ | S15: +++ | T15: +++ | AM15: +++ | AN15: +++ | AQ15: +++ | AR15: +++ | AS15: +++ | AX15: +++ | AY15: +++
E16: 321.0580903 | F16: 325.9791384 | G16: O | T16: +++ | U16: +++ | V16: +++ | W16: +++ | Y16: +++ | Z16: +++ | AA16: +++ | AL16: +++ | AM16: +++ | AY16: +++ | AZ16: +++
E17: 316.1370421 | F17: 321.0580903 | G17: O | W17: +++ | X17: +++ | Y17: +++ | AA17: +++ | AB17: +++ | AC17: +++ | AD17: +++ | AJ17: +++ | AK17: +++ | AL17: +++ | AZ17: +++ | BA17: +++ | CN17: +++
E18: 311.2159939 | F18: 316.1370421 | G18: O | H18: X | I18: O | AC18: +++ | AD18: +++ | AE18: +++ | AF18: +++ | AG18: +++ | AH18: +++ | AI18: +++ | AJ18: +++ | AL18: X | AM18: O | AN18: X | AO18: O | BA18: +++ | BB18: +++ | CK18: +++ | CM18: +++ | CN18: +++
E19: 306.2949458 | F19: 311.2159939 | G19: O | H19: X | I19: O | J19: X | K19: O | P19: X | Q19: O | R19: X | S19: O | V19: X | W19: O | AE19: +++ | AF19: +++ | AG19: +++ | AL19: X | AM19: O | AN19: X | AO19: O | BB19: +++ | CI19: +++ | CJ19: +++ | CK19: +++ | CM19: +++ | CN19: +++ | CO19: +++ | CP19: +++
E20: 301.3738976 | F20: 306.2949458 | G20: +++ | I20: O | J20: X | K20: O | P20: X | Q20: O | R20: X | S20: O | T20: X | U20: O | V20: X | W20: O | AH20: X | AI20: O | AJ20: X | AK20: O | AL20: X | AM20: O | AN20: X | AO20: O | BB20: +++ | BC20: +++ | BE20: +++ | BF20: +++ | BG20: +++ | BH20: +++ | BI20: +++ | BJ20: +++ | CH20: +++ | CI20: +++ | CK20: +++ | CM20: +++ | CP20: +++ | CQ20: +++
E21: 296.4528495 | F21: 301.3738976 | G21: +++ | K21: O | L21: X | M21: O | P21: X | S21: O | T21: X | U21: O | V21: X | W21: O | X21: X | Y21: O | Z21: X | AA21: O | AB21: X | AC21: O | AF21: X | AG21: O | AH21: X | AI21: O | AJ21: X | AO21: O | AP21: X | AQ21: O | BC21: +++ | BD21: +++ | BE21: +++ | BJ21: +++ | CG21: +++ | CH21: +++ | CK21: +++ | CL21: +++ | CM21: +++ | CQ21: +++
E22: 291.5318013 | F22: 296.4528495 | G22: +++ | H22: +++ | I22: +++ | M22: O | N22: X | O22: O | P22: X | W22: O | X22: X | Y22: O | Z22: X | AA22: O | AB22: X | AC22: O | AF22: X | AQ22: O | BJ22: +++ | BK22: +++ | BL22: +++ | BQ22: +++ | BR22: +++ | BS22: +++ | BT22: +++ | BU22: +++ | CF22: +++ | CG22: +++ | CJ22: X | CK22: O | CQ22: +++
E23: 286.6107531 | F23: 291.5318013 | G23: +++ | H23: +++ | I23: +++ | J23: +++ | K23: +++ | O23: O | P23: X | Y23: O | Z23: X | AC23: O | AF23: X | AQ23: O | AX23: X | AY23: O | BB23: X | BC23: O | BL23: +++ | BO23: +++ | BP23: +++ | BQ23: +++ | BU23: +++ | BV23: +++ | BW23: +++ | BX23: +++ | CE23: +++ | CF23: +++ | CH23: X | CI23: O | CJ23: X | CK23: O | CQ23: +++ | CR23: +++ | CS23: +++
E24: 281.689705 | F24: 286.6107531 | K24: +++ | L24: +++ | M24: +++ | O24: O | P24: X | W24: +++ | Y24: O | Z24: X | AC24: O | AD24: X | AE24: O | AF24: X | AQ24: O | AR24: X | AS24: O | AT24: X | AU24: O | AX24: X | AY24: O | AZ24: X | BA24: O | BB24: X | BC24: O | BL24: +++ | BM24: +++ | BN24: +++ | BO24: +++ | BX24: +++ | CD24: +++ | CE24: +++ | CF24: X | CG24: O | CH24: X | CI24: O | CJ24: X | CK24: O | CS24: +++
E25: 276.7686568 | F25: 281.689705 | M25: +++ | N25: +++ | R25: +++ | S25: +++ | T25: +++ | U25: +++ | V25: +++ | W25: +++ | X25: +++ | Y25: O | Z25: X | AC25: O | AD25: X | AE25: O | AF25: X | AQ25: O | AR25: X | AS25: O | AT25: X | AU25: O | AV25: X | AW25: O | AX25: X | AY25: O | AZ25: X | BA25: O | BB25: X | BC25: O | BX25: +++ | BY25: +++ | BZ25: +++ | CA25: +++ | CD25: X | CE25: O | CF25: X | CG25: O | CH25: X | CK25: O | CL25: X | CM25: O | CS25: +++ | CT25: +++ | CU25: +++
E26: 271.8476086 | F26: 276.7686568 | N26: +++ | O26: +++ | P26: +++ | Q26: +++ | R26: +++ | Y26: +++ | AA26: +++ | AB26: +++ | AC26: O | AD26: X | AE26: O | AF26: X | AQ26: +++ | AR26: +++ | AU26: O | AV26: X | AW26: O | AX26: X | AY26: O | AZ26: X | BC26: O | BJ26: X | BK26: O | BL26: X | BM26: O | CA26: +++ | CB26: +++ | CC26: +++ | CD26: X | CE26: O | CF26: X | CK26: O | CL26: X | CM26: O | CU26: +++ | CV26: +++ | CW26: +++ | DO26: +++ | DP26: +++
E27: 266.9265605 | F27: 271.8476086 | O27: +++ | P27: +++ | Y27: +++ | Z27: +++ | AA27: +++ | AC27: +++ | AE27: +++ | AP27: +++ | AQ27: +++ | AR27: +++ | AS27: +++ | AT27: +++ | AW27: O | AX27: X | BC27: O | BD27: X | BE27: O | BJ27: X | BK27: O | BL27: X | BM27: O | BN27: X | BO27: O | BX27: X | BY27: O | CD27: X | CM27: O | CW27: +++ | DM27: +++ | DN27: +++ | DO27: +++ | DP27: +++ | DQ27: +++ | DY27: +++ | DZ27: +++ | EA27: +++ | EB27: +++
E28: 262.0055123 | F28: 266.9265605 | AC28: +++ | AD28: +++ | AE28: +++ | AF28: +++ | AG28: +++ | AH28: +++ | AI28: +++ | AJ28: +++ | AK28: +++ | AL28: +++ | AO28: +++ | AP28: +++ | AT28: +++ | BC28: O | BD28: X | BE28: O | BF28: X | BG28: O | BJ28: X | BO28: O | BT28: X | BU28: O | BX28: X | BY28: O | CB28: X | CC28: O | CD28: X | CK28: +++ | CL28: +++ | CM28: O | CN28: X | CO28: O | CW28: +++ | DH28: +++ | DI28: +++ | DJ28: +++ | DK28: +++ | DL28: +++ | DM28: +++ | DQ28: +++ | DR28: +++ | DT28: +++ | DU28: +++ | DV28: +++ | DW28: +++ | DX28: +++ | DY28: +++ | DZ28: +++ | EA28: +++ | EB28: +++
E29: 257.0844641 | F29: 262.0055123 | AL29: +++ | AM29: +++ | AN29: +++ | AO29: +++ | AT29: +++ | AU29: +++ | BB29: +++ | BC29: +++ | BD29: +++ | BE29: O | BF29: X | BG29: O | BH29: X | BI29: O | BJ29: X | BO29: O | BT29: X | BU29: O | BV29: X | BW29: O | BX29: X | BY29: O | CB29: X | CC29: O | CD29: X | CK29: +++ | CM29: O | CN29: X | CO29: O | CW29: +++ | CX29: +++ | CY29: +++ | CZ29: +++ | DB29: +++ | DC29: +++ | DD29: +++ | DE29: +++ | DF29: +++ | DG29: +++ | DH29: +++ | DR29: +++ | DS29: +++ | DT29: X | DU29: O | EB29: +++ | EF29: +++
E30: 252.163416 | F30: 257.0844641 | AM30: +++ | AN30: +++ | AU30: +++ | AV30: +++ | BA30: +++ | BB30: +++ | BE30: O | BF30: X | BG30: O | BH30: X | BO30: O | BR30: X | BS30: O | BT30: X | BU30: O | BV30: X | BW30: O | BX30: X | BY30: O | BZ30: X | CA30: O | CB30: X | CC30: O | CD30: X | CK30: +++ | CM30: O | CN30: X | CO30: O | CZ30: +++ | DA30: +++ | DB30: +++ | DN30: X | DO30: O | DP30: X | DQ30: O | DT30: X | DU30: O | EB30: +++ | EC30: +++ | ED30: +++ | EE30: +++ | EF30: +++
E31: 247.2423678 | F31: 252.163416 | AV31: +++ | AW31: +++ | AX31: +++ | AY31: +++ | AZ31: +++ | BA31: +++ | BE31: +++ | BF31: +++ | BG31: O | BH31: X | BO31: O | BP31: X | BQ31: O | BR31: X | BS31: O | BT31: X | BY31: O | BZ31: X | CC31: O | CD31: X | CK31: +++ | CM31: +++ | CO31: O | CP31: X | CQ31: O | CV31: X | CW31: O | DB31: X | DC31: O | DL31: X | DM31: O | DN31: X | DQ31: O | DR31: X | DS31: O | DT31: X | DU31: O | EF31: X
E32: 242.3213197 | F32: 247.2423678 | AW32: +++ | AX32: +++ | BF32: +++ | BO32: O | BP32: X | BQ32: O | BR32: X | CB32: +++ | CC32: +++ | CD32: +++ | CK32: +++ | CM32: +++ | CQ32: O | CV32: X | CW32: O | DB32: X | DC32: O | DH32: X | DI32: O | DL32: X | DM32: O | DN32: X | DQ32: O | DR32: X | DS32: O | DT32: X | DU32: O | DV32: X | DW32: O | ED32: X | EE32: O | EF32: X
E33: 237.4002715 | F33: 242.3213197 | BF33: +++ | BG33: +++ | BL33: +++ | BM33: +++ | BN33: +++ | BO33: O | BP33: X | CA33: +++ | CB33: +++ | CD33: +++ | CE33: +++ | CJ33: +++ | CK33: +++ | CM33: +++ | CQ33: O | CR33: X | CS33: O | CT33: X | CU33: O | CV33: X | CW33: O | CZ33: X | DA33: O | DB33: X | DC33: O | DH33: X | DI33: O | DJ33: X | DK33: O | DL33: X | DM33: O | DN33: X | DU33: O | DV33: X | DW33: O | DX33: X | DY33: O | DZ33: X | EA33: O | EB33: X | EC33: O | ED33: X | EE33: O | EF33: X
E34: 232.4792233 | F34: 237.4002715 | BG34: +++ | BJ34: +++ | BK34: +++ | BL34: +++ | BO34: +++ | BP34: +++ | BY34: +++ | BZ34: +++ | CA34: +++ | CE34: +++ | CF34: +++ | CH34: +++ | CI34: +++ | CJ34: +++ | CM34: +++ | CN34: +++ | CS34: O | CT34: X | CU34: O | CV34: X | CW34: O | CX34: X | CY34: O | CZ34: X | DA34: O | DB34: X | DC34: O | DD34: X | DE34: O | DH34: X | DY34: O | DZ34: X | EA34: O | EB34: X | EC34: O | ED34: X
E35: 227.5581752 | F35: 232.4792233 | BG35: +++ | BH35: +++ | BI35: +++ | BJ35: +++ | BP35: +++ | BQ35: +++ | BR35: +++ | BW35: +++ | BX35: +++ | BY35: +++ | CF35: +++ | CG35: +++ | CH35: +++ | CN35: +++ | CO35: +++ | CP35: +++ | CQ35: +++ | CU35: O | CV35: X | CW35: O | CX35: X | CY35: O | CZ35: X | DC35: O | DD35: X | DE35: O | DF35: X | DG35: O | DH35: X | DR35: +++ | DS35: +++ | DT35: +++ | DU35: +++ | DV35: +++ | DW35: +++ | DX35: +++ | DY35: +++ | EA35: O | EB35: X | EC35: O | ED35: X
E36: 222.637127 | F36: 227.5581752 | BR36: +++ | BS36: +++ | BT36: +++ | BU36: +++ | BV36: +++ | BW36: +++ | CQ36: +++ | CR36: +++ | CS36: +++ | CW36: O | CX36: X | DC36: O | DD36: X | DE36: O | DF36: X | DG36: O | DH36: X | DQ36: +++ | DR36: +++ | DY36: +++ | DZ36: +++ | EA36: O | EB36: X
E37: 217.7160788 | F37: 222.637127 | CS37: +++ | CT37: +++ | CU37: +++ | CW37: +++ | CX37: +++ | DE37: O | DF37: X | DQ37: +++ | EA37: O | EB37: X
E38: 212.7950307 | F38: 217.7160788 | CU38: +++ | CV38: +++ | CW38: +++ | CX38: +++ | CY38: +++ | CZ38: +++ | DA38: +++ | DB38: +++ | DC38: +++ | DE38: O | DF38: X | DQ38: +++ | EA38: +++ | EB38: +++ | EC38: +++ | ED38: +++ | EE38: +++ | EF38: +++
E39: 207.8739825 | F39: 212.7950307 | DC39: +++ | DD39: +++ | DE39: +++ | DP39: +++ | DQ39: +++ | EB39: +++
E40: 202.9529344 | F40: 207.8739825 | DE40: +++ | DF40: +++ | DG40: +++ | DH40: +++ | DI40: +++ | DJ40: +++ | DK40: +++ | DL40: +++ | DM40: +++ | DN40: +++ | DO40: +++ | DP40: +++
E41: 198.0318862 | F41: 202.9529344 | DK41: +++ | DL41: +++

Sheet Error Checks
A1: =IF(ISERROR(RIGHT(CELL("filename",A1),LEN(CELL("filename",A1))-FIND("]",CELL("filename",A1)))), "", RIGHT(CELL("filename",A1),LEN(CELL("filename",A1))-FIND("]",CELL("filename",A1)))) -> Error Checks
A2: =Model_Name -> SP Point and Figure Chart with Bollinger Band- Complete.xlsm
A3: Navigator
B4: Error Checks: | F4: =Overall_Error_Check -> 0
B6: =MAX($B$5:$B5)+1 -> 1 | C6: Error Checks
C8: Summary of Errors
D10: Assumptions
E12: Example
E17: =C8 -> Summary of Errors | I17: =MIN(1,SUM(I11:I15)) -> 0
